{"text_format":"1","workbook":"xlsx","n_sheets":17,"sheets":["matarka (4)","matarka (3)","matarka (2)","matarka_old","matarka","nyers_old","nyers (2)","nyers (3)","nyers (4)","nyers","Munka5","Munka4","Munka3","nyers_oldd","Munka1","2020-05060708","utolso"],"not_rendered":{"charts":0,"images":2,"macros":1,"external_links":0,"defined_names":0,"comments":0,"pivot_tables":0},"unopened":[],"bounds":{"document_bytes":16777216,"sheet_cells":100000,"rows_first":2000,"rows_last":500,"rows_between":2000,"halvings":0,"cell_chars":16384,"cell_head_chars":4096},"cells_cut":0,"cells_raw":0,"read":"whole","date_system":"1900"}

{"sheet":"matarka (4)","index":0,"n_rows":27,"n_cols":2,"rows_kept":27,"cut":false,"hidden":false,"merged":[]}
[null,"***"]
["Magyar Internetes Agrárinformatikai Újság (MIAÚ),2020,23,265"]
["miau265",{"$f":"nyers!G1&nyers!H1&nyers!I1&nyers!J1&nyers!K1","v":"Pitlik László:COCO-MCM lépcsőszám optimalizálási kísérletek  xx  https://miau.my-x.hu/miau/275/coco_mcm_opt_perx.xlsx"}]
["miau265",{"$f":"nyers!G3&nyers!H3&nyers!I3&nyers!J3&nyers!K3","v":"Pitlik László:Nyelvi rekeszelés, avagy hogyan érzékeltessük írásban a hangsúlyozást avatárok számára  xx  https://miau.my-x.hu/miau/275/nyelvi_rekeszeles.docx"}]
["miau265",{"$f":"nyers!G5&nyers!H5&nyers!I5&nyers!J5&nyers!K5","v":"Pitlik László:Counting of distinct values based on Excel-functions  xx  https://miau.my-x.hu/miau/275/occamsrazor_special.xlsx"}]
["miau265",{"$f":"nyers!G7&nyers!H7&nyers!I7&nyers!J7&nyers!K7","v":"Pitlik Marcell:Félvezetők gyártási hibájának automatizált felismerése tömeges szenzor-adatok alapján  xx  https://miau.my-x.hu/miau/275/semiconductors_SECOM_PM.docx"}]
["miau265",{"$f":"nyers!G9&nyers!H9&nyers!I9&nyers!J9&nyers!K9","v":"Pitlik Marcell:Félvezetők gyártási hibájának felismerése lépcsős függvényekkel a SECOM adatbázis alapján  xx  https://miau.my-x.hu/miau/275/secom_pm_2.pptx"}]
["miau265",{"$f":"nyers!G11&nyers!H11&nyers!I11&nyers!J11&nyers!K11","v":"Pitlik László, Barta Gergő:Anti-diszkriminatív modellezés közelítése solver-alapú neurális hálókkal  xx  https://miau.my-x.hu/miau/275/solver-based-neural-networks.docx"}]
["Magyar Internetes Agrárinformatikai Újság (MIAÚ),2020,23,266"]
["miau266",{"$f":"nyers!G13&nyers!H13&nyers!I13&nyers!J13&nyers!K13","v":"Pitlik László, Pitlik Marcell:A lépcsős függvények szimmetria-alapú validitása és a nyersadatok kapcsolata  xx  https://miau.my-x.hu/miau/275/validity.docx"}]
["miau266",{"$f":"nyers!G15&nyers!H15&nyers!I15&nyers!J15&nyers!K15","v":"Pitlik László:MP3: Automatizáció a kis és kkv-szektorban  xx  https://miau.my-x.hu/miau/275/3of3.mp3"}]
["miau266",{"$f":"nyers!G17&nyers!H17&nyers!I17&nyers!J17&nyers!K17","v":"Pitlik László (jun):Tanári záróvizsga - Szakdolgozatvédés - Tudásszintmérő tesztek  xx  https://miau.my-x.hu/matkut/eredmenyek/szd_vedes-PitlikL.pptx"}]
["miau266",{"$f":"nyers!G19&nyers!H19&nyers!I19&nyers!J19&nyers!K19","v":"Varga Dorottya:Ár-kockázat értékelés - VÉRNYOMÁSCSÖKKENTŐK  xx  https://miau.my-x.hu/miau/276/oe/ACE_gatlok/ACE-gatlok.pdf"}]
["miau266",{"$f":"nyers!G21&nyers!H21&nyers!I21&nyers!J21&nyers!K21","v":"Kis András Nándor:Döntési esetjáték – optimalizált kezelése avagy kuratóriumi döntések robotizálási kísérletei  xx  https://miau.my-x.hu/miau/276/oe/kuratorium/ux63p9_doku_final.pdf"}]
["miau266",{"$f":"nyers!G23&nyers!H23&nyers!I23&nyers!J23&nyers!K23","v":"Dlehány Noémi:Milyen mobilt vegyek 2021-ben?  xx  https://miau.my-x.hu/miau/276/oe/smartphones/smartphones.pdf"}]
["Magyar Internetes Agrárinformatikai Újság (MIAÚ),2020,23,267"]
["miau267",{"$f":"nyers!G25&nyers!H25&nyers!I25&nyers!J25&nyers!K25","v":"Mácz Andrea, Pitlik Marcell, Nyomárkay Kristóf, Németh Tamás:PPT: Autós forgalom számlálása  xx  https://miau.my-x.hu/miau/276/forgalomszamlalas/GL_projekt_vegleges.pptx"}]
["miau267",{"$f":"nyers!G27&nyers!H27&nyers!I27&nyers!J27&nyers!K27","v":"Mácz Andrea, Pitlik Marcell, Nyomárkay Kristóf, Németh Tamás:Autós forgalom számlálása  xx  https://miau.my-x.hu/miau/276/forgalomszamlalas/GL_projekt_NT_NYK_MA_PM.pdf"}]
["miau267",{"$f":"nyers!G29&nyers!H29&nyers!I29&nyers!J29&nyers!K29","v":"Ujlaki Richárd:Hol éri meg legjobban egy VIR-fejlesztői központot létrehozni Európában és miért?  xx  https://miau.my-x.hu/miau/276/kje/vir/vir.docx"}]
["miau267",{"$f":"nyers!G31&nyers!H31&nyers!I31&nyers!J31&nyers!K31","v":"Györgydeák Balázs Péter:Szakdolgozat: A szoftverfejlesztés gazdaságtana  xx  https://miau.my-x.hu/miau/276/kje/szd1/a_szoftverfejlesztees_gazdasagtana.pdf"}]
["miau267",{"$f":"nyers!G33&nyers!H33&nyers!I33&nyers!J33&nyers!K33","v":"Bagdi Dóra, Dúcs Attila, Martonosi Edit:Reprodukálási rejtvény: Hogyan lehet a klasszikus kérdőív értelmezéstől eljutni a modern adatelemzésig  xx  https://miau.my-x.hu/miau/276/kje/questionnaires/Alkalmazott informatika (k%e9sz).docx"}]
["miau267",{"$f":"nyers!G35&nyers!H35&nyers!I35&nyers!J35&nyers!K35","v":"Pétery Zoltán:Utasbiztosítási szokások feltérképezése kimutatások és elemző modulok segítségével a kiegészítő fedezetek tekintetében  xx  https://miau.my-x.hu/miau/276/kje/mcm/pz.pdf"}]
["miau267",{"$f":"nyers!G37&nyers!H37&nyers!I37&nyers!J37&nyers!K37","v":"Csizmadia Szilvia:WHICH EUROPEAN COUNTRY IS THE BEST TO LIVE IN? / WO LEBT SICH AM BESTEN IN EUROPA?  xx  https://miau.my-x.hu/miau/276/kje/eu/Szilvia Csizmadia KJO0IX Ranking EU.pdf"}]
["miau267",{"$f":"nyers!G39&nyers!H39&nyers!I39&nyers!J39&nyers!K39","v":"Pitlik Marcell:Égések mesterséges intelligencia-alapú elemzése  xx  https://miau.my-x.hu/miau/276/ARM_HF_PM.pptx"}]
["miau267",{"$f":"nyers!G41&nyers!H41&nyers!I41&nyers!J41&nyers!K41","v":"Pitlik László, Pitlik Dóra:A leggyakrabban használt Google felhőszolgáltatások bemutatása és azok gyakorlati alkalmazhatóságának megismertetése  xx  https://miau.my-x.hu/miau/276/google_services.docx"}]
["miau267",{"$f":"nyers!G43&nyers!H43&nyers!I43&nyers!J43&nyers!K43","v":"Pitlik László, Pitlik Mátyás:Részletek egy kísérleti HPC-projekt kommunikációjából  xx  https://miau.my-x.hu/miau/276/hpc_spec.docx"}]
[null,"***"]

{"sheet":"matarka (3)","index":1,"n_rows":51,"n_cols":2,"rows_kept":51,"cut":false,"hidden":false,"merged":[]}
[null,"***"]
["Magyar Internetes Agrárinformatikai Újság (MIAÚ),2020,23,261"]
[{"$f":"nyers_oldd!F1","v":"miau261"},{"$f":"nyers_oldd!G1&nyers_oldd!H1&nyers_oldd!I1&nyers_oldd!J1&nyers_oldd!K1","v":"Amine Sahraouardi:Beliefs about the Use of Instagram: An Exploratory Study - How to model Instagram characteristics based on country profiles  xx  https://miau.my-x.hu/miau/261/instagram.pdf"}]
[{"$f":"nyers_oldd!F3","v":"miau261"},"Anna Laura Bódis-Luca Klára Bodolay:The learning success of different didactical actions  xx  https://miau.my-x.hu/miau/261/5percent.pdf"]
[{"$f":"nyers_oldd!F5","v":"miau261"},"Pavel Vovchik:Russian Economy between 1992-1998 or preferred terms for political communication/marketing  xx  https://miau.my-x.hu/miau/261/GDP_political_marketing_ru.pdf"]
[{"$f":"nyers_oldd!F7","v":"miau261"},"Dániel Fülöp:Hungarian Economy between 2010-2020 or preferred terms for political communication/marketing  xx  https://miau.my-x.hu/miau/261/GDP_political_marketing.pdf"]
[{"$f":"nyers_oldd!F9","v":"miau261"},"Aqib Masood-Navid Babaei:Management is the best way to increase productivity - or how to prove a hypothesis based on big-data and solver-oriented thinking experiments  xx  https://miau.my-x.hu/miau/261/Management_Project.pdf"]
[{"$f":"nyers_oldd!F11","v":"miau261"},"Raj Md Saidul Islam:How to select the best location for a business activity?  xx  https://miau.my-x.hu/miau/261/How_to_select_the_best_location_for_a_business_activity3.pdf"]
[{"$f":"nyers_oldd!F13","v":"miau261"},"Khalid Hafiz Waqar:Transnational Cooperation for COVID19 Control and Prevention or comparative estimation of the quality of health systems  xx  https://miau.my-x.hu/miau/261/health_management_quality_covid.pdf"]
[{"$f":"nyers_oldd!F15","v":"miau261"},"Kitti Visnyei:Game development approaches - Handling the freedom by players in gamification processes  xx  https://miau.my-x.hu/miau/261/GameDevelopment.pdf"]
[{"$f":"nyers_oldd!F17","v":"miau261"},"Sára Várkonyi:Coronavirus publication - the best-country-view  xx  https://miau.my-x.hu/miau/261/coronavirus_publication_final.pdf"]
[{"$f":"nyers_oldd!F19","v":"miau261"},"Aidana Sanbayeva:Eurovision - event tourism (festivals) as an attractor  xx  https://miau.my-x.hu/miau/261/eurovision.pdf"]
[{"$f":"nyers_oldd!F21","v":"miau261"},"Nadeem Azhar:Pizza to go – A Best Pizza Award – based on a robot judge  xx  https://miau.my-x.hu/miau/261/pizza_award_robot_judge.pdf"]
[{"$f":"nyers_oldd!F23","v":"miau261"},"Lubo Ngoie Junior:Food-Kaleidoscope – The Case of Belgium  xx  https://miau.my-x.hu/miau/261/food_kaleidoscope_belgium.pdf"]
[{"$f":"nyers_oldd!F25","v":"miau261"},"Yama Abdiani:Food-Kaleidoscope – The Case of Zambia  xx  https://miau.my-x.hu/miau/261/food_kaleidoscope_zambia.pdf"]
[{"$f":"nyers_oldd!F27","v":"miau261"},"Shahroze Shahroze:RANKING OF COUNTRIES CONCERNING AI-READINESS/RELATEDNESS OR IMPACTS OF ARTIFICIAL INTELLIGENCE  xx  https://miau.my-x.hu/miau/261/Ranking_of_countries_concerning_AI.pdf"]
[{"$f":"nyers_oldd!F29","v":"miau261"},"Nazir Nelson:Food-Kaleidoscope – The Case of Pakistan  xx  https://miau.my-x.hu/miau/261/Food_Kaleidoscope_Pakistan.pdf"]
[{"$f":"nyers_oldd!F31","v":"miau261"},"Kitoto Ngoie Jennifer:Food-Kaleidoscope – The Case of Congo  xx  https://miau.my-x.hu/miau/261/food_kaleidoscope_case_congo.pdf"]
[{"$f":"nyers_oldd!F33","v":"miau261"},"Dominik Riczó:Europe between 1960 and 1990 or what could derive a robot-historian about the second half of the cold war based on big-data?  xx  https://miau.my-x.hu/miau/261/coldwar_robot-historian_turing-test.pdf"]
[{"$f":"nyers_oldd!F35","v":"miau261"},"Syed Nabeel-Saad Muhammad Adil:2D-matrix game  xx  https://miau.my-x.hu/miau/261/quilt2_2dm_plus.pdf"]
[{"$f":"nyers_oldd!F37","v":"miau261"},"Nadja Oelmüllers:H1N1  xx  https://miau.my-x.hu/miau/261/h1n1.pdf"]
["Magyar Internetes Agrárinformatikai Újság (MIAÚ),2020,23,262"]
[{"$f":"nyers_oldd!F39","v":"miau262"},"Pitlik László-Pitlik László, ifj.:Harmonikus közép számítása Solver-rel  xx  https://miau.my-x.hu/miau/262/3tarcsa.xlsx"]
[{"$f":"nyers_oldd!F41","v":"miau262"},"Pitlik László:Hiányzó adatok becslésének láncreakciói  xx  https://miau.my-x.hu/miau/262/excel_plus.xls"]
[{"$f":"nyers_oldd!F43","v":"miau262"},"Pitlik László:Forecasting-oriented evaluation of further matches based on renewed elo-rating-approaches in frame of similarity analyses  xx  https://miau.my-x.hu/miau/262/exatlon_plus.xlsx"]
[{"$f":"nyers_oldd!F45","v":"miau262"},"Pitlik László:Specifikációt előkészítő egyeztetések – esettanulmány egy szaklap online megjelenésének előkészítésről  xx  https://miau.my-x.hu/miau/262/esettanulmany_online_szaklap.docx"]
[{"$f":"nyers_oldd!F47","v":"miau262"},"Pitlik László:Hipotézis-tervezés PhD-disszertációkhoz  xx  https://miau.my-x.hu/miau/262/hipotezis_tervezes_phd.docx"]
[{"$f":"nyers_oldd!F49","v":"miau262"},"Pitlik László:Egy teszt-kérdéssor párhuzamos világa - esettanulmány  xx  https://miau.my-x.hu/miau/262/igaz-hamis-parhuzamos-ertelmezesek.docx"]
[{"$f":"nyers_oldd!F51","v":"miau262"},"Pitlik László:Szoftver-specifikáció folyamatának lépései – esettanulmány  xx  https://miau.my-x.hu/miau/262/terv_v2.docx"]
[{"$f":"nyers_oldd!F53","v":"miau262"},"Bérczes Balázs:Versicherungen - Vergleich durch objektive Bewertung  xx  https://miau.my-x.hu/miau/262/Versicherung_Vergleich_durch_objektive_Bewertung.docx"]
[{"$f":"nyers_oldd!F55","v":"miau262"},"Pitlik Dóra:A zenei szépség naiv és módszeres értelmezése  xx  https://miau.my-x.hu/miau/262/zenei_szepseg_best_of.xlsx"]
[{"$f":"nyers_oldd!F57","v":"miau262"},"Pitlik László-Pitlik László, ifj.:Storyboard: QuILT 2.0 – Popular-science-level in exam-situations or it would be possible even more? = AI-based modelling the term of decadence  xx  https://miau.my-x.hu/miau/quilt/2020/quilt2/launching2020V13/quilt_2_0_final_exam_decadence_index.docx"]
[{"$f":"nyers_oldd!F59","v":"miau262"},"Pitlik László-Pitlik László, ifj.:Werkfilm: Decadence-index and sustainability-index for the USA  xx  https://miau.my-x.hu/miau/quilt/2020/quilt2/launching2020V13/part7.html"]
[{"$f":"nyers_oldd!F61","v":"miau262"},"Pitlik László-Pitlik László, ifj.:Storyboard: QuILT 2.0 – Layer-integration – or Food-Kaleidoscope-based knowledge tests in 2DM-frames  xx  https://miau.my-x.hu/miau/quilt/2020/quilt2/launching2020V06/quilt_2_0_2dm_and_food_kaleidoscope.docx"]
[{"$f":"nyers_oldd!F63","v":"miau262"},"Pitlik László-Pitlik László, ifj.:Werkfilm: Food-Kaleidoscope-based knowledge-tests in 2DM-frames  xx  https://miau.my-x.hu/miau/quilt/2020/quilt2/launching2020V06/part6.html"]
["Magyar Internetes Agrárinformatikai Újság (MIAÚ),2020,23,263"]
[{"$f":"nyers_oldd!F65","v":"miau263"},"Pitlik László:Erőből történő megoldási kísérletek megalapozása egy geometriai kihívás kapcsán  xx  https://miau.my-x.hu/bprof/router_geometria_erobol.xlsx"]
[{"$f":"nyers_oldd!F67","v":"miau263"},"Pitlik László:Egy közismert IQ-tesztfeladat erőből történő megoldási kísérleteinek megalapozása  xx  https://miau.my-x.hu/bprof/japan_iq_erobol.xlsx"]
[{"$f":"nyers_oldd!F69","v":"miau263"},"Pitlik László-Pitlik László, ifj.:A kongruenciáról - oktatási szintek szerint  xx  https://miau.my-x.hu/bprof/kongruencia_demo.xlsx"]
[{"$f":"nyers_oldd!F71","v":"miau263"},"Pitlik László-Rikk János:Tantárgy-fúziós komplex feladat-variánsok – 2020/2021 őszi (1.) félév – BPROF nappali/levelező  xx  https://miau.my-x.hu/bprof/bprof20202021osz_v3.docx"]
[{"$f":"nyers_oldd!F73","v":"miau263"},"Pitlik László:Universal classification method involving explorative model-bubbles  xx  https://miau.my-x.hu/miau/263/classification_tool.xlsx"]
[{"$f":"nyers_oldd!F75","v":"miau263"},"Pitlik László-Márta Attila:Robot-turisztikai-tanácsadó, avagy az emberi preferencia-hiány automatizált kezelése  xx  https://miau.my-x.hu/miau/263/bank-var-13.xlsx"]
[{"$f":"nyers_oldd!F77","v":"miau263"},"Barta Gergő-Pitlik László:Hipotézis-tervezés PhD-disszertációkhoz - Konzisztens gépi tanuló modellezés beltéri felhasználói lokalizáció meghatározásának pontosítására  xx  https://miau.my-x.hu/miau/263/Barta_Pitlik_final_no_remarks.docx"]
["Magyar Internetes Agrárinformatikai Újság (MIAÚ),2020,23,264"]
[{"$f":"nyers_oldd!F79","v":"miau264"},"Pitlik László:Az autodidakta/kritikus tanulás mintázatai – III. rész  xx  https://miau.my-x.hu/bprof/autodidakta_kritikus_tanulas_mintazatai_p3.docx"]
[{"$f":"nyers_oldd!F81","v":"miau264"},"Pitlik László:Az autodidakta/kritikus tanulás mintázatai – II. rész  xx  https://miau.my-x.hu/bprof/autodidakta_kritikus_tanulas_mintazatai_p2.docx"]
[{"$f":"nyers_oldd!F83","v":"miau264"},"Pitlik László:Az autodidakta/kritikus tanulás mintázatai – I. rész  xx  https://miau.my-x.hu/bprof/autodidakta_kritikus_tanulas_mintazatai.docx"]
[{"$f":"nyers_oldd!F85","v":"miau264"},"Pitlik Marcell:Bevezetés a képfeldolgozásba - autós forgalomszámlálás  xx  https://miau.my-x.hu/miau/264/kepfeldolgozas/hf_ZUBYPT.pdf"]
[{"$f":"nyers_oldd!F87","v":"miau264"},"Pitlik László-Pitlik Marcell-Pitlik Mátyás-Pitlik László, ifj.-Dávid Roland-Lovass László,-Tamás Krisztina,-Mórucz Norbert:EEG-azdálkodás avagy Fenntarthatóság és Pillangó-hatások  xx  https://miau.my-x.hu/miau/264/PL_DR_sustain butterfly hun.pdf"]
[{"$f":"nyers_oldd!F89","v":"miau264"},"Kóródi Gyula-Pitlik László-Rikk János:(Detecting the circaseptan pattern in COVID-19 infections and deaths for quality management of health-related data assets)  xx  https://miau.my-x.hu/miau/264/kb7.pdf"]
[null,"***"]

{"sheet":"matarka (2)","index":2,"n_rows":23,"n_cols":2,"rows_kept":23,"cut":false,"hidden":false,"merged":[]}
[null,"***"]
["Magyar Internetes Agrárinformatikai Újság (MIAÚ),2020,23,259"]
[{"$f":"nyers_oldd!F1","v":"miau261"},"Pitlik László-Pitlik Marcell:Intézményi személetváltási folyamat proaktív előkészítése az IT-szakértők által  xx  https://miau.my-x.hu/miau/quilt/2020/proaktiv_it.docx"]
[{"$f":"nyers_oldd!F3","v":"miau261"},"Pitlik László-Pitlik Marcell:Adatbázis-orientált adatvagyon-gazdálkodás vs. spontán projektmenedzsment  xx  https://miau.my-x.hu/miau/259/afterkickoff.docx"]
[{"$f":"nyers_oldd!F5","v":"miau261"},"Pitlik Dóra:Az online oktatással kapcsolatos kérdések diákok és tanárok között  xx  https://miau.my-x.hu/miau/259/tavoktatas_esethalmaz1.docx"]
[{"$f":"nyers_oldd!F7","v":"miau261"},"Pitlik László:RIS-alapú adatintegrációk: MIAÚ-MATARKA-MTMT (hangosfilm)  xx  https://miau.my-x.hu/miau/259/RIS.docx"]
[{"$f":"nyers_oldd!F9","v":"miau261"},"Pitlik László:Rendszertervezési, specifikáció-készítési, projekt-generálási példák  xx  https://miau.my-x.hu/miau/259/Rendszertervezes_specifikacio_projekt-generalas_demo.docx"]
[{"$f":"nyers_oldd!F11","v":"miau261"},"Anonim Szerzők:Az informatika története  xx  https://miau.my-x.hu/miau/259/tortenet_ppt/Az_informatika_tortenete.pdf"]
[{"$f":"nyers_oldd!F13","v":"miau261"},"Pitlik László-Pitlik Marcell:Információs rendszerek tervezésére való felkészülés IT-laikusok számára  xx  https://miau.my-x.hu/miau/259/erp_special.docx"]
["Magyar Internetes Agrárinformatikai Újság (MIAÚ),2020,23,260"]
[{"$f":"nyers_oldd!F15","v":"miau261"},"Pitlik László-Pitlik László, ifj.:Werkfilm: From \"how to produce an OAM behind an article\" to \"the article/case-study/publication about H1N1\"  xx  https://miau.my-x.hu/miau/quilt/2020/quilt2/launching2020III25/part0.html"]
[{"$f":"nyers_oldd!F17","v":"miau261"},"Pitlik László-Pitlik László, ifj.:Werkfilm: The Robot-Historian & The Cold-War  xx  https://miau.my-x.hu/miau/quilt/2020/quilt2/launching2020IV15/part3.html"]
[{"$f":"nyers_oldd!F19","v":"miau261"},"Pitlik László-Pitlik László, ifj.:Werkfilm: Teach others - based on big-data and solver-oriented AI - Food-Kaleidoscope - The Case Congo  xx  https://miau.my-x.hu/miau/quilt/2020/quilt2/launching2020IV22/part4.html"]
[{"$f":"nyers_oldd!F21","v":"miau261"},"Pitlik László-Pitlik László, ifj.:Werkfilm: Exam-situations based on big-data and solver-oriented AI  xx  https://miau.my-x.hu/miau/quilt/2020/quilt2/launching2020IV29/part5.html"]
[{"$f":"nyers_oldd!F23","v":"miau261"},"Pitlik László-Pitlik László, ifj.:Storyboard: QuILT 2.0, or the new area of the asynchronous distance education/learning - the case of H1N1  xx  https://miau.my-x.hu/miau/quilt/2020/quilt2/launching2020IV08/quilt_2_0.docx"]
[{"$f":"nyers_oldd!F25","v":"miau261"},"Pitlik László-Pitlik László, ifj.:Storyboard: QuILT 2.0 – roundtable of avatars in the asynchronous distance education/learning – the case \"Cold-War\" from a Robot-Historian with a positive Turing-test  xx  https://miau.my-x.hu/miau/quilt/2020/quilt2/launching2020IV15/quilt_2_0_round_table_1_0.docx"]
[{"$f":"nyers_oldd!F27","v":"miau261"},"Pitlik László-Pitlik László, ifj.:Storyboard: QuILT 2.0 – Teach-others with avatars in frame of an asynchronous distance education/learning – the case \"Food-Kaleidoscope\"  xx  https://miau.my-x.hu/miau/quilt/2020/quilt2/launching2020IV22/quilt_2_0_teach_others_1_0.docx"]
[{"$f":"nyers_oldd!F29","v":"miau261"},"Pitlik László-Pitlik László, ifj.:Storyboard: QuILT 2.0 – Exam versions in frame of an asynchronous distance education/learning – the 21st century is here  xx  https://miau.my-x.hu/miau/quilt/2020/quilt2/launching2020IV29/quilt_2_0_exam_version_xxi_century.docx"]
[{"$f":"nyers_oldd!F31","v":"miau261"},"Pitlik László:Food-Kaleidoscope - The Case of Hungary  xx  https://miau.my-x.hu/miau/quilt/2020/quilt2/launching2020IV22/food_kaleidoscope.docx"]
[{"$f":"nyers_oldd!F33","v":"miau261"},"Pitlik László:Turing-test for a Robot-Historian (or about the force fields of the Cold-War based on big-data and AI)  xx  https://miau.my-x.hu/miau/quilt/2020/quilt2/launching2020IV15/turing_test_for_robot_historian_cold_war.docx"]
[{"$f":"nyers_oldd!F35","v":"miau261"},"Pitlik László:H1N1 – SCANDAL? (proving former suspicions - based on an artificial-intelligence- and a big-data-driven approach)  xx  https://miau.my-x.hu/miau/quilt/2020/quilt2/launching2020IV08/H1N1_v1.docx"]
[{"$f":"nyers_oldd!F37","v":"miau261"},"Pitlik László-Pitlik Marcell:Sovereignty-oriented/PLA-based future of the (higher) education or case study how to measure the future-readiness?!  xx  https://miau.my-x.hu/miau/quilt/2020/sovereignty-pla.docx"]
[null,"***"]

{"sheet":"matarka_old","index":3,"n_rows":30,"n_cols":2,"rows_kept":30,"cut":false,"hidden":false,"merged":[]}
[null,"***"]
["Magyar Internetes Agrárinformatikai Újság (MIAÚ),2018,21,239"]
[{"$f":"nyers_old!F1","v":"miau239"},"Pitlik László-Pitlik Marcell-Pitlik Mátyás-Pitlik László, ifj. :Közlekedési döntések racionalitásának modellezése   xx  http://miau.gau.hu/miau/239/kvant_behavior_patterns_v1.docx"]
[{"$f":"nyers_old!F3","v":"miau239"},"Pitlik László-Pitlik Marcell:Konzisztencia-orientált modell-hibridizáció látszólag triviális műszaki jelenségek kezelésére  xx  http://miau.gau.hu/miau/239/konzisztencia_alapu_hibridizacio_v1.docx"]
[{"$f":"nyers_old!F5","v":"miau239"},{"$f":"nyers_old!G5&nyers_old!H5&nyers_old!I5&nyers_old!J5&nyers_old!K5","v":"Pitlik László:Konzisztencia-orientált előrejelzés és foresight a kortárs jövőkutatásban  xx  http://miau.gau.hu/miau/239/2Pitlik_Laszlo_konzisztencia_full.docx"}]
[{"$f":"nyers_old!F7","v":"miau239"},{"$f":"nyers_old!G7&nyers_old!H7&nyers_old!I7&nyers_old!J7&nyers_old!K7","v":"Pitlik László:Kivonatok: Konzisztencia-orientált előrejelzés és foresight a kortárs jövőkutatásban  xx  http://miau.gau.hu/miau/239/2Pitlik_Laszlo_konzisztencia.docx"}]
[{"$f":"nyers_old!F9","v":"miau239"},"Pitlik László-Pitlik László, ifj.-Pitlik Mátyás-Pitlik Marcell-Gyimesi Áron:Development of smart traffic evaluation- and influence-modules\u000bbased on non-declarative rules of artificial intelligence  xx  http://miau.gau.hu/miau/239/kosice.pptx"]
["Magyar Internetes Agrárinformatikai Újság (MIAÚ),2018,21,240"]
[{"$f":"nyers_old!F11","v":"miau240"},"Pitlik László-Pitlik Marcell-Pitlik Mátyás-Pitlik László, ifj. :Lámpa-terhelésindex számítása lámpaprogram-sorrendek becslése érdekében  xx  http://miau.gau.hu/miau/240/lampaprogramok_versenye.docx"]
[{"$f":"nyers_old!F13","v":"miau240"},"Pitlik László-Pitlik Marcell-Pitlik Mátyás-Pitlik László, ifj. :Döntéstámogatási operatív rétegek a közlekedés-optimalizálásban I. rész  xx  http://miau.gau.hu/miau/240/traffic_layers_1.docx"]
[{"$f":"nyers_old!F15","v":"miau240"},"Pitlik László-Pitlik Marcell-Pitlik Mátyás-Pitlik László, ifj. :Közlekedési lámpák ki/be-kapcsolásának mesterséges intelligencia-alapú vezérlése  xx  http://miau.gau.hu/miau/240/lampa_ki_be.docx"]
[{"$f":"nyers_old!F17","v":"miau240"},"Pitlik László-Pitlik Marcell-Pitlik Mátyás-Pitlik László, ifj. :Játékosított keretrendszerben történő tanulás log-adatainak elemzése  xx  http://miau.gau.hu/miau/240/2dm_phase2.docx"]
[{"$f":"nyers_old!F19","v":"miau240"},{"$f":"nyers_old!G19&nyers_old!H19&nyers_old!I19&nyers_old!J19&nyers_old!K19","v":"Barta Gergő:Szakirodalmi alapozás és kutatási terv, avagy egy komplex vizsga dokumentumai  xx  http://miau.gau.hu/miau/240/komplex/"}]
[{"$f":"nyers_old!F21","v":"miau240"},{"$f":"nyers_old!G21&nyers_old!H21&nyers_old!I21&nyers_old!J21&nyers_old!K21","v":"Czúni Dániel:A LEADER-jelenség \"hatása\", avagy kezdeti lépések az \"Innovátorrá\" válás útján  xx  http://miau.gau.hu/miau/240/100.docx"}]
[{"$f":"nyers_old!F23","v":"miau240"},"Pitlik László-Pitlik Marcell :A minden másként egyforma elv hatása az összefüggéskeresésre és az anomália-feltárásra   xx  http://miau.gau.hu/miau/240/x2y2r2.xlsx"]
["Magyar Internetes Agrárinformatikai Újság (MIAÚ),2018,21,238"]
[{"$f":"nyers_old!F25","v":"miau238"},"Pitlik László-Pitlik László, ifj.-Pitlik Marcell:Rosling-animációk didaktikai potenciálja a tanításban/tanulásban  xx  http://miau.gau.hu/miau/238/mmo2018_rosling.pptx"]
[{"$f":"nyers_old!F27","v":"miau238"},"Pitlik László-Pitlik László, ifj.-Pitlik Mátyás:Játékosított keretrendszerben történő tanulásból nyert log-adatokra alapozó profilírozás  xx  http://miau.gau.hu/miau/238/mmo2018_2dm.pptx"]
[{"$f":"nyers_old!F29","v":"miau238"},"Pitlik László-Pitlik László, ifj.-Pitlik Mátyás:Játékosított keretrendszerben történő tanulásból nyert log-adatokra alapozó profilírozás  xx  http://miau.gau.hu/miau/238/mmo2018_2dm_vagott.mp3"]
[{"$f":"nyers_old!F31","v":"miau238"},"Pitlik László-Pitlik László, ifj.-Pitlik Mátyás-Pitlik Marcell-Gyimesi Áron:Development of smart traffic evaluation- and influence-modules based on non-declarative rules of artificial intelligence  xx  http://miau.gau.hu/miau/238/Manuscript_Template_2017_myx.docx"]
[{"$f":"nyers_old!F33","v":"miau238"},{"$f":"nyers_old!G33&nyers_old!H33&nyers_old!I33&nyers_old!J33&nyers_old!K33","v":"Pitlik Mátyás:2DM-keretrendszer  xx  http://miau.gau.hu/miau/238/2dm"}]
[{"$f":"nyers_old!F35","v":"miau238"},"Pitlik László-Pitlik László, ifj.-Pitlik Marcell:Rosling-animációk didaktikai potenciálja a tanításban/tanulásban  xx  http://miau.gau.hu/miau/238/rosling_didactics.doc"]
[{"$f":"nyers_old!F37","v":"miau238"},"Pitlik László-Pitlik László, ifj.-Pitlik Marcell:Rosling-animációk didaktikai potenciálja a tanításban/tanulásban  xx  http://miau.gau.hu/miau/238/rosling_didactics_full_v1.doc"]
[{"$f":"nyers_old!F39","v":"miau238"},"Pitlik László-Pitlik László, ifj.-Pitlik Mátyás:Játékosított keretrendszerben történő tanulásból nyert log-adatokra alapozó profilírozás  xx  http://miau.gau.hu/miau/238/log_profile_full_v2.doc"]
[{"$f":"nyers_old!F41","v":"miau238"},"Pitlik László-Pitlik László, ifj.-Pitlik Mátyás:Játékosított keretrendszerben történő tanulásból nyert log-adatokra alapozó profilírozás  xx  http://miau.gau.hu/miau/238/log_profile.doc"]
[{"$f":"nyers_old!F43","v":"miau238"},"Pitlik László-Szani Ferenc-Mihályi Gabriella:A tacit tudás tudásmérnöki kezelésének lehetőségei a mesterséges intelligencia-alapú fogalomalkotás keretei között  xx  http://miau.gau.hu/miau/238/tacit_v1.pptx"]
[{"$f":"nyers_old!F45","v":"miau238"},"Pitlik László-Szani Ferenc-Mihályi Gabriella:A tacit tudás tudásmérnöki kezelésének lehetőségei a mesterséges intelligencia-alapú fogalomalkotás keretei között  xx  http://miau.gau.hu/miau/238/tacit_v1.docx"]
[{"$f":"nyers_old!F47","v":"miau238"},{"$f":"nyers_old!G47&nyers_old!H47&nyers_old!I47&nyers_old!J47&nyers_old!K47","v":"Pitlik László:A kiemelt figyelmet elváró jelenségek feltárásának modellezése  xx  http://miau.gau.hu/miau/238/exploring_critical_attributes_for_risk_management_v1.docx"}]
[null,"***"]
[null,{"$f":"nyers_old!G66&nyers_old!H66&nyers_old!I66&nyers_old!J66&nyers_old!K66","v":""}]

{"sheet":"matarka","index":4,"n_rows":88,"n_cols":2,"rows_kept":88,"cut":false,"hidden":false,"merged":[]}
[null,"***"]
["Magyar Internetes Agrárinformatikai Újság (MIAÚ),2021,24,275"]
["miau275",{"$f":"nyers!G1&nyers!H1&nyers!I1&nyers!J1&nyers!K1","v":"Pitlik László:COCO-MCM lépcsőszám optimalizálási kísérletek  xx  https://miau.my-x.hu/miau/275/coco_mcm_opt_perx.xlsx"}]
["miau275",{"$f":"nyers!G3&nyers!H3&nyers!I3&nyers!J3&nyers!K3","v":"Pitlik László:Nyelvi rekeszelés, avagy hogyan érzékeltessük írásban a hangsúlyozást avatárok számára  xx  https://miau.my-x.hu/miau/275/nyelvi_rekeszeles.docx"}]
["miau275",{"$f":"nyers!G5&nyers!H5&nyers!I5&nyers!J5&nyers!K5","v":"Pitlik László:Counting of distinct values based on Excel-functions  xx  https://miau.my-x.hu/miau/275/occamsrazor_special.xlsx"}]
["miau275",{"$f":"nyers!G7&nyers!H7&nyers!I7&nyers!J7&nyers!K7","v":"Pitlik Marcell:Félvezetők gyártási hibájának automatizált felismerése tömeges szenzor-adatok alapján  xx  https://miau.my-x.hu/miau/275/semiconductors_SECOM_PM.docx"}]
["miau275",{"$f":"nyers!G9&nyers!H9&nyers!I9&nyers!J9&nyers!K9","v":"Pitlik Marcell:Félvezetők gyártási hibájának felismerése lépcsős függvényekkel a SECOM adatbázis alapján  xx  https://miau.my-x.hu/miau/275/secom_pm_2.pptx"}]
["miau275","Pitlik László-Barta Gergő:Anti-diszkriminatív modellezés közelítése solver-alapú neurális hálókkal  xx  https://miau.my-x.hu/miau/275/solver-based-neural-networks.docx"]
["miau275","Pitlik László-Pitlik Marcell:A lépcsős függvények szimmetria-alapú validitása és a nyersadatok kapcsolata  xx  https://miau.my-x.hu/miau/275/validity.docx"]
["miau275",{"$f":"nyers!G15&nyers!H15&nyers!I15&nyers!J15&nyers!K15","v":"Pitlik László:MP3: Automatizáció a kis és kkv-szektorban  xx  https://miau.my-x.hu/miau/275/3of3.mp3"}]
["Magyar Internetes Agrárinformatikai Újság (MIAÚ),2021,24,276"]
["miau276","Pitlik László, ifj.:Tanári záróvizsga - Szakdolgozatvédés - Tudásszintmérő tesztek  xx  https://miau.my-x.hu/matkut/eredmenyek/szd_vedes-PitlikL.pptx"]
["miau276",{"$f":"nyers!G19&nyers!H19&nyers!I19&nyers!J19&nyers!K19","v":"Varga Dorottya:Ár-kockázat értékelés - VÉRNYOMÁSCSÖKKENTŐK  xx  https://miau.my-x.hu/miau/276/oe/ACE_gatlok/ACE-gatlok.pdf"}]
["miau276",{"$f":"nyers!G21&nyers!H21&nyers!I21&nyers!J21&nyers!K21","v":"Kis András Nándor:Döntési esetjáték – optimalizált kezelése avagy kuratóriumi döntések robotizálási kísérletei  xx  https://miau.my-x.hu/miau/276/oe/kuratorium/ux63p9_doku_final.pdf"}]
["miau276",{"$f":"nyers!G23&nyers!H23&nyers!I23&nyers!J23&nyers!K23","v":"Dlehány Noémi:Milyen mobilt vegyek 2021-ben?  xx  https://miau.my-x.hu/miau/276/oe/smartphones/smartphones.pdf"}]
["miau276","Mácz Andrea-Pitlik Marcell-Nyomárkay Kristóf-Németh Tamás:PPT: Autós forgalom számlálása  xx  https://miau.my-x.hu/miau/276/forgalomszamlalas/GL_projekt_vegleges.pptx"]
["miau276","Mácz Andrea-Pitlik Marcell-Nyomárkay Kristóf-Németh Tamás:Autós forgalom számlálása  xx  https://miau.my-x.hu/miau/276/forgalomszamlalas/GL_projekt_NT_NYK_MA_PM.pdf"]
["miau276",{"$f":"nyers!G29&nyers!H29&nyers!I29&nyers!J29&nyers!K29","v":"Ujlaki Richárd:Hol éri meg legjobban egy VIR-fejlesztői központot létrehozni Európában és miért?  xx  https://miau.my-x.hu/miau/276/kje/vir/vir.docx"}]
["miau276",{"$f":"nyers!G31&nyers!H31&nyers!I31&nyers!J31&nyers!K31","v":"Györgydeák Balázs Péter:Szakdolgozat: A szoftverfejlesztés gazdaságtana  xx  https://miau.my-x.hu/miau/276/kje/szd1/a_szoftverfejlesztees_gazdasagtana.pdf"}]
["miau276","Bagdi Dóra-Dúcs Attila-Martonosi Edit:Reprodukálási rejtvény: Hogyan lehet a klasszikus kérdőív értelmezéstől eljutni a modern adatelemzésig  xx  https://miau.my-x.hu/miau/276/kje/questionnaires/Alkalmazott informatika (k%e9sz).docx"]
["miau276",{"$f":"nyers!G35&nyers!H35&nyers!I35&nyers!J35&nyers!K35","v":"Pétery Zoltán:Utasbiztosítási szokások feltérképezése kimutatások és elemző modulok segítségével a kiegészítő fedezetek tekintetében  xx  https://miau.my-x.hu/miau/276/kje/mcm/pz.pdf"}]
["miau276",{"$f":"nyers!G37&nyers!H37&nyers!I37&nyers!J37&nyers!K37","v":"Csizmadia Szilvia:WHICH EUROPEAN COUNTRY IS THE BEST TO LIVE IN? / WO LEBT SICH AM BESTEN IN EUROPA?  xx  https://miau.my-x.hu/miau/276/kje/eu/Szilvia Csizmadia KJO0IX Ranking EU.pdf"}]
["miau276",{"$f":"nyers!G39&nyers!H39&nyers!I39&nyers!J39&nyers!K39","v":"Pitlik Marcell:Égések mesterséges intelligencia-alapú elemzése  xx  https://miau.my-x.hu/miau/276/ARM_HF_PM.pptx"}]
["miau276","Pitlik László-Pitlik Dóra:A leggyakrabban használt Google felhőszolgáltatások bemutatása és azok gyakorlati alkalmazhatóságának megismertetése  xx  https://miau.my-x.hu/miau/276/google_services.docx"]
["miau276","Pitlik László-Pitlik Mátyás:Részletek egy kísérleti HPC-projekt kommunikációjából  xx  https://miau.my-x.hu/miau/276/hpc_spec.docx"]
["miau276","Pitlik László, ifj.:Tudásszintmérő tesztek: a feladattípusok és a tanulói válaszadási stratégiák vizsgálata (szakdolgozat)  xx  https://miau.my-x.hu/matkut/eredmenyek/szakdolgozat-pL-sign.pdf"]
["miau276","Pitlik László, ifj.:Egyedi kérdőívezési keretrendszer éles verziója PHP-alapon  xx  https://miau.my-x.hu/matkut/"]
["Magyar Internetes Agrárinformatikai Újság (MIAÚ),2021,24,277"]
["miau277","Pitlik László-Rikk János:Publikációk anonim, párhuzamos bírálatainak anomáliái  xx  https://miau.my-x.hu/miau/275/review_anomalies.docx"]
["miau277",{"$f":"nyers!G51&nyers!H51&nyers!I51&nyers!J51&nyers!K51","v":"Pitlik László:Solver-alapú problémamegoldás, avagy ami a matematikai oktatásból kimaradt  xx  https://miau.my-x.hu/miau/277/KE2021_KJE.pptx"}]
["miau277",{"$f":"nyers!G53&nyers!H53&nyers!I53&nyers!J53&nyers!K53","v":"Pitlik László:Solver-es kompetenciamérésre alkalmas alapfeladat  xx  https://miau.my-x.hu/miau/277/solver_kompetenciameres_8_10_2020.xlsx"}]
["miau277","Pitlik László-Pitlik Marcell:Mirror-ball-based seeing in multi-layered evaluation I.  xx  https://miau.my-x.hu/miau/277/mirror_ball_based_multi_layered_evaluation.docx"]
["miau277","Pitlik László-Pitlik László, ifj.:Multi-layered, objective, optimized evaluation of strategies over static code analysis tools  xx  https://miau.my-x.hu/miau/277/multi_layered_evaluation_of_static_code_analysis_tools.docx"]
["miau277",{"$f":"nyers!G59&nyers!H59&nyers!I59&nyers!J59&nyers!K59","v":"Pitlik László:Kihívás/felhívás: hogyan lehetséges az anti-diszkriminatív modellezés neurális hálókra alapozva?  xx  https://miau.my-x.hu/miau/277/ann_anti-discriminative-potential_v1.xlsx"}]
["miau277","Anonim Hallgatók-Pitlik László:Blokklánc-tananyag (autodidakta) fejlesztése (avagy kulcsszavak és ezek fa-jellegű, ill. hipertextes kapcsolatai)  xx  https://miau.my-x.hu/miau/277/blokklanc_tananyagfejlesztes_v1.docx"]
["miau277","Mácz Andrea-Nyomárkay Kristóf-Svastits Áron-Szabó Gábor Péter-Németh Tamás-Pitlik Marcell:Történeti áttekintés a kőolajról  xx  https://miau.my-x.hu/miau/277/NXEG_MA_NT_SA_SZG_NYK_PM.pdf"]
["miau277",{"$f":"nyers!G65&nyers!H65&nyers!I65&nyers!J65&nyers!K65","v":"Pitlik Marcell:Térfogati égés optikai vizsgálata és mesterséges intelligencia alapú elemzése  xx  https://miau.my-x.hu/miau/277/szakdoga_PM_final.pdf"}]
["miau277",{"$f":"nyers!G67&nyers!H67&nyers!I67&nyers!J67&nyers!K67","v":"Krenner Bálint:Melyik az a 4jegyű szám, ...?   xx  https://miau.my-x.hu/miau/277/solver_helyett"}]
["miau277",{"$f":"nyers!G69&nyers!H69&nyers!I69&nyers!J69&nyers!K69","v":"Pitlik László:Az IT-fejlődés és a fenntarthatóság kapcsolata  xx  https://miau.my-x.hu/miau/277/IT_sustainability.pptx"}]
["miau277",{"$f":"nyers!G71&nyers!H71&nyers!I71&nyers!J71&nyers!K71","v":"Pitlik László:Szövegelemzés (avagy az önkényes semmit mondás tételes leleplezése)  xx  https://miau.my-x.hu/miau/277/kje_fenntarthatosag_IT_szemmel.docx"}]
["Magyar Internetes Agrárinformatikai Újság (MIAÚ),2021,24,278"]
["miau278",{"$f":"nyers!G73&nyers!H73&nyers!I73&nyers!J73&nyers!K73","v":"Pitlik László:A new approach instead of the Proof of Work (PoW) in case of blockchains  xx  https://miau.my-x.hu/miau/278/instead_of_PoW.xlsx"}]
["miau278","Pitlik László-Pitlik László, ifj.:Corresemblance – core-resemblance, or deriving of the non-existence of information added-values  xx  https://miau.my-x.hu/miau/278/Corresemblance.docx"]
["miau278","Nagy Richárd-Pitlik László:IT-biztonsági ismeretek számonkérésének variánsai, stratégiái és szintjei  xx  https://miau.my-x.hu/mediawiki/index.php/ITB"]
["miau278","Pitlik László-Pitlik Marcell:Solver-alapú fuzzy modellek vs. hasonlóságelemzés-variánsok versenye  xx  https://miau.my-x.hu/miau/275/fuzzy_2x_6trapez_4pont_bc_no_azonossag_ifthen_eset10_new.xlsx"]
["miau278","Pitlik László:SUM() derived through PRODUCT()  xx  https://miau.my-x.hu/miau/278/szorzas_alapjan_modellezett_osszeadas.xlsx"]
["miau278",{"$f":"nyers!G83&nyers!H83&nyers!I83&nyers!J83&nyers!K83","v":"Pitlik László:Dinamikus versenyelemzés Google Trends-adatok alapján  xx  https://miau.my-x.hu/miau/278/docler_v1.xlsx"}]
["miau278",{"$f":"nyers!G85&nyers!H85&nyers!I85&nyers!J85&nyers!K85","v":"Pitlik László:Alul- és túlteljesítés matematikai letapogatása többkörös szavazás első körös eredményei alapján a második kört illetően  xx  https://miau.my-x.hu/miau/278/valasztasok2.xlsx"}]
["miau278",{"$f":"nyers!G87&nyers!H87&nyers!I87&nyers!J87&nyers!K87","v":"Barta Gergő:An artificial intelligence based approach to detect internal control deficiencies  xx  https://miau.my-x.hu/miau/278/bartagergo.mp4"}]
["Magyar Internetes Agrárinformatikai Újság (MIAÚ),2021,24,279"]
["miau279",{"$f":"nyers!G89&nyers!H89&nyers!I89&nyers!J89&nyers!K89","v":"Nagy Balázs:A virágméz árának változása az elmúlt két évben (avagy lehet-e két boltlánc ár-képzése egyformán kedvező?)  xx  https://miau.my-x.hu/miau/279/mez.docx"}]
["miau279",{"$f":"nyers!G91&nyers!H91&nyers!I91&nyers!J91&nyers!K91","v":"Nyeste Kristóf:COVID adatvagyon minőségbiztosításának anomáliái  xx  https://miau.my-x.hu/miau/279/covid_data_asset_anomalies.docx"}]
["miau279",{"$f":"nyers!G93&nyers!H93&nyers!I93&nyers!J93&nyers!K93","v":"Farkas Ádám:Vajon meghatározható-e, melyik a legjobb programozási nyelv?  xx  https://miau.my-x.hu/miau/279/programnyelvek.docx"}]
["miau279","Gulyás Oldal Laura-Pitlik László:Személyek korkülönbségének becslése kézgeometriai jellemzők alapján  xx  https://miau.my-x.hu/miau/279/keztenyerkor.docx"]
["miau279",{"$f":"nyers!G97&nyers!H97&nyers!I97&nyers!J97&nyers!K97","v":"Kamenár Dávid:A COVID-19 vírus elleni védekezés sikeressége az Európai Unió tagállamaiban a 4. hullám idején  xx  https://miau.my-x.hu/miau/279/covid.docx"}]
["miau279",{"$f":"nyers!G99&nyers!H99&nyers!I99&nyers!J99&nyers!K99","v":"Szepesi Judit Zsuzsa:Hatékonyságnövelés a bérszámfejtés kapcsán - Munkaidő adatokból importálható állományok előállítása makro segítségével  xx  https://miau.my-x.hu/miau/279/macro.docx"}]
["miau279",{"$f":"nyers!G101&nyers!H101&nyers!I101&nyers!J101&nyers!K101","v":"Szabó Kerecsen:Magyarország egészségügyi állapotának leírása - Egyenszilárdság-mérés területi alapon  xx  https://miau.my-x.hu/miau/279/teir.docx"}]
["miau279",{"$f":"nyers!G103&nyers!H103&nyers!I103&nyers!J103&nyers!K103","v":"Tóth Zoltán:Ki is a jobb F1-pilóta valójában – avagy naiv és optimalizált kockázatelemzések  xx  https://miau.my-x.hu/miau/279/formula1.docx"}]
["miau279",{"$f":"nyers!G105&nyers!H105&nyers!I105&nyers!J105&nyers!K105","v":"Burián Sándor:Egészségügyi adatok OLAP-szintű keresője kockázatelemzési célra  xx  https://miau.my-x.hu/miau/279/olap_alapu_oktatas.mp4"}]
["miau279",{"$f":"nyers!G107&nyers!H107&nyers!I107&nyers!J107&nyers!K107","v":"Száraz Bence:Gyanú felderítés online szerepjátékban solver segítségével  xx  https://miau.my-x.hu/miau/279/esport.docx"}]
["miau279",{"$f":"nyers!G109&nyers!H109&nyers!I109&nyers!J109&nyers!K109","v":"Hegedűs Imre Bence:Az iPhone okostelefonok fejlődésének világa – a generációk közötti hasonlóságok elemzése robotszemmel  xx  https://miau.my-x.hu/miau/279/iphone.docx"}]
["miau279",{"$f":"nyers!G111&nyers!H111&nyers!I111&nyers!J111&nyers!K111","v":"Csuba Krisztián Ádám, Nguyen Van Nam Tamás:Mennyire egyenszilárd az EU-ban az egészségügy országonkénti összevetésben 2019-ben?  xx  https://miau.my-x.hu/miau/279/eu_egyenszilardsag.docx"}]
["miau279","Almásy Márton György-Hörömpő András:Jutalomfüggvények hasonlóságainak értékelése – avagy egy-egy jobb függvény megtalálásának stratégiája  xx  https://miau.my-x.hu/miau/279/jutalomfuggvenyek.docx"]
["miau279",{"$f":"nyers!G115&nyers!H115&nyers!I115&nyers!J115&nyers!K115","v":"Ács Kinga:Lehet-e robotizálni egy cég stratégiai tervezését?  xx  https://miau.my-x.hu/miau/279/elorejelzes.docx"}]
["miau279","Vincze Miklós-Somogyi Kristóf:Orvos-beteg dialógusok - avagy eszkalációs kockázatok elemzése  xx  https://miau.my-x.hu/miau/279/orvos_beteg.docx"]
["miau279",{"$f":"nyers!G119&nyers!H119&nyers!I119&nyers!J119&nyers!K119","v":"Karácsonyi Krisztián:Egymillió főre jutó balesetek kockázatelemzése megyénkénti felosztásban  xx  https://miau.my-x.hu/miau/279/balesetek.docx"}]
["miau279",{"$f":"nyers!G121&nyers!H121&nyers!I121&nyers!J121&nyers!K121","v":"Molnár Vince Nándor:Oktatás, kultúra és bűncselekmények, álláskeresés konzisztens kapcsolatainak vizsgálata - Robot-pszichológus, robot-szociológus  xx  https://miau.my-x.hu/miau/279/jo_rossz_kolcsonhatasok.docx"}]
["miau279",{"$f":"nyers!G123&nyers!H123&nyers!I123&nyers!J123&nyers!K123","v":"Szakács Péter Barnabás:API műveletek tiltása tűzfal modul esetén - kockázatelemzés  xx  https://miau.my-x.hu/miau/279/tiltas.docx"}]
["miau279",{"$f":"nyers!G125&nyers!H125&nyers!I125&nyers!J125&nyers!K125","v":"Kovács Péter Pál:Kémiai konzisztencia teszt rekonstruálása / Módosított Herington teszt rekonstrukciója adathalmazt jellemző értékekből - kockázatelemzés  xx  https://miau.my-x.hu/miau/279/kemia.docx"}]
["miau279",{"$f":"nyers!G127&nyers!H127&nyers!I127&nyers!J127&nyers!K127","v":"Varga-Dudás József:A processzorok zavaros világa letisztult robotszemmel – avagy a melyiket válasszam kérdés egyértelmű válasza  xx  https://miau.my-x.hu/miau/279/proc.docx"}]
["miau279",{"$f":"nyers!G129&nyers!H129&nyers!I129&nyers!J129&nyers!K129","v":"Csaba Dávid:A legkockázatosabb munkavállalók és az általuk elkövetett hibák feltárása / Cél: A leghatékonyabb egyedi termelés  xx  https://miau.my-x.hu/miau/279/gyartas.docx"}]
["miau279","Hajdú Vivien Julianna-Varró Liliána Éva:A magyar társadalom rétegeinek becsült átlagos társadalmi-gazdasági értékessége  xx  https://miau.my-x.hu/miau/279/nok_vs_ferfiak.docx"]
["miau279",{"$f":"nyers!G133&nyers!H133&nyers!I133&nyers!J133&nyers!K133","v":"Nagy Richárd:MP4: Halálos kimenetelű közlekedési balesetek vizsgálata az Európai Unióban OAM alapján / Önsorsrontó-e a Magyar?  xx  https://miau.my-x.hu/miau/279/onsorsrontas.mp4"}]
["miau279",{"$f":"nyers!G135&nyers!H135&nyers!I135&nyers!J135&nyers!K135","v":"Nagy Richárd:Halálos kimenetelű közlekedési balesetek vizsgálata az Európai Unióban OAM alapján / Önsorsrontó-e a Magyar?  xx  https://miau.my-x.hu/miau/279/onsorsrontas.docx"}]
["miau279",{"$f":"nyers!G137&nyers!H137&nyers!I137&nyers!J137&nyers!K137","v":"Pitlik Marcell:PPT: Égések zaj alapú elemzése mesterséges intelligenciával  xx  https://miau.my-x.hu/miau/279/tdk_zaj/TDK_2021_EM_PM.pptx"}]
["miau279",{"$f":"nyers!G139&nyers!H139&nyers!I139&nyers!J139&nyers!K139","v":"Pitlik Marcell:Égések zaj alapú elemzése mesterséges intelligenciával  xx  https://miau.my-x.hu/miau/279/tdk_zaj/TDK_PM_zaj_final.pdf"}]
["Magyar Internetes Agrárinformatikai Újság (MIAÚ),2021,24,280"]
["miau280",{"$f":"nyers!G141&nyers!H141&nyers!I141&nyers!J141&nyers!K141","v":"Pitlik László:JOKER - minimal version - step1-2-3  xx  https://miau.my-x.hu/miau/280/joker_min_2.xlsx"}]
["miau280","Pitlik László-Pitlik Marcell-Pitlik László, ifj.:Csapágy-kopás becslése konzisztencia-alapú modellezéssel  xx  https://miau.my-x.hu/miau/280/bearing_wear_v1.docx"]
["miau280",{"$f":"nyers!G145&nyers!H145&nyers!I145&nyers!J145&nyers!K145","v":"Pitlik László:Anti-discriminative models - based on regressions and staircase functions  xx  https://miau.my-x.hu/miau/280/y0_regressions.xlsx"}]
["miau280","Pitlik László-Pitlik László, ifj.:Aggregation of parallel probabilities based on similarity analyses  xx  https://miau.my-x.hu/miau/280/classification_finetuning.xlsx"]
["miau280",{"$f":"nyers!G149&nyers!H149&nyers!I149&nyers!J149&nyers!K149","v":"Pitlik László:Komplex mintázatok felismerése hasonlóságelemzéssel  xx  https://miau.my-x.hu/miau/280/tenyosszeg_becslesosszeg_elteresei.xlsx"}]
["miau280",{"$f":"nyers!G151&nyers!H151&nyers!I151&nyers!J151&nyers!K151","v":"Barta Gergő:Mesterséges intelligencia módszerek alkalmazása az informatikai rendszerek biztonsági auditjában  xx  https://miau.my-x.hu/miau2009/index.php3?x=e159"}]
[null,"***"]
[]
[null,{"$f":"nyers!G150&nyers!H150&nyers!I150&nyers!J150&nyers!K150","v":""}]
[]
[null,{"$f":"nyers!G152&nyers!H152&nyers!I152&nyers!J152&nyers!K152","v":""}]

{"sheet":"nyers_old","index":5,"n_rows":61,"n_cols":15,"rows_kept":61,"cut":false,"hidden":false,"merged":[[8,2,9,2],[30,2,31,2],[40,3,41,3],[34,3,35,3],[20,3,21,3],[22,3,23,3],[24,3,25,3],[26,3,27,3],[28,3,29,3],[30,3,31,3],[32,3,33,3],[10,3,11,3],[86,3,87,3],[88,2,89,2],[88,3,89,3],[76,3,77,3],[78,3,79,3],[80,3,81,3],[82,2,83,2],[82,3,83,3],[84,3,85,3],[74,3,75,3],[60,3,61,3],[62,2,63,2],[62,3,63,3],[64,2,65,2],[64,3,65,3],[66,2,67,2],[66,3,67,3],[68,3,69,3],[70,3,71,3],[72,3,73,3],[58,3,59,3],[36,3,37,3],[38,3,39,3],[42,3,43,3],[44,3,45,3],[46,3,47,3],[48,3,49,3],[50,3,51,3],[52,3,53,3],[54,3,55,3],[56,3,57,3],[48,2,49,2],[12,3,13,3],[14,3,15,3],[16,3,17,3],[18,3,19,3],[0,3,1,3],[2,3,3,3],[4,3,5,3],[6,3,7,3],[8,3,9,3]]}
["miau239","Pitlik László, Pitlik Marcell, Pitlik Mátyás, Pitlik László, ifj. ","Közlekedési döntések racionalitásának modellezése ","(+)",null,{"$f":"A1","v":"miau239"},{"$f":"B1","v":"Pitlik László, Pitlik Marcell, Pitlik Mátyás, Pitlik László, ifj. "},":",{"$f":"M1","v":"Közlekedési döntések racionalitásának modellezése "},"  xx  ","http://miau.gau.hu/miau/239/kvant_behavior_patterns_v1.docx",null,{"$f":"C1","v":"Közlekedési döntések racionalitásának modellezése "},"Customer satisfaction survey \u0096 with consistence checks I.)"]
[null,"(MY-X team):","(Modelling rationality of decisions in case of traffic actions)"]
["miau239","Pitlik László, Pitlik Marcell","Konzisztencia-orientált modell-hibridizáció látszólag triviális műszaki jelenségek kezelésére","(+)",null,{"$f":"F1","v":"miau239"},{"$f":"B3","v":"Pitlik László, Pitlik Marcell"},":",{"$f":"C3","v":"Konzisztencia-orientált modell-hibridizáció látszólag triviális műszaki jelenségek kezelésére"},"  xx  ","http://miau.gau.hu/miau/239/konzisztencia_alapu_hibridizacio_v1.docx",null,{"$f":"C3","v":"Konzisztencia-orientált modell-hibridizáció látszólag triviális műszaki jelenségek kezelésére"}]
[null,"(MY-X team):","(Consistence-oriented hybridization of models in case of seemingly trivial technical phenomena)",null,null,null,null,null,null,null,null,null,null,"Solution of complex task based on logical steps)"]
["miau239","Pitlik László","Konzisztencia-orientált előrejelzés és foresight a kortárs jövőkutatásban","(+)",null,{"$f":"F3","v":"miau239"},{"$f":"B5","v":"Pitlik László"},":",{"$f":"C5","v":"Konzisztencia-orientált előrejelzés és foresight a kortárs jövőkutatásban"},"  xx  ","http://miau.gau.hu/miau/239/2Pitlik_Laszlo_konzisztencia_full.docx",null,{"$f":"C5","v":"Konzisztencia-orientált előrejelzés és foresight a kortárs jövőkutatásban"},")-függvénnyel, ill. grafikus keretben"]
[null,"(MY-X team):","Consistence-oriented forecasting and foresight in the contemporary future science",null,null,null,null,null,null,null,null,null,null,"Trend-function based on Solver, online service, LINEST",") and graphical frame)"]
["miau239","Pitlik László","Kivonatok: Konzisztencia-orientált előrejelzés és foresight a kortárs jövőkutatásban","(+)",null,{"$f":"F5","v":"miau239"},{"$f":"B7","v":"Pitlik László"},":",{"$f":"C7","v":"Kivonatok: Konzisztencia-orientált előrejelzés és foresight a kortárs jövőkutatásban"},"  xx  ","http://miau.gau.hu/miau/239/2Pitlik_Laszlo_konzisztencia.docx",null,{"$f":"C7","v":"Kivonatok: Konzisztencia-orientált előrejelzés és foresight a kortárs jövőkutatásban"}]
[null,"(MY-X team):","Consistence-oriented forecasting and foresight in the contemporary future science",null,null,null,null,null,null,null,null,null,null,"History and future of the KLM-model from point of view of the e-learning)"]
["miau239","Pitlik László, Pitlik László, ifj., Pitlik Mátyás, Pitlik Marcell, Gyimesi Áron","Development of smart traffic evaluation- and influence-modules\u000bbased on non-declarative rules of artificial intelligence","(+)",null,{"$f":"F7","v":"miau239"},{"$f":"B9","v":"Pitlik László, Pitlik László, ifj., Pitlik Mátyás, Pitlik Marcell, Gyimesi Áron"},":",{"$f":"C9","v":"Development of smart traffic evaluation- and influence-modules\u000bbased on non-declarative rules of artificial intelligence"},"  xx  ","http://miau.gau.hu/miau/239/kosice.pptx",null,{"$f":"C9","v":"Development of smart traffic evaluation- and influence-modules\u000bbased on non-declarative rules of artificial intelligence"},"avagy egy konzisztencia-vezérelt mesterséges intelligencia alapú robot szakértői vélemény)"]
[null,"(MY-X team):",null,null,null,null,null,null,null,null,null,null,null,"Robot-expertise 2050)"]
["miau240","Pitlik László, Pitlik Marcell, Pitlik Mátyás, Pitlik László, ifj. ","Lámpa-terhelésindex számítása lámpaprogram-sorrendek becslése érdekében","(+)",null,{"$f":"A11","v":"miau240"},{"$f":"B11","v":"Pitlik László, Pitlik Marcell, Pitlik Mátyás, Pitlik László, ifj. "},":",{"$f":"C11","v":"Lámpa-terhelésindex számítása lámpaprogram-sorrendek becslése érdekében"},"  xx  ","http://miau.gau.hu/miau/240/lampaprogramok_versenye.docx",null,{"$f":"C11","v":"Lámpa-terhelésindex számítása lámpaprogram-sorrendek becslése érdekében"}]
[null,"(MY-X team):","(Calculation of an exposure-index for traffic lights - concerning an ideal traffic-light-program)",null,null,null,null,null,null,null,null,null,null,"Project libraries, or minimal level of the knowledge management)"]
["miau240","Pitlik László, Pitlik Marcell, Pitlik Mátyás, Pitlik László, ifj. ","Döntéstámogatási operatív rétegek a közlekedés-optimalizálásban I. rész","(+)",null,{"$f":"F11","v":"miau240"},{"$f":"B13","v":"Pitlik László, Pitlik Marcell, Pitlik Mátyás, Pitlik László, ifj. "},":",{"$f":"C13","v":"Döntéstámogatási operatív rétegek a közlekedés-optimalizálásban I. rész"},"  xx  ","http://miau.gau.hu/miau/240/traffic_layers_1.docx",null,{"$f":"C13","v":"Döntéstámogatási operatív rétegek a közlekedés-optimalizálásban I. rész"}]
[null,"(MY-X team):","(Operative layers for decision support in the optimization of traffic \u0096 Part I.)",null,null,null,null,null,null,null,null,null,null,"Fine tuning of controlling system in content sharing/recommendation based on similarity analyses)"]
["miau240","Pitlik László, Pitlik Marcell, Pitlik Mátyás, Pitlik László, ifj. ","Közlekedési lámpák ki/be-kapcsolásának mesterséges intelligencia-alapú vezérlése","(+)",null,{"$f":"F13","v":"miau240"},{"$f":"B15","v":"Pitlik László, Pitlik Marcell, Pitlik Mátyás, Pitlik László, ifj. "},":",{"$f":"C15","v":"Közlekedési lámpák ki/be-kapcsolásának mesterséges intelligencia-alapú vezérlése"},"  xx  ","http://miau.gau.hu/miau/240/lampa_ki_be.docx",null,{"$f":"C15","v":"Közlekedési lámpák ki/be-kapcsolásának mesterséges intelligencia-alapú vezérlése"}]
[null,"(MY-X team):","(Control of traffic lights based on artificial intelligence)",null,null,null,null,null,null,null,null,null,null,"Worm holes in frame of similarity analyses based on LP-driven staircase functions)"]
["miau240","Pitlik László, Pitlik Marcell, Pitlik Mátyás, Pitlik László, ifj. ","Játékosított keretrendszerben történő tanulás log-adatainak elemzése","(+)",null,{"$f":"F15","v":"miau240"},{"$f":"B17","v":"Pitlik László, Pitlik Marcell, Pitlik Mátyás, Pitlik László, ifj. "},":",{"$f":"C17","v":"Játékosított keretrendszerben történő tanulás log-adatainak elemzése"},"  xx  ","http://miau.gau.hu/miau/240/2dm_phase2.docx",null,{"$f":"C17","v":"Játékosított keretrendszerben történő tanulás log-adatainak elemzése"}]
[null,"(MY-X team):","(Analyzing log-data about learning behavior of users, where data are coming from a gamification frame)",null,null,null,null,null,null,null,null,null,null,"Content recommendation system based on competence profiles of users)"]
["miau240","Barta Gergő","Szakirodalmi alapozás és kutatási terv, avagy egy komplex vizsga dokumentumai","(+)",null,{"$f":"A19","v":"miau240"},{"$f":"B19","v":"Barta Gergő"},":",{"$f":"C19","v":"Szakirodalmi alapozás és kutatási terv, avagy egy komplex vizsga dokumentumai"},"  xx  ","http://miau.gau.hu/miau/240/komplex/",null,{"$f":"C19","v":"Szakirodalmi alapozás és kutatási terv, avagy egy komplex vizsga dokumentumai"}]
[null,"(MY-X team):","(Analysing literature and plan of research as annexes of an complex exam)",null,null,null,null,null,null,null,null,null,null,"Alternative solutions based on makros in Excel)"]
["miau240","Czúni Dániel","A LEADER-jelenség \"hatása\", avagy kezdeti lépések az \"Innovátorrá\" válás útján","(+)",null,{"$f":"A21","v":"miau240"},{"$f":"B21","v":"Czúni Dániel"},":",{"$f":"C21","v":"A LEADER-jelenség \"hatása\", avagy kezdeti lépések az \"Innovátorrá\" válás útján"},"  xx  ","http://miau.gau.hu/miau/240/100.docx",null,{"$f":"C21","v":"A LEADER-jelenség \"hatása\", avagy kezdeti lépések az \"Innovátorrá\" válás útján"}]
[null,"(MY-X team):","(The impact of the LEADER-phenomenon, or first steps becoming an innovator)"]
["miau240","Pitlik László, Pitlik Marcell ","A minden másként egyforma elv hatása az összefüggéskeresésre és az anomália-feltárásra ","(+)",null,{"$f":"A23","v":"miau240"},{"$f":"B23","v":"Pitlik László, Pitlik Marcell "},":",{"$f":"C23","v":"A minden másként egyforma elv hatása az összefüggéskeresésre és az anomália-feltárásra "},"  xx  ","http://miau.gau.hu/miau/240/x2y2r2.xlsx",null,{"$f":"C23","v":"A minden másként egyforma elv hatása az összefüggéskeresésre és az anomália-feltárásra "}]
[null,"(MY-X team):","(Anti-discriminative modelling technique for exploration of anomalies and/or functions)",null,null,null,null,null,null,null,null,null,null,"Investigative librarianship: following the GOOGLE-MIAÚ axis)"]
["miau238","Pitlik László, Pitlik László, ifj., Pitlik Marcell","PPT: Rosling-animációk didaktikai potenciálja a tanításban/tanulásban","(+)",null,{"$f":"A25","v":"miau238"},{"$f":"B25","v":"Pitlik László, Pitlik László, ifj., Pitlik Marcell"},":",{"$f":"C25","v":"PPT: Rosling-animációk didaktikai potenciálja a tanításban/tanulásban"},"  xx  ","http://miau.gau.hu/miau/238/mmo2018_rosling.pptx",null,{"$f":"C25","v":"PPT: Rosling-animációk didaktikai potenciálja a tanításban/tanulásban"}]
[null,"(MY-X team):","(Potential of Rosling-animations in teaching and learning methodology)"]
["miau238","Pitlik László, Pitlik László, ifj., Pitlik Mátyás","PPT: Játékosított keretrendszerben történő tanulásból nyert log-adatokra alapozó profilírozás","(+)",null,{"$f":"A27","v":"miau238"},{"$f":"B27","v":"Pitlik László, Pitlik László, ifj., Pitlik Mátyás"},":",{"$f":"C27","v":"PPT: Játékosított keretrendszerben történő tanulásból nyert log-adatokra alapozó profilírozás"},"  xx  ","http://miau.gau.hu/miau/238/mmo2018_2dm.pptx",null,{"$f":"C27","v":"PPT: Játékosított keretrendszerben történő tanulásból nyert log-adatokra alapozó profilírozás"}]
[null,"(MY-X team):","(Profiling in frame of gamification-driven learning activities based on log-data)",null,null,null,null,null,null,null,null,null,null,"Analysis of the Moral-Machine-Tests based on manual preferences)"]
["miau238","Pitlik László, Pitlik László, ifj., Pitlik Mátyás","MP3: Játékosított keretrendszerben történő tanulásból nyert log-adatokra alapozó profilírozás","(+)",null,{"$f":"A29","v":"miau238"},{"$f":"B29","v":"Pitlik László, Pitlik László, ifj., Pitlik Mátyás"},":",{"$f":"C29","v":"MP3: Játékosított keretrendszerben történő tanulásból nyert log-adatokra alapozó profilírozás"},"  xx  ","http://miau.gau.hu/miau/238/mmo2018_2dm_vagott.mp3",null,{"$f":"C29","v":"MP3: Játékosított keretrendszerben történő tanulásból nyert log-adatokra alapozó profilírozás"}]
[null,"(MY-X team):","(Profiling in frame of gamification-driven learning activities based on log-data)",null,null,null,null,null,null,null,null,null,null,"Knowledge engineering on the field of tacit knowledge based on artificial intelligence-oriented term-creation processes)"]
["miau238","Pitlik László, Pitlik László, ifj., Pitlik Mátyás, Pitlik Marcell, Gyimesi Áron","Development of smart traffic evaluation- and influence-modules based on non-declarative rules of artificial intelligence","(+)",null,{"$f":"A31","v":"miau238"},{"$f":"B31","v":"Pitlik László, Pitlik László, ifj., Pitlik Mátyás, Pitlik Marcell, Gyimesi Áron"},":",{"$f":"C31","v":"Development of smart traffic evaluation- and influence-modules based on non-declarative rules of artificial intelligence"},"  xx  ","http://miau.gau.hu/miau/238/Manuscript_Template_2017_myx.docx",null,{"$f":"C31","v":"Development of smart traffic evaluation- and influence-modules based on non-declarative rules of artificial intelligence"}]
[null,"(MY-X team):",null,null,null,null,null,null,null,null,null,null,null,"Objective vs. Subjective weights in the similarity analysis)"]
["miau238","Pitlik Mátyás","2DM-keretrendszer","(+)",null,{"$f":"A33","v":"miau238"},{"$f":"B33","v":"Pitlik Mátyás"},":",{"$f":"C33","v":"2DM-keretrendszer"},"  xx  ","http://miau.gau.hu/miau/238/2dm",null,{"$f":"C33","v":"2DM-keretrendszer"}]
[null,"(MY-X team):","(2DM tool)",null,null,null,null,null,null,null,null,null,null,"Simple cellular automata based on Excel-makros)"]
["miau238","Pitlik László, Pitlik László, ifj., Pitlik Marcell","Rosling-animációk didaktikai potenciálja a tanításban/tanulásban","(+)",null,{"$f":"A35","v":"miau238"},{"$f":"B35","v":"Pitlik László, Pitlik László, ifj., Pitlik Marcell"},":",{"$f":"C35","v":"Rosling-animációk didaktikai potenciálja a tanításban/tanulásban"},"  xx  ","http://miau.gau.hu/miau/238/rosling_didactics.doc",null,{"$f":"C35","v":"Rosling-animációk didaktikai potenciálja a tanításban/tanulásban"},"Presentation in Osijek in frame of an ERASMUS STAFF MOBILITY ACTION)"]
[null,"(MY-X team):","(Potential of Rosling-animations in teaching and learning methodology)"]
["miau238","Pitlik László, Pitlik László, ifj., Pitlik Marcell","Rosling-animációk didaktikai potenciálja a tanításban/tanulásban","(+)",null,{"$f":"A37","v":"miau238"},{"$f":"B37","v":"Pitlik László, Pitlik László, ifj., Pitlik Marcell"},":",{"$f":"C37","v":"Rosling-animációk didaktikai potenciálja a tanításban/tanulásban"},"  xx  ","http://miau.gau.hu/miau/238/rosling_didactics_full_v1.doc",null,{"$f":"C37","v":"Rosling-animációk didaktikai potenciálja a tanításban/tanulásban"}]
[null,"(MY-X team):","(Potential of Rosling-animations in teaching and learning methodology)",null,null,null,null,null,null,null,null,null,null,"Multicultural aspects of WEBOMETRICS)"]
["miau238","Pitlik László, Pitlik László, ifj., Pitlik Mátyás","Játékosított keretrendszerben történő tanulásból nyert log-adatokra alapozó profilírozás","(+)",null,{"$f":"A39","v":"miau238"},{"$f":"B39","v":"Pitlik László, Pitlik László, ifj., Pitlik Mátyás"},":",{"$f":"C39","v":"Játékosított keretrendszerben történő tanulásból nyert log-adatokra alapozó profilírozás"},"  xx  ","http://miau.gau.hu/miau/238/log_profile_full_v2.doc",null,{"$f":"C39","v":"Játékosított keretrendszerben történő tanulásból nyert log-adatokra alapozó profilírozás"}]
[null,"(MY-X team):","(Profiling in frame of gamification-driven learning activities based on log-data)",null,null,null,null,null,null,null,null,null,null,"Maturity vs. university)"]
["miau238","Pitlik László, Pitlik László, ifj., Pitlik Mátyás","Játékosított keretrendszerben történő tanulásból nyert log-adatokra alapozó profilírozás","(+)",null,{"$f":"A41","v":"miau238"},{"$f":"B41","v":"Pitlik László, Pitlik László, ifj., Pitlik Mátyás"},":",{"$f":"C41","v":"Játékosított keretrendszerben történő tanulásból nyert log-adatokra alapozó profilírozás"},"  xx  ","http://miau.gau.hu/miau/238/log_profile.doc",null,{"$f":"C41","v":"Játékosított keretrendszerben történő tanulásból nyert log-adatokra alapozó profilírozás"}]
[null,"(MY-X team):","(Profiling in frame of gamification-driven learning activities based on log-data)",null,null,null,null,null,null,null,null,null,null,"Project library, knowledge store \u0096 or better than the bests before)"]
["miau238","Pitlik László, Szani Ferenc, Mihályi Gabriella","PPT: A tacit tudás tudásmérnöki kezelésének lehetőségei a mesterséges intelligencia-alapú fogalomalkotás keretei között","(+)",null,{"$f":"A43","v":"miau238"},{"$f":"B43","v":"Pitlik László, Szani Ferenc, Mihályi Gabriella"},":",{"$f":"C43","v":"PPT: A tacit tudás tudásmérnöki kezelésének lehetőségei a mesterséges intelligencia-alapú fogalomalkotás keretei között"},"  xx  ","http://miau.gau.hu/miau/238/tacit_v1.pptx",null,{"$f":"C43","v":"PPT: A tacit tudás tudásmérnöki kezelésének lehetőségei a mesterséges intelligencia-alapú fogalomalkotás keretei között"}]
[null,"(MY-X team):","(Knowledge engineering on the field of tacit knowledge based on artificial intelligence-oriented term-creation processes)"]
["miau238","Pitlik László, Szani Ferenc, Mihályi Gabriella","A tacit tudás tudásmérnöki kezelésének lehetőségei a mesterséges intelligencia-alapú fogalomalkotás keretei között","(+)",null,{"$f":"A45","v":"miau238"},{"$f":"B45","v":"Pitlik László, Szani Ferenc, Mihályi Gabriella"},":",{"$f":"C45","v":"A tacit tudás tudásmérnöki kezelésének lehetőségei a mesterséges intelligencia-alapú fogalomalkotás keretei között"},"  xx  ","http://miau.gau.hu/miau/238/tacit_v1.docx",null,{"$f":"C45","v":"A tacit tudás tudásmérnöki kezelésének lehetőségei a mesterséges intelligencia-alapú fogalomalkotás keretei között"}]
[null,"(MY-X team):","(Knowledge engineering on the field of tacit knowledge based on artificial intelligence-oriented term-creation processes)"]
["miau238","Pitlik László","A kiemelt figyelmet elváró jelenségek feltárásának modellezése","(+)",null,{"$f":"A47","v":"miau238"},{"$f":"B47","v":"Pitlik László"},":",{"$f":"C47","v":"A kiemelt figyelmet elváró jelenségek feltárásának modellezése"},"  xx  ","http://miau.gau.hu/miau/238/exploring_critical_attributes_for_risk_management_v1.docx",null,{"$f":"C47","v":"A kiemelt figyelmet elváró jelenségek feltárásának modellezése"}]
[null,"(MY-X team):","(Derivation of the next critical attribute in a complex risk management system)"]
["miau233",null,null,null,null,{"$f":"A49","v":"miau233"},{"$f":"B49","v":0},":",{"$f":"C49","v":0},"  xx  ","http://miau.gau.hu/miau/233/naiv-korrel.xlsx"]
[]
["miau233",null,null,null,null,{"$f":"A51","v":"miau233"},{"$f":"B51","v":0},":",{"$f":"C51","v":0},"  xx  ","http://miau.gau.hu/miau/233/cikk8_final.docx"]
[]
["miau233",null,null,null,null,{"$f":"A53","v":"miau233"},{"$f":"B53","v":0},":",{"$f":"C53","v":0},"  xx  ","http://miau.gau.hu/miau/233/apertus_debrecen_klm.docx"]
[]
["miau233",null,null,null,null,{"$f":"A55","v":"miau233"},{"$f":"B55","v":0},":",{"$f":"C55","v":0},"  xx  ","http://miau.gau.hu/miau/233/apertus_debrecen_vir.docx"]
[]
["miau233",null,null,null,null,{"$f":"A57","v":"miau233"},{"$f":"B57","v":0},":",{"$f":"C57","v":0},"  xx  ","http://miau.gau.hu/miau/233/apertus_debrecen_jo.docx"]
[]
["miau233",null,null,null,null,{"$f":"A59","v":"miau233"},{"$f":"B59","v":0},":",{"$f":"C59","v":0},"  xx  ","http://miau.gau.hu/miau/233/2500_3000.docx"]
[]
["miau233",null,null,null,null,{"$f":"A61","v":"miau233"},{"$f":"B61","v":0},":",{"$f":"C61","v":0},"  xx  ","http://miau.gau.hu/miau/233/kvant_monitoring_v5.docx"]

{"sheet":"nyers (2)","index":6,"n_rows":20,"n_cols":13,"rows_kept":20,"cut":false,"hidden":false,"merged":[[8,2,9,2],[8,3,9,3],[18,3,19,3],[0,3,1,3],[2,3,3,3],[4,3,5,3],[6,3,7,3],[10,2,11,2],[10,3,11,3],[12,3,13,3],[14,3,15,3],[16,3,17,3],[42,1,43,1],[42,3,43,3],[20,3,21,3],[22,3,23,3],[24,3,25,3],[26,3,27,3],[28,3,29,3],[30,3,31,3],[32,3,33,3],[34,3,35,3],[36,3,37,3],[38,3,39,3],[40,3,41,3],[60,2,61,2],[60,3,61,3],[44,3,45,3],[46,3,47,3],[48,3,49,3],[50,3,51,3],[52,2,53,2],[52,3,53,3],[54,3,55,3],[56,2,57,2],[56,3,57,3],[58,2,59,2],[58,3,59,3],[80,3,81,3],[62,2,63,2],[62,3,63,3],[64,3,65,3],[66,3,67,3],[68,3,69,3],[70,3,71,3],[72,2,73,2],[72,3,73,3],[74,3,75,3],[76,3,77,3],[78,3,79,3],[82,3,83,3],[84,3,85,3],[86,2,87,2],[86,3,87,3],[88,3,89,3]]}
["miau268","Pitlik László","Bizonyítás-szimulátor, avagy mit tudhat ténylegesen egy big-data alapon eljáró ROBOT-COVID-szakértő?","(+)",null,{"$f":"A1","v":"miau268"},{"$f":"B1","v":"Pitlik László"},":",{"$f":"M1","v":"Bizonyítás-szimulátor, avagy mit tudhat ténylegesen egy big-data alapon eljáró ROBOT-COVID-szakértő?"},"  xx  ","https://miau.my-x.hu/digeco/2020/2020osz/evidence_simulator.docx",null,{"$f":"C1","v":"Bizonyítás-szimulátor, avagy mit tudhat ténylegesen egy big-data alapon eljáró ROBOT-COVID-szakértő?"}]
[null,"(My-X team):","(Evidence-simulator, or what can be derived based on big-data by a ROBOT-COVID-expert?)"]
["miau268","Pitlik László, Biró Bálint, Pitlik Marcell, Pitlik László (jun)","A szakmai problémától a pszeudo-kódig, avagy a context-free szómágia és az Excel kapcsolata","(+)",null,{"$f":"A3","v":"miau268"},"Pitlik László, Biró Bálint, Pitlik Marcell, Pitlik László (jun)",":",{"$f":"M3","v":"A szakmai problémától a pszeudo-kódig, avagy a context-free szómágia és az Excel kapcsolata"},"  xx  ","https://miau.my-x.hu/digeco/2020/2020osz/hogyan_jussunk_el_egy_pszeudokodig.docx",null,{"$f":"C3","v":"A szakmai problémától a pszeudo-kódig, avagy a context-free szómágia és az Excel kapcsolata"}]
[null,"(My-X team):","(From the context-related problem to a pseudo-code, or magic of words in a context-free way leading to an Excel-demo)"]
["miau268","Pitlik László, Pitlik Marcell","Ceteris paribus alakzatok racionális polinomjai – hasonlóságelemzéssel","(+)",null,{"$f":"A5","v":"miau268"},"Pitlik László, Pitlik Marcell",":",{"$f":"M5","v":"Ceteris paribus alakzatok racionális polinomjai – hasonlóságelemzéssel"},"  xx  ","https://miau.my-x.hu/miau/268/ceteris_paribus_domestication.docx",null,{"$f":"C5","v":"Ceteris paribus alakzatok racionális polinomjai – hasonlóságelemzéssel"}]
[null,"(My-X team):","(Rational polynomial functions as ceteris paribus views – based on similarity analyses)"]
["miau268","Pitlik László","Előadás: Modern szemléletű projektciklus-értelmezések alapjai","(+)",null,{"$f":"A7","v":"miau268"},"Pitlik László",":",{"$f":"M7","v":"Előadás: Modern szemléletű projektciklus-értelmezések alapjai"},"  xx  ","https://miau.my-x.hu/miau/268/szeged.mp3",null,{"$f":"C7","v":"Előadás: Modern szemléletű projektciklus-értelmezések alapjai"}]
[null,"(KJE):","(Project-cycle-interpretations based on heretic approaches)"]
["miau268","Bakos Bence","TDK-előadás: PLA-felmérés adatainak mesterséges intelligencia alapú elemzése (Analyses of PLA-data assets based on artificial intelligence)","(+)",null,{"$f":"A9","v":"miau268"},"Bakos Bence",":",{"$f":"M9","v":"TDK-előadás: PLA-felmérés adatainak mesterséges intelligencia alapú elemzése (Analyses of PLA-data assets based on artificial intelligence)"},"  xx  ","https://miau.my-x.hu/miau/268/bb.mp4",null,{"$f":"C9","v":"TDK-előadás: PLA-felmérés adatainak mesterséges intelligencia alapú elemzése (Analyses of PLA-data assets based on artificial intelligence)"}]
[null,"(KJE):"]
["miau268","Bartók Patrik","TDK-előadás: Két eszköz közti adatátviteli lehetőségek áttekintése a biztonság szempontjából induktív szakértői rendszerrel (Security ranking of alternative data-transfer-approaches based on an inductive expert system tool)","(+)",null,{"$f":"A11","v":"miau268"},"Bartók Patrik",":",{"$f":"M11","v":"TDK-előadás: Két eszköz közti adatátviteli lehetőségek áttekintése a biztonság szempontjából induktív szakértői rendszerrel (Security ranking of alternative data-transfer-approaches based on an inductive expert system tool)"},"  xx  ","https://miau.my-x.hu/miau/268/bp.mp4",null,{"$f":"C11","v":"TDK-előadás: Két eszköz közti adatátviteli lehetőségek áttekintése a biztonság szempontjából induktív szakértői rendszerrel (Security ranking of alternative data-transfer-approaches based on an inductive expert system tool)"}]
[null,"(KJE):"]
["miau268","Pitlik László","Az erőből történő problémamegoldás demonstrálása egyéb alternatívák bemutatása mellett","(+)",null,{"$f":"A13","v":"miau268"},"Pitlik László",":",{"$f":"M13","v":"Az erőből történő problémamegoldás demonstrálása egyéb alternatívák bemutatása mellett"},"  xx  ","https://miau.my-x.hu/bprof/erobol.xlsx",null,{"$f":"C13","v":"Az erőből történő problémamegoldás demonstrálása egyéb alternatívák bemutatása mellett"}]
[null,"(MY-X team):","(Problem solving based on brute force and/or other approaches)"]
["miau268","Pitlik László, Pitlik Marcell, Pitlik László (jun)","A statisztikus tanulás robotizálása, avagy az evolúció alapvetően konzerválja-e a butaságot?!","(+)",null,{"$f":"A15","v":"miau268"},"Pitlik László, Pitlik Marcell, Pitlik László (jun)",":",{"$f":"M15","v":"A statisztikus tanulás robotizálása, avagy az evolúció alapvetően konzerválja-e a butaságot?!"},"  xx  ","https://miau.my-x.hu/bprof/2021/vajon_az_evulocio_konzervalja_az_emberi_butasagot.docx",null,{"$f":"C15","v":"A statisztikus tanulás robotizálása, avagy az evolúció alapvetően konzerválja-e a butaságot?!"}]
[null,"(MY-X team):","(Robotized statistical learning or the evolution as guarantee for the existence of the human dumbness?!)"]
["miau268","Pitlik László, Pitlik Marcell","Spontán matematika-tudásnövelés programozók esetében (a véletlen kezelésének kockázatai pszeudokódban)","(+)",null,{"$f":"A17","v":"miau268"},"Pitlik László, Pitlik Marcell",":",{"$f":"M17","v":"Spontán matematika-tudásnövelés programozók esetében (a véletlen kezelésének kockázatai pszeudokódban)"},"  xx  ","https://miau.my-x.hu/bprof/spontan_matematika.docx",null,{"$f":"C17","v":"Spontán matematika-tudásnövelés programozók esetében (a véletlen kezelésének kockázatai pszeudokódban)"}]
[null,"(MY-X team):","(Knowledge-increasing in mathematics in a spontaneous way in case of programmers or risks in pseudocode-based representations of the coincidence)"]
["miau268","Pitlik László, Pitlik Marcell","Context-free hermeneutikai gyakorlatok (hasonlóságelemzésláncok egységes rendszerű értelmezése transzponált OAM-ok alapján)","(+)",null,{"$f":"A19","v":"miau268"},"Pitlik László, Pitlik Marcell",":",{"$f":"M19","v":"Context-free hermeneutikai gyakorlatok (hasonlóságelemzésláncok egységes rendszerű értelmezése transzponált OAM-ok alapján)"},"  xx  ","https://miau.my-x.hu/miau/268/context_free_hermeneutics.docx",null,{"$f":"C19","v":"Context-free hermeneutikai gyakorlatok (hasonlóságelemzésláncok egységes rendszerű értelmezése transzponált OAM-ok alapján)"}]
[null,"(MY-X team):","(Context-free exercises in hermeneutics or holistic interpretations for chained similarity analyses based on transponed OAMs)"]

{"sheet":"nyers (3)","index":7,"n_rows":44,"n_cols":13,"rows_kept":44,"cut":false,"hidden":false,"merged":[[18,3,19,3],[0,2,1,2],[0,3,1,3],[2,3,3,3],[4,3,5,3],[6,3,7,3],[8,3,9,3],[10,3,11,3],[12,3,13,3],[14,2,15,2],[14,3,15,3],[16,3,17,3],[40,3,41,3],[20,3,21,3],[22,3,23,3],[24,2,25,2],[24,3,25,3],[26,3,27,3],[28,2,29,2],[28,3,29,3],[30,3,31,3],[32,3,33,3],[34,3,35,3],[36,3,37,3],[38,3,39,3],[60,2,61,2],[60,3,61,3],[42,3,43,3],[44,3,45,3],[46,3,47,3],[48,3,49,3],[50,3,51,3],[52,2,53,2],[52,3,53,3],[54,3,55,3],[56,2,57,2],[56,3,57,3],[58,2,59,2],[58,3,59,3],[80,3,81,3],[62,2,63,2],[62,3,63,3],[64,3,65,3],[66,3,67,3],[68,3,69,3],[70,3,71,3],[72,2,73,2],[72,3,73,3],[74,3,75,3],[76,3,77,3],[78,3,79,3],[82,3,83,3],[84,3,85,3],[86,2,87,2],[86,3,87,3],[88,3,89,3]]}
["miau269","Válogatás","Aranykor-értelmezések üzemi adatok alapján","(+)",null,{"$f":"A1","v":"miau269"},{"$f":"B1","v":"Válogatás"},":",{"$f":"M1","v":"Aranykor-értelmezések üzemi adatok alapján"},"  xx  ","https://miau.my-x.hu/miau/269/aranykor_golden_ages_studies.docx",null,{"$f":"C1","v":"Aranykor-értelmezések üzemi adatok alapján"}]
[null,"(KJE):"]
["miau269","Orovecz Dávid","Önálló tanulást támogató angol nyelvi teszt értékelésekkel és magyarázatokkal - dokumentációs nézet","(+)",null,{"$f":"A3","v":"miau269"},"Orovecz Dávid",":",{"$f":"M3","v":"Önálló tanulást támogató angol nyelvi teszt értékelésekkel és magyarázatokkal - dokumentációs nézet"},"  xx  ","https://miau.my-x.hu/miau/269/javascript_learning_by_doing.docx",null,{"$f":"C3","v":"Önálló tanulást támogató angol nyelvi teszt értékelésekkel és magyarázatokkal - dokumentációs nézet"}]
[null,"(KJE):","Autodidactic quiz in English with evaluation and interpretation layers - planning view"]
["miau269","Orovecz Dávid","Önálló tanulást támogató angol nyelvi teszt értékelésekkel és magyarázatokkal","(+)",null,{"$f":"A5","v":"miau269"},"Orovecz Dávid",":",{"$f":"M5","v":"Önálló tanulást támogató angol nyelvi teszt értékelésekkel és magyarázatokkal"},"  xx  ","https://miau.my-x.hu/miau/269/angol_nyelvi_teszt_magyarazatokkal.html",null,{"$f":"C5","v":"Önálló tanulást támogató angol nyelvi teszt értékelésekkel és magyarázatokkal"}]
[null,"(KJE):","Autodidactic quiz in English with evaluation and interpretation layers"]
["miau269","Zsanett András","Könyvelési adatok információs többletérték-termelő képességének feltárása egyetlen cég két évtizedes adatvagyona alapján","(+)",null,{"$f":"A7","v":"miau269"},"Zsanett András",":",{"$f":"M7","v":"Könyvelési adatok információs többletérték-termelő képességének feltárása egyetlen cég két évtizedes adatvagyona alapján"},"  xx  ","https://miau.my-x.hu/miau/269/vadex.docx",null,{"$f":"C7","v":"Könyvelési adatok információs többletérték-termelő képességének feltárása egyetlen cég két évtizedes adatvagyona alapján"}]
[null,"(KJE):","(Innovative time series analyses in case of one single enterprise - VADEX)"]
["miau269","Anonim Hallgató","Forráskódot bemutató publikáció köztes állapota a dolgozatkészítés tervezésének és kivitelezésének támogatására","(+)",null,{"$f":"A9","v":"miau269"},"Anonim Hallgató",":",{"$f":"M9","v":"Forráskódot bemutató publikáció köztes állapota a dolgozatkészítés tervezésének és kivitelezésének támogatására"},"  xx  ","https://miau.my-x.hu/miau/269/digeco_dolgozattervezes_koztesfazisai_macro.docx",null,{"$f":"C9","v":"Forráskódot bemutató publikáció köztes állapota a dolgozatkészítés tervezésének és kivitelezésének támogatására"}]
[null,"(KJE):","(Interim report about a source code supporting planning and realization of studies)"]
["miau269","Birgésné Velkei Éva","CÉG-ADATOK ÉRTELMEZÉSE MÁSKÉNT","(+)",null,{"$f":"A11","v":"miau269"},"Birgésné Velkei Éva",":",{"$f":"M11","v":"CÉG-ADATOK ÉRTELMEZÉSE MÁSKÉNT"},"  xx  ","https://miau.my-x.hu/miau/269/digeco_cegadatok_aranykor.docx",null,{"$f":"C11","v":"CÉG-ADATOK ÉRTELMEZÉSE MÁSKÉNT"}]
[null,"(KJE):","(Interpretation of information about enterprises - in an innovative way)"]
["miau269","Gergics Miléna","A ROBOTEDZŐ TERVEZETT ALKALMAZÁSA A NŐI LABDARÚGÁSBAN","(+)",null,{"$f":"A13","v":"miau269"},"Gergics Miléna",":",{"$f":"M13","v":"A ROBOTEDZŐ TERVEZETT ALKALMAZÁSA A NŐI LABDARÚGÁSBAN"},"  xx  ","https://miau.my-x.hu/miau/269/digeco_robotedzo.docx",null,{"$f":"C13","v":"A ROBOTEDZŐ TERVEZETT ALKALMAZÁSA A NŐI LABDARÚGÁSBAN"}]
[null,"(KJE):","(THE PROPOSED USE OF ROBOT COACH IN THE WOMEN’S FOOTBALL)"]
["miau270","Kodó Krisztina, Kovács László, Pitlik László","Experiences concerning digital transformation of the higher education on personal and institutional levels","(+)",null,{"$f":"A15","v":"miau270"},"Kodó Krisztina, Kovács László, Pitlik László",":",{"$f":"M15","v":"Experiences concerning digital transformation of the higher education on personal and institutional levels"},"  xx  ","https://miau.my-x.hu/miau/270/oecd_v5.docx",null,{"$f":"C15","v":"Experiences concerning digital transformation of the higher education on personal and institutional levels"}]
[null,"(KJU):"]
["miau270","Pitlik László, Pitlik Marcell, Pitlik László (jun)","Az anti-diszkriminatív, solver-alapú modellezés alternatív rétegei","(+)",null,{"$f":"A17","v":"miau270"},"Pitlik László, Pitlik Marcell, Pitlik László (jun)",":",{"$f":"M17","v":"Az anti-diszkriminatív, solver-alapú modellezés alternatív rétegei"},"  xx  ","https://miau.my-x.hu/miau/270/y0_alternative_approaches.docx",null,{"$f":"C17","v":"Az anti-diszkriminatív, solver-alapú modellezés alternatív rétegei"}]
[null,"(MY-X team):","(Alternative layers of the anti-discriminative, solver-based modelling)"]
["miau270","Pitlik László, Pitlik Marcell, Pitlik Mátyás","Robot-esztéta, avagy a szépség matematikája II.","(+)",null,{"$f":"A19","v":"miau270"},"Pitlik László, Pitlik Marcell, Pitlik Mátyás",":",{"$f":"M19","v":"Robot-esztéta, avagy a szépség matematikája II."},"  xx  ","https://miau.my-x.hu/miau/270/roboteszteta_II.docx",null,{"$f":"C19","v":"Robot-esztéta, avagy a szépség matematikája II."}]
[null,"(MY-X team):","(Robot-aesthetic-expert or the mathematics of the beauty - Part II.)"]
["miau270","Pitlik László, Pitlik Marcell, Pitlik Mátyás","Robot-esztéta, avagy a szépség matematikája I.","(+)",null,{"$f":"A21","v":"miau270"},"Pitlik László, Pitlik Marcell, Pitlik Mátyás",":",{"$f":"M21","v":"Robot-esztéta, avagy a szépség matematikája I."},"  xx  ","https://miau.my-x.hu/miau/270/roboteszteta.docx",null,{"$f":"C21","v":"Robot-esztéta, avagy a szépség matematikája I."}]
[null,"(MY-X team):","(Robot-aesthetic-expert or the mathematics of the beauty - Part I.)"]
["miau270","Pitlik László, Pitlik Marcell","A multikollinearitás téves kezelése, avagy információvesztést generáló változókizárás a hasonlóságelemzésben","(+)",null,{"$f":"A23","v":"miau270"},"Pitlik László, Pitlik Marcell",":",{"$f":"M23","v":"A multikollinearitás téves kezelése, avagy információvesztést generáló változókizárás a hasonlóságelemzésben"},"  xx  ","https://miau.my-x.hu/miau/270/multikollinearitas_vs_hasonlosagelemzes.docx",null,{"$f":"C23","v":"A multikollinearitás téves kezelése, avagy információvesztést generáló változókizárás a hasonlóságelemzésben"}]
[null,"(MY-X team):","(Wrong interpretation of the multicollinearity or even the exclusion of the affected variables leads to lack of information)"]
["miau270","Németh László, Pitlik László","Robot-lektor fejlesztése (részjelentés) (Robot-lector – progress report)","(+)",null,{"$f":"A25","v":"miau270"},"Németh László, Pitlik László",":",{"$f":"M25","v":"Robot-lektor fejlesztése (részjelentés) (Robot-lector – progress report)"},"  xx  ","https://miau.my-x.hu/miau/270/robotlektor_1223.docx",null,{"$f":"C25","v":"Robot-lektor fejlesztése (részjelentés) (Robot-lector – progress report)"}]
[null,"(INNOREG, MY-X team):"]
["miau270","Pitlik László","A pesszimizmus matematikája, avagy egy robot-pszichológus alapvetései","(+)",null,{"$f":"A27","v":"miau270"},"Pitlik László",":",{"$f":"M27","v":"A pesszimizmus matematikája, avagy egy robot-pszichológus alapvetései"},"  xx  ","https://miau.my-x.hu/miau/270/a_pesszimizmus_matematikaja.docx",null,{"$f":"C27","v":"A pesszimizmus matematikája, avagy egy robot-pszichológus alapvetései"}]
[null,"(MY-X team):","(Mathematics of the pessimism – or the basics of a robot-psychologist)"]
["miau270","Pitlik Mátyás, Pitlik László","FADN/MSZIH-adatok új OLAP-keretrendszere","(+)",null,{"$f":"A29","v":"miau270"},"Pitlik Mátyás, Pitlik László",":",{"$f":"M29","v":"FADN/MSZIH-adatok új OLAP-keretrendszere"},"  xx  ","https://miau.my-x.hu/eeg/olapForm.php?db=fadn",null,{"$f":"C29","v":"FADN/MSZIH-adatok új OLAP-keretrendszere"}]
[null,"(MY-X team):"]
["miau271","Pitlik László, Pitlik Marcell","Roo-Boo-MOOC, avagy a robotizált MOOC-fejlesztés lehetőségei és korlátai I.","(+)",null,{"$f":"A31","v":"miau271"},"Pitlik László, Pitlik Marcell",":",{"$f":"M31","v":"Roo-Boo-MOOC, avagy a robotizált MOOC-fejlesztés lehetőségei és korlátai I."},"  xx  ","https://miau.my-x.hu/miau/271/Roo-Boo-Mooc.docx",null,{"$f":"C31","v":"Roo-Boo-MOOC, avagy a robotizált MOOC-fejlesztés lehetőségei és korlátai I."}]
[null,"(MY-X team):","(Potentials and barriers in the robotized MOOC-development- Part I.)"]
["miau271","Pitlik László, Pitlik Marcell","A kongruens modellezés információs többletérték-termelő potenciálja","(+)",null,{"$f":"A33","v":"miau271"},"Pitlik László, Pitlik Marcell",":",{"$f":"M33","v":"A kongruens modellezés információs többletérték-termelő potenciálja"},"  xx  ","https://miau.my-x.hu/miau/271/kongruens_modellezes.docx",null,{"$f":"C33","v":"A kongruens modellezés információs többletérték-termelő potenciálja"}]
[null,"(MY-X team):","(Potential of the information added value based on congruent modelling)"]
["miau271","Pitlik László, Pitlik László (jun)","Több kombinatorikai réteggel nehezített feladat solver-alapú megoldása","(+)",null,{"$f":"A35","v":"miau271"},"Pitlik László, Pitlik László (jun)",":",{"$f":"M35","v":"Több kombinatorikai réteggel nehezített feladat solver-alapú megoldása"},"  xx  ","https://miau.my-x.hu/miau/271/solver_spec.xlsx",null,{"$f":"C35","v":"Több kombinatorikai réteggel nehezített feladat solver-alapú megoldása"}]
[null,"(MY-X team):","(Multilayered combinatrics in solver-based solutions)"]
["miau271","Pitlik Marcell","Digitális/elektronikus/virtuális (jegybank)pénz és a blokkláncok jelentősége a pénzügyekben, avagy az adat-elemzés és az adat-vizualizáció lehetőségei a döntéstámogatásban","(+)",null,{"$f":"A37","v":"miau271"},"Pitlik Marcell",":",{"$f":"M37","v":"Digitális/elektronikus/virtuális (jegybank)pénz és a blokkláncok jelentősége a pénzügyekben, avagy az adat-elemzés és az adat-vizualizáció lehetőségei a döntéstámogatásban"},"  xx  ","https://miau.my-x.hu/miau/271/BME_MNB_PM_2021.pdf",null,{"$f":"C37","v":"Digitális/elektronikus/virtuális (jegybank)pénz és a blokkláncok jelentősége a pénzügyekben, avagy az adat-elemzés és az adat-vizualizáció lehetőségei a döntéstámogatásban"}]
[null,"(MY-X team):","(Forecasting of the e-money volumes based on similarity analysis)"]
["miau271","Pitlik László","Javascript-alapú MOOC-őssejt","(+)",null,{"$f":"A39","v":"miau271"},"Pitlik László",":",{"$f":"M39","v":"Javascript-alapú MOOC-őssejt"},"  xx  ","https://miau.my-x.hu/myx-free/index.php3?x=test11",null,{"$f":"C39","v":"Javascript-alapú MOOC-őssejt"}]
[null,"(MY-X team):","(Javascript-based MOOC stem cell)"]
["miau271","Pitlik László","2DM-játék animációkkal","(+)",null,{"$f":"A41","v":"miau271"},"Pitlik László",":",{"$f":"M41","v":"2DM-játék animációkkal"},"  xx  ","https://miau.my-x.hu/miau/271/2dm/",null,{"$f":"C41","v":"2DM-játék animációkkal"}]
[null,"(MY-X team):","(2DM-game with animations)"]
["miau271","VIRTOUR","2DM-alapú tudományos ismeretterjesztés biológia témakörben","(+)",null,{"$f":"A43","v":"miau271"},"VIRTOUR",":",{"$f":"M43","v":"2DM-alapú tudományos ismeretterjesztés biológia témakörben"},"  xx  ","https://elearning.virtour.hu/games/2D/emlos1/index.html",null,{"$f":"C43","v":"2DM-alapú tudományos ismeretterjesztés biológia témakörben"}]
[null,"(VIRTOUR):","(2DM-based dissemination of scientific knowledge on the field of the biology)"]

{"sheet":"nyers (4)","index":8,"n_rows":62,"n_cols":13,"rows_kept":62,"cut":false,"hidden":false,"merged":[[22,3,23,3],[0,3,1,3],[2,3,3,3],[4,3,5,3],[6,3,7,3],[8,3,9,3],[10,3,11,3],[12,3,13,3],[14,3,15,3],[16,3,17,3],[18,3,19,3],[20,3,21,3],[46,3,47,3],[24,3,25,3],[26,3,27,3],[28,3,29,3],[30,3,31,3],[32,3,33,3],[34,3,35,3],[36,3,37,3],[38,3,39,3],[40,3,41,3],[42,3,43,3],[44,3,45,3],[68,3,69,3],[48,3,49,3],[50,3,51,3],[52,3,53,3],[54,3,55,3],[56,3,57,3],[58,3,59,3],[60,3,61,3],[62,2,63,2],[62,3,63,3],[64,3,65,3],[66,3,67,3],[88,3,89,3],[70,3,71,3],[72,2,73,2],[72,3,73,3],[74,3,75,3],[76,3,77,3],[78,3,79,3],[80,3,81,3],[82,3,83,3],[84,3,85,3],[86,2,87,2],[86,3,87,3]]}
["miau272","Pitlik László","Automatizáció a banki és biztosítási piacon","(+)",null,{"$f":"A1","v":"miau272"},{"$f":"B1","v":"Pitlik László"},":",{"$f":"M1","v":"Automatizáció a banki és biztosítási piacon"},"  xx  ","https://miau.my-x.hu/miau/272/bank_biztosito_automatizacio.mp3",null,{"$f":"C1","v":"Automatizáció a banki és biztosítási piacon"}]
[null,"(KJE):","(Automation in bank and insurance activities)"]
["miau272","Pitlik László","MP3: A digitalizáció szerepe a megváltozott kutatási környezetben","(+)",null,{"$f":"A3","v":"miau272"},"Pitlik László",":",{"$f":"M3","v":"MP3: A digitalizáció szerepe a megváltozott kutatási környezetben"},"  xx  ","https://miau.my-x.hu/miau/273/kutatas_1_of_3.mp3",null,{"$f":"C3","v":"MP3: A digitalizáció szerepe a megváltozott kutatási környezetben"}]
[null,"(KJE):","(Digitalization and research)"]
["miau272","Pitlik László","A digitalizáció szerepe a megváltozott kutatási környezetben","(+)",null,{"$f":"A5","v":"miau272"},"Pitlik László",":",{"$f":"M5","v":"A digitalizáció szerepe a megváltozott kutatási környezetben"},"  xx  ","https://miau.my-x.hu/miau/273/kje_eloadasok.docx",null,{"$f":"C5","v":"A digitalizáció szerepe a megváltozott kutatási környezetben"}]
[null,"(KJE):","(Digitalization and research)"]
["miau272","Pitlik László, Pitlik Marcell","Alternatív megoldások regressziós modellekben hasonlóságelemzésekhez képest","(+)",null,{"$f":"A7","v":"miau272"},"Pitlik László, Pitlik Marcell",":",{"$f":"M7","v":"Alternatív megoldások regressziós modellekben hasonlóságelemzésekhez képest"},"  xx  ","https://miau.my-x.hu/miau/272/cash2.xls",null,{"$f":"C7","v":"Alternatív megoldások regressziós modellekben hasonlóságelemzésekhez képest"}]
[null,"(MY-X Team):","(Alternative solutions of regression models compared to similarity analyses)"]
["miau272","Pitlik László","Triatlon-csapatok optimalizálása solver-támogatással","(+)",null,{"$f":"A9","v":"miau272"},"Pitlik László",":",{"$f":"M9","v":"Triatlon-csapatok optimalizálása solver-támogatással"},"  xx  ","https://miau.my-x.hu/miau/272/triatlon_solver_es_trukk.xlsx",null,{"$f":"C9","v":"Triatlon-csapatok optimalizálása solver-támogatással"}]
[null,"(MY-X team):","(Optimization of triatlon-teams based on solver)"]
["miau272","Pitlik László, Pitlik Marcell","Roo-Boo-MOOC, avagy a robotizált MOOC-fejlesztés lehetőségei és korlátai II.","(+)",null,{"$f":"A11","v":"miau272"},"Pitlik László, Pitlik Marcell",":",{"$f":"M11","v":"Roo-Boo-MOOC, avagy a robotizált MOOC-fejlesztés lehetőségei és korlátai II."},"  xx  ","https://miau.my-x.hu/miau/272/Roo_Boo_Mooc_2.docx",null,{"$f":"C11","v":"Roo-Boo-MOOC, avagy a robotizált MOOC-fejlesztés lehetőségei és korlátai II."}]
[null,"(MY-X team):","(Potentials and barriers in the robotized MOOC-development- Part II.)"]
["miau272","Pitlik László, Pitlik Marcell, Pitlik Mátyás, Rikk János","A hamis remény kódjai, avagy mi különbözteti meg a jó és a középszerű programozókat egymástól?","(+)",null,{"$f":"A13","v":"miau272"},"Pitlik László, Pitlik Marcell, Pitlik Mátyás, Rikk János",":",{"$f":"M13","v":"A hamis remény kódjai, avagy mi különbözteti meg a jó és a középszerű programozókat egymástól?"},"  xx  ","https://miau.my-x.hu/miau/272/a_hamis_remeny_kodjai.docx",null,{"$f":"C13","v":"A hamis remény kódjai, avagy mi különbözteti meg a jó és a középszerű programozókat egymástól?"}]
[null,"(MY-X team):","(Codes of the false hope – or what are the differences between the good and the norm-like programmers?)"]
["miau272","Pitlik László, Pitlik Marcell","Anonimitás, mint a jövő pénze","(+)",null,{"$f":"A15","v":"miau272"},"Pitlik László, Pitlik Marcell",":",{"$f":"M15","v":"Anonimitás, mint a jövő pénze"},"  xx  ","https://miau.my-x.hu/miau/272/anonimtas_az_uj_penz.docx",null,{"$f":"C15","v":"Anonimitás, mint a jövő pénze"}]
[null,"(MY-X team):","(Anonymity as a kind of money of the future)"]
["miau273","Pitlik László","BELBIN-teszt hasonlóság-alapú értékelése","(+)",null,{"$f":"A17","v":"miau273"},"Pitlik László",":",{"$f":"M17","v":"BELBIN-teszt hasonlóság-alapú értékelése"},"  xx  ","https://miau.my-x.hu/miau/273/belbin2.xlsm",null,{"$f":"C17","v":"BELBIN-teszt hasonlóság-alapú értékelése"}]
[null,"(MY-X team):","(Belbin-test evaluation based on similarity analyses)"]
["miau273","Pitlik László (jun)","BELBIN-teszt kánon-alapú értékelése","(+)",null,{"$f":"A19","v":"miau273"},"Pitlik László (jun)",":",{"$f":"M19","v":"BELBIN-teszt kánon-alapú értékelése"},"  xx  ","https://miau.my-x.hu/miau/273/belbin1.xlsm",null,{"$f":"C19","v":"BELBIN-teszt kánon-alapú értékelése"}]
[null,"(MY-X team):","(Belbin-test canonized evaluation)"]
["miau273","Válogatás","A kódlopó/kódkölcsönző programozásról","(+)",null,{"$f":"A21","v":"miau273"},"Válogatás",":",{"$f":"M21","v":"A kódlopó/kódkölcsönző programozásról"},"  xx  ","https://miau.my-x.hu/miau/273/prg_valogatas.docx",null,{"$f":"C21","v":"A kódlopó/kódkölcsönző programozásról"}]
[null,"(MY-X team):","(How to create source codes based on prepared elements?)"]
["miau273","Pitlik László","Termelési szerkezet optimalizálása Solver-alapon","(+)",null,{"$f":"A23","v":"miau273"},"Pitlik László",":",{"$f":"M23","v":"Termelési szerkezet optimalizálása Solver-alapon"},"  xx  ","https://miau.my-x.hu/miau/273/mcm3_2021.xls",null,{"$f":"C23","v":"Termelési szerkezet optimalizálása Solver-alapon"}]
[null,"(MY-X team):","(Optimizing production structure based on MS Excel-Solver)"]
["miau273","Pitlik László","Termelési szerkezet optimalizálása MCM-alapon","(+)",null,{"$f":"A25","v":"miau273"},"Pitlik László",":",{"$f":"M25","v":"Termelési szerkezet optimalizálása MCM-alapon"},"  xx  ","https://miau.my-x.hu/miau/273/mcm2_2021.xlsm",null,{"$f":"C25","v":"Termelési szerkezet optimalizálása MCM-alapon"}]
[null,"(MY-X team):","(Optimizing production structure based on MCM)"]
["miau273","Pitlik László, Rikk János, Pitlik Marcell","Naiv és optimalizált versenyértékelés az oktatásban","(+)",null,{"$f":"A27","v":"miau273"},"Pitlik László, Rikk János, Pitlik Marcell",":",{"$f":"M27","v":"Naiv és optimalizált versenyértékelés az oktatásban"},"  xx  ","https://miau.my-x.hu/miau/273/Naiv_optimalizalt_verziok2.docx",null,{"$f":"C27","v":"Naiv és optimalizált versenyértékelés az oktatásban"}]
[null,"(MY-X team):","(Naïve and optimized evaluation in competitive education)"]
["miau273","Pitlik László, Rikk János","Felsőoktatási intézmények teljesítmény-ellenőrzési rendszervariánsai","(+)",null,{"$f":"A29","v":"miau273"},"Pitlik László, Rikk János",":",{"$f":"M29","v":"Felsőoktatási intézmények teljesítmény-ellenőrzési rendszervariánsai"},"  xx  ","https://miau.my-x.hu/miau/273/performance.docx",null,{"$f":"C29","v":"Felsőoktatási intézmények teljesítmény-ellenőrzési rendszervariánsai"}]
[null,"(MY-X team):","(Variations for performance control systems in the higher education)"]
["miau273","Pitlik László, Pitlik Marcell","Alternatív megoldások idősorok legkarakterisztikusabb vágópontjainak feltárására","(+)",null,{"$f":"A31","v":"miau273"},"Pitlik László, Pitlik Marcell",":",{"$f":"M31","v":"Alternatív megoldások idősorok legkarakterisztikusabb vágópontjainak feltárására"},"  xx  ","https://miau.my-x.hu/miau/273/oe3_szakaszolas_demo.xlsx",null,{"$f":"C31","v":"Alternatív megoldások idősorok legkarakterisztikusabb vágópontjainak feltárására"}]
[null,"(MY-X team):","(Alternative solutions for the most characteristic cutting points in time series)"]
["miau273","Pitlik László, Pitlik Marcell","Az olaj, mint nyersanyag iránti érdeklődés lehetséges értelmezései","(+)",null,{"$f":"A33","v":"miau273"},"Pitlik László, Pitlik Marcell",":",{"$f":"M33","v":"Az olaj, mint nyersanyag iránti érdeklődés lehetséges értelmezései"},"  xx  ","https://miau.my-x.hu/miau/273/oil1.xlsx",null,{"$f":"C33","v":"Az olaj, mint nyersanyag iránti érdeklődés lehetséges értelmezései"}]
[null,"(MY-X team):","(Potential interpretations of Google-Trends about oil as such)"]
["miau273","Pitlik László, Pitlik Marcell","Hallgatói dolgozatok értékelése csak a kivonatok alapján, avagy a kivonat tartalmának szabványosítási kísérlete","(+)",null,{"$f":"A35","v":"miau273"},"Pitlik László, Pitlik Marcell",":",{"$f":"M35","v":"Hallgatói dolgozatok értékelése csak a kivonatok alapján, avagy a kivonat tartalmának szabványosítási kísérlete"},"  xx  ","https://miau.my-x.hu/miau/273/otdk_2021_abstract_standards.docx",null,{"$f":"C35","v":"Hallgatói dolgozatok értékelése csak a kivonatok alapján, avagy a kivonat tartalmának szabványosítási kísérlete"}]
[null,"(MY-X team):","(Evaluation of studies of Students based only on the abstract – or an attempt for standardization of abstracts)"]
["miau273","Pitlik Mátyás, Pitlik Marcell, Pitlik László, Pitlik László (jun)","Érmevásárlás hasonlóságelemzési alapon, avagy alternatív modellek és ezek kölcsönhatásai","(+)",null,{"$f":"A37","v":"miau273"},"Pitlik Mátyás, Pitlik Marcell, Pitlik László, Pitlik László (jun)",":",{"$f":"M37","v":"Érmevásárlás hasonlóságelemzési alapon, avagy alternatív modellek és ezek kölcsönhatásai"},"  xx  ","https://miau.my-x.hu/miau/273/erem_befektetes_coco.xlsx",null,{"$f":"C37","v":"Érmevásárlás hasonlóságelemzési alapon, avagy alternatív modellek és ezek kölcsönhatásai"}]
[null,"(MY-X team):","(Numismatic decision support based on alternative similarity analyses)"]
["miau273","Pitlik László, Pitlik Marcell","A Coursera aranykora, avagy az önkorlátozó mesterséges intelligencia","(+)",null,{"$f":"A39","v":"miau273"},"Pitlik László, Pitlik Marcell",":",{"$f":"M39","v":"A Coursera aranykora, avagy az önkorlátozó mesterséges intelligencia"},"  xx  ","https://miau.my-x.hu/miau/273/moocs.docx",null,{"$f":"C39","v":"A Coursera aranykora, avagy az önkorlátozó mesterséges intelligencia"}]
[null,"(MY-X team):","(Golden Age for Coursera – or self-limitation of artificial intelligence)"]
["miau273","Takács Vivien, Pitlik László","A SAMSUNG és a DELL brand-érték alakulásának összehasonlító elemzése","(+)",null,{"$f":"A41","v":"miau273"},"Takács Vivien, Pitlik László",":",{"$f":"M41","v":"A SAMSUNG és a DELL brand-érték alakulásának összehasonlító elemzése"},"  xx  ","https://miau.my-x.hu/miau/273/adidas_story.pdf#page=27",null,{"$f":"C41","v":"A SAMSUNG és a DELL brand-érték alakulásának összehasonlító elemzése"}]
[null,"(Learning Innovation Kft., My-X team):","(Comparative analysis of the time series of brand values concerning Samsung and Dell)"]
["miau273","Garabits Edina, Pitlik László","A COURSERA és az UDEMY brand-érték alakulásának összehasonlító elemzése","(+)",null,{"$f":"A43","v":"miau273"},"Garabits Edina, Pitlik László",":",{"$f":"M43","v":"A COURSERA és az UDEMY brand-érték alakulásának összehasonlító elemzése"},"  xx  ","https://miau.my-x.hu/miau/273/adidas_story.pdf#page=20",null,{"$f":"C43","v":"A COURSERA és az UDEMY brand-érték alakulásának összehasonlító elemzése"}]
[null,"(Learning Innovation Kft., My-X team):","(Comparative analysis of the time series of brand values concerning Coursera and Udemy)"]
["miau273","Boross Gábor, Pitlik László","A FERRARI brand-értékének idősoros alakulása, avagy a WIKIPEDIA hangulatértékek becslése","(+)",null,{"$f":"A45","v":"miau273"},"Boross Gábor, Pitlik László",":",{"$f":"M45","v":"A FERRARI brand-értékének idősoros alakulása, avagy a WIKIPEDIA hangulatértékek becslése"},"  xx  ","https://miau.my-x.hu/miau/273/adidas_story.pdf#page=14",null,"A FERRARI brand-értékének idősoros alakulása, avagy a WIKIPEDIA hangulatértékek becslése"]
[null,"(Learning Innovation Kft., My-X team):","(The time-series of the brand values of Ferrari from point of view of a robot historian – or estimation of emotional directions of Wikipedia about an enterprise)"]
["miau273","Kemény Norbert, Pitlik László","A SAMSUNG Electronics aranykora, avagy a naiv és a robotszem párhuzamai és eltérései","(+)",null,{"$f":"A47","v":"miau273"},"Kemény Norbert, Pitlik László",":",{"$f":"M47","v":"A SAMSUNG Electronics aranykora, avagy a naiv és a robotszem párhuzamai és eltérései"},"  xx  ","https://miau.my-x.hu/miau/273/adidas_story.pdf#page=8",null,"A SAMSUNG Electronics aranykora, avagy a naiv és a robotszem párhuzamai és eltérései"]
[null,"(Learning Innovation Kft., My-X team):","(The golden age of the Samsung Electronics company– or parallelisms and differences between robot eyes and naïve problem handling strategies)"]
["miau273","Rácz Zsolt, Pitlik László","Az ADIDAS-történet robotszemmel – avagy a validáció új aspektusai a hasonlóságelemzésben","(+)",null,{"$f":"A49","v":"miau273"},"Rácz Zsolt, Pitlik László",":",{"$f":"M49","v":"Az ADIDAS-történet robotszemmel – avagy a validáció új aspektusai a hasonlóságelemzésben"},"  xx  ","https://miau.my-x.hu/miau/273/adidas_story.pdf#page=1",null,"Az ADIDAS-történet robotszemmel – avagy a validáció új aspektusai a hasonlóságelemzésben"]
[null,"(Learning Innovation Kft., My-X team):","(The Adidas-story from point of view of a robot historian – or new aspects of the validation in the similarity analyses)"]
["miau274","Gergics Miléna, Pitlik László","Robotedző és robot-pszichológus feltörekvő labdarúgók piaci értékének növelésére","(+)",null,{"$f":"A51","v":"miau274"},"Gergics Miléna, Pitlik László",":",{"$f":"M51","v":"Robotedző és robot-pszichológus feltörekvő labdarúgók piaci értékének növelésére"},"  xx  ","https://miau.my-x.hu/miau/274/transfermarkt.xlsx",null,"Robotedző és robot-pszichológus feltörekvő labdarúgók piaci értékének növelésére"]
[null,"(MY-X team):","(Robot-coach and Robot-psychologist for increasing market value of young soccers)"]
["miau274","Pitlik Marcell","OTDK-MP3: Térfogati égés optikai vizsgálata és mesterséges intelligencia alapú elemzése","(+)",null,{"$f":"A53","v":"miau274"},"Pitlik Marcell",":",{"$f":"M53","v":"OTDK-MP3: Térfogati égés optikai vizsgálata és mesterséges intelligencia alapú elemzése"},"  xx  ","https://miau.my-x.hu/miau/274/OTDK_PM_v1.mp3",null,"OTDK-MP3: Térfogati égés optikai vizsgálata és mesterséges intelligencia alapú elemzése"]
[null,"(MY-X team):","(Optical diagnostics and analysis of steady combustion based on artificial intelligence)"]
["miau274","Pitlik Marcell","OTDK-PPT: Térfogati égés optikai vizsgálata és mesterséges intelligencia alapú elemzése","(+)",null,{"$f":"A55","v":"miau274"},"Pitlik Marcell",":",{"$f":"M55","v":"OTDK-PPT: Térfogati égés optikai vizsgálata és mesterséges intelligencia alapú elemzése"},"  xx  ","https://miau.my-x.hu/miau/274/OTDK_PM_v1.pptx",null,"OTDK-PPT: Térfogati égés optikai vizsgálata és mesterséges intelligencia alapú elemzése"]
[null,"(MY-X team):","(Optical diagnostics and analysis of steady combustion based on artificial intelligence)"]
["miau274","Pitlik László","Blokklánc-blokkok optimalizált feltöltésének alternatív megoldásai","(+)",null,{"$f":"A57","v":"miau274"},"Pitlik László",":",{"$f":"M57","v":"Blokklánc-blokkok optimalizált feltöltésének alternatív megoldásai"},"  xx  ","https://miau.my-x.hu/miau/274/blockchain_backpack.xlsx",null,"Blokklánc-blokkok optimalizált feltöltésének alternatív megoldásai"]
[null,"(MY-X team):","(Alternative solutions for defining transactions for blocks of blockchains)"]
["miau274","Pitlik László, Pitlik Marcell","Solver-függő alternatív megoldások a hasonlóságelemzésben","(+)",null,{"$f":"A59","v":"miau274"},"Pitlik László, Pitlik Marcell",":",{"$f":"M59","v":"Solver-függő alternatív megoldások a hasonlóságelemzésben"},"  xx  ","https://miau.my-x.hu/miau/274/solver_driven_alternatives.docx",null,"Solver-függő alternatív megoldások a hasonlóságelemzésben"]
[null,"(MY-X team):","(Solver-driven alternative solutions in the similarity analysis)"]
["miau274","Pitlik László","Látszólagos teljes invaliditás függvény-szimmetria vizsgálatok nyomán lépcsős függvényekkel","(+)",null,{"$f":"A61","v":"miau274"},"Pitlik László",":",{"$f":"M61","v":"Látszólagos teljes invaliditás függvény-szimmetria vizsgálatok nyomán lépcsős függvényekkel"},"  xx  ","https://miau.my-x.hu/miau/274/csak_invalid_objektum.xlsx",null,"Látszólagos teljes invaliditás függvény-szimmetria vizsgálatok nyomán lépcsős függvényekkel"]
[null,"(MY-X team):","(Seemingly total invalidity based on symmetry analyses of staircase functions)"]

{"sheet":"nyers","index":9,"n_rows":152,"n_cols":13,"rows_kept":152,"cut":false,"hidden":false,"merged":[[60,3,61,3],[56,3,57,3],[58,3,59,3],[70,3,71,3],[62,3,63,3],[64,3,65,3],[66,3,67,3],[68,3,69,3],[44,3,45,3],[46,3,47,3],[48,3,49,3],[50,3,51,3],[54,3,55,3],[52,3,53,3],[88,3,89,3],[72,2,73,2],[72,3,73,3],[74,3,75,3],[76,3,77,3],[82,3,83,3],[84,3,85,3],[86,2,87,2],[86,3,87,3],[78,3,79,3],[80,3,81,3],[80,2,81,2],[38,3,39,3],[40,3,41,3],[42,3,43,3],[30,3,31,3],[32,3,33,3],[34,3,35,3],[28,3,29,3],[18,3,19,3],[20,3,21,3],[22,3,23,3],[36,3,37,3],[0,3,1,3],[2,3,3,3],[4,3,5,3],[24,3,25,3],[26,3,27,3],[12,3,13,3],[14,3,15,3],[16,3,17,3],[6,3,7,3],[8,3,9,3],[10,3,11,3],[36,2,37,2],[54,2,55,2],[56,2,57,2],[74,2,75,2],[90,3,91,3],[92,3,93,3],[94,3,95,3],[96,3,97,3],[98,3,99,3],[100,3,101,3],[102,3,103,3],[104,3,105,3],[106,3,107,3],[108,3,109,3],[110,3,111,3],[112,3,113,3],[114,3,115,3],[116,3,117,3],[118,3,119,3],[120,3,121,3],[122,3,123,3],[124,3,125,3],[126,3,127,3],[128,3,129,3],[130,3,131,3],[132,3,133,3],[134,3,135,3],[136,3,137,3],[138,3,139,3],[148,3,149,3],[150,3,151,3],[140,2,141,2],[140,3,141,3],[142,3,143,3],[144,3,145,3],[146,3,147,3]]}
["miau275","Pitlik László","COCO-MCM lépcsőszám optimalizálási kísérletek","(+)",null,{"$f":"A1","v":"miau275"},{"$f":"B1","v":"Pitlik László"},":",{"$f":"M1","v":"COCO-MCM lépcsőszám optimalizálási kísérletek"},"  xx  ","https://miau.my-x.hu/miau/275/coco_mcm_opt_perx.xlsx",null,{"$f":"C1","v":"COCO-MCM lépcsőszám optimalizálási kísérletek"}]
[null,"(MY-X team):","(Optimization attempts for COCO-MCM- stair-counts)"]
["miau275","Pitlik László","Nyelvi rekeszelés, avagy hogyan érzékeltessük írásban a hangsúlyozást avatárok számára","(+)",null,{"$f":"A3","v":"miau275"},{"$f":"B3","v":"Pitlik László"},":",{"$f":"M3","v":"Nyelvi rekeszelés, avagy hogyan érzékeltessük írásban a hangsúlyozást avatárok számára"},"  xx  ","https://miau.my-x.hu/miau/275/nyelvi_rekeszeles.docx",null,{"$f":"C3","v":"Nyelvi rekeszelés, avagy hogyan érzékeltessük írásban a hangsúlyozást avatárok számára"}]
[null,"(MY-X team):","(The role of the structuring in the interpretation of languages/sentences or how it is possible to initialize verbal effects in written form)"]
["miau275","Pitlik László","Legalább egyszer előforduló értékek darabszámának megszámlálása Excel-függvényekre alapozva","(+)",null,{"$f":"A5","v":"miau275"},{"$f":"B5","v":"Pitlik László"},":",{"$f":"M5","v":"Counting of distinct values based on Excel-functions"},"  xx  ","https://miau.my-x.hu/miau/275/occamsrazor_special.xlsx",null,"Counting of distinct values based on Excel-functions"]
[null,"(MY-X team):","(Counting of distinct values based on Excel-functions)"]
["miau275","Pitlik Marcell","Félvezetők gyártási hibájának automatizált felismerése tömeges szenzor-adatok alapján","(+)",null,{"$f":"A7","v":"miau275"},{"$f":"B7","v":"Pitlik Marcell"},":",{"$f":"M7","v":"Félvezetők gyártási hibájának automatizált felismerése tömeges szenzor-adatok alapján"},"  xx  ","https://miau.my-x.hu/miau/275/semiconductors_SECOM_PM.docx",null,{"$f":"C7","v":"Félvezetők gyártási hibájának automatizált felismerése tömeges szenzor-adatok alapján"}]
[null,"(MY-X team):","(Automated error-detection in the production of semiconductors based on big data from sensor-information)"]
["miau275","Pitlik Marcell","Félvezetők gyártási hibájának felismerése lépcsős függvényekkel a SECOM adatbázis alapján","(+)",null,{"$f":"A9","v":"miau275"},{"$f":"B9","v":"Pitlik Marcell"},":",{"$f":"M9","v":"Félvezetők gyártási hibájának felismerése lépcsős függvényekkel a SECOM adatbázis alapján"},"  xx  ","https://miau.my-x.hu/miau/275/secom_pm_2.pptx",null,{"$f":"C9","v":"Félvezetők gyártási hibájának felismerése lépcsős függvényekkel a SECOM adatbázis alapján"}]
[null,"(MY-X team):","(Derivation of production errors in case of semiconductors based on the SECOM-database)"]
["miau275","Pitlik László, Barta Gergő","Anti-diszkriminatív modellezés közelítése solver-alapú neurális hálókkal","(+)",null,{"$f":"A11","v":"miau275"},{"$f":"B11","v":"Pitlik László, Barta Gergő"},":",{"$f":"M11","v":"Anti-diszkriminatív modellezés közelítése solver-alapú neurális hálókkal"},"  xx  ","https://miau.my-x.hu/miau/275/solver-based-neural-networks.docx",null,{"$f":"C11","v":"Anti-diszkriminatív modellezés közelítése solver-alapú neurális hálókkal"}]
[null,"(MY-X team):","(Approximation of anti-discriminative models based on solver-based neural networks)"]
["miau275","Pitlik László, Pitlik Marcell","A lépcsős függvények szimmetria-alapú validitása és a nyersadatok kapcsolata","(+)",null,{"$f":"A13","v":"miau275"},{"$f":"B13","v":"Pitlik László, Pitlik Marcell"},":",{"$f":"M13","v":"A lépcsős függvények szimmetria-alapú validitása és a nyersadatok kapcsolata"},"  xx  ","https://miau.my-x.hu/miau/275/validity.docx",null,{"$f":"C13","v":"A lépcsős függvények szimmetria-alapú validitása és a nyersadatok kapcsolata"}]
[null,"(MY-X team):","(Connection between the raw data and the validity based on symmetry in case of staircase functions)"]
["miau275","Pitlik László","MP3: Automatizáció a kis és kkv-szektorban","(+)",null,{"$f":"A15","v":"miau275"},{"$f":"B15","v":"Pitlik László"},":",{"$f":"M15","v":"MP3: Automatizáció a kis és kkv-szektorban"},"  xx  ","https://miau.my-x.hu/miau/275/3of3.mp3",null,{"$f":"C15","v":"MP3: Automatizáció a kis és kkv-szektorban"}]
[null,"(KJE):","(Automation concerning SMEs)"]
["miau276","Pitlik László (jun)","Tanári záróvizsga - Szakdolgozatvédés - Tudásszintmérő tesztek","(+)",null,{"$f":"A17","v":"miau276"},{"$f":"B17","v":"Pitlik László (jun)"},":",{"$f":"M17","v":"Tanári záróvizsga - Szakdolgozatvédés - Tudásszintmérő tesztek"},"  xx  ","https://miau.my-x.hu/matkut/eredmenyek/szd_vedes-PitlikL.pptx",null,{"$f":"C17","v":"Tanári záróvizsga - Szakdolgozatvédés - Tudásszintmérő tesztek"}]
[null,"(ELTE):","(Final exam (thesis): Tests for deriving knowledge levels)"]
["miau276","Varga Dorottya","Ár-kockázat értékelés - VÉRNYOMÁSCSÖKKENTŐK","(+)",null,{"$f":"A19","v":"miau276"},{"$f":"B19","v":"Varga Dorottya"},":",{"$f":"M19","v":"Ár-kockázat értékelés - VÉRNYOMÁSCSÖKKENTŐK"},"  xx  ","https://miau.my-x.hu/miau/276/oe/ACE_gatlok/ACE-gatlok.pdf",null,{"$f":"C19","v":"Ár-kockázat értékelés - VÉRNYOMÁSCSÖKKENTŐK"}]
[null,"(OE):","(Price-risk assessment - ANTIHYPERTENSIVES)"]
["miau276","Kis András Nándor","Döntési esetjáték – optimalizált kezelése avagy kuratóriumi döntések robotizálási kísérletei","(+)",null,{"$f":"A21","v":"miau276"},{"$f":"B21","v":"Kis András Nándor"},":",{"$f":"M21","v":"Döntési esetjáték – optimalizált kezelése avagy kuratóriumi döntések robotizálási kísérletei"},"  xx  ","https://miau.my-x.hu/miau/276/oe/kuratorium/ux63p9_doku_final.pdf",null,{"$f":"C21","v":"Döntési esetjáték – optimalizált kezelése avagy kuratóriumi döntések robotizálási kísérletei"}]
[null,"(OE):","(Decision case study – with optimization or attempts to robotize board decisions)"]
["miau276","Dlehány Noémi","Milyen mobilt vegyek 2021-ben?","(+)",null,{"$f":"A23","v":"miau276"},{"$f":"B23","v":"Dlehány Noémi"},":",{"$f":"M23","v":"Milyen mobilt vegyek 2021-ben?"},"  xx  ","https://miau.my-x.hu/miau/276/oe/smartphones/smartphones.pdf",null,{"$f":"C23","v":"Milyen mobilt vegyek 2021-ben?"}]
[null,"(OE):","((What cell phone should I buy in 2021?)"]
["miau276","Mácz Andrea, Pitlik Marcell, Nyomárkay Kristóf, Németh Tamás","PPT: Autós forgalom számlálása","(+)",null,{"$f":"A25","v":"miau276"},{"$f":"B25","v":"Mácz Andrea, Pitlik Marcell, Nyomárkay Kristóf, Németh Tamás"},":",{"$f":"M25","v":"PPT: Autós forgalom számlálása"},"  xx  ","https://miau.my-x.hu/miau/276/forgalomszamlalas/GL_projekt_vegleges.pptx",null,{"$f":"C25","v":"PPT: Autós forgalom számlálása"}]
[null,"(BME):","(Counting of cars in real traffic situations)"]
["miau276","Mácz Andrea, Pitlik Marcell, Nyomárkay Kristóf, Németh Tamás","Autós forgalom számlálása","(+)",null,{"$f":"A27","v":"miau276"},{"$f":"B27","v":"Mácz Andrea, Pitlik Marcell, Nyomárkay Kristóf, Németh Tamás"},":",{"$f":"M27","v":"Autós forgalom számlálása"},"  xx  ","https://miau.my-x.hu/miau/276/forgalomszamlalas/GL_projekt_NT_NYK_MA_PM.pdf",null,{"$f":"C27","v":"Autós forgalom számlálása"}]
[null,"(BME):","(Counting of cars in real traffic situations)"]
["miau276","Ujlaki Richárd","Hol éri meg legjobban egy VIR-fejlesztői központot létrehozni Európában és miért?","(+)",null,{"$f":"A29","v":"miau276"},{"$f":"B29","v":"Ujlaki Richárd"},":",{"$f":"M29","v":"Hol éri meg legjobban egy VIR-fejlesztői központot létrehozni Európában és miért?"},"  xx  ","https://miau.my-x.hu/miau/276/kje/vir/vir.docx",null,{"$f":"C29","v":"Hol éri meg legjobban egy VIR-fejlesztői központot létrehozni Európában és miért?"}]
[null,"(KJE):","(Where can we build up the best price per value VIR development centre in Europe and why there?)"]
["miau276","Györgydeák Balázs Péter","Szakdolgozat: A szoftverfejlesztés gazdaságtana","(+)",null,{"$f":"A31","v":"miau276"},{"$f":"B31","v":"Györgydeák Balázs Péter"},":",{"$f":"M31","v":"Szakdolgozat: A szoftverfejlesztés gazdaságtana"},"  xx  ","https://miau.my-x.hu/miau/276/kje/szd1/a_szoftverfejlesztees_gazdasagtana.pdf",null,{"$f":"C31","v":"Szakdolgozat: A szoftverfejlesztés gazdaságtana"}]
[null,"(KJE):","(Information added value in the software engineering)"]
["miau276","Bagdi Dóra, Dúcs Attila, Martonosi Edit","Reprodukálási rejtvény: Hogyan lehet a klasszikus kérdőív értelmezéstől eljutni a modern adatelemzésig","(+)",null,{"$f":"A33","v":"miau276"},{"$f":"B33","v":"Bagdi Dóra, Dúcs Attila, Martonosi Edit"},":",{"$f":"M33","v":"Reprodukálási rejtvény: Hogyan lehet a klasszikus kérdőív értelmezéstől eljutni a modern adatelemzésig"},"  xx  ","https://miau.my-x.hu/miau/276/kje/questionnaires/Alkalmazott informatika (k%e9sz).docx",null,{"$f":"C33","v":"Reprodukálási rejtvény: Hogyan lehet a klasszikus kérdőív értelmezéstől eljutni a modern adatelemzésig"}]
[null,"(KJE):","(Challenge of reproduction concerning classic and modern interpretation of questionnaires)"]
["miau276","Pétery Zoltán","Utasbiztosítási szokások feltérképezése kimutatások és elemző modulok segítségével a kiegészítő fedezetek tekintetében","(+)",null,{"$f":"A35","v":"miau276"},{"$f":"B35","v":"Pétery Zoltán"},":",{"$f":"M35","v":"Utasbiztosítási szokások feltérképezése kimutatások és elemző modulok segítségével a kiegészítő fedezetek tekintetében"},"  xx  ","https://miau.my-x.hu/miau/276/kje/mcm/pz.pdf",null,{"$f":"C35","v":"Utasbiztosítási szokások feltérképezése kimutatások és elemző modulok segítségével a kiegészítő fedezetek tekintetében"}]
[null,"(KJE):","(Pattern exploration in case of extra modules of the travel insurances based on reports and AI-models)"]
["miau276","Csizmadia Szilvia","WHICH EUROPEAN COUNTRY IS THE BEST TO LIVE IN? / WO LEBT SICH AM BESTEN IN EUROPA?","(+)",null,{"$f":"A37","v":"miau276"},{"$f":"B37","v":"Csizmadia Szilvia"},":",{"$f":"M37","v":"WHICH EUROPEAN COUNTRY IS THE BEST TO LIVE IN? / WO LEBT SICH AM BESTEN IN EUROPA?"},"  xx  ","https://miau.my-x.hu/miau/276/kje/eu/Szilvia Csizmadia KJO0IX Ranking EU.pdf",null,{"$f":"C37","v":"WHICH EUROPEAN COUNTRY IS THE BEST TO LIVE IN? / WO LEBT SICH AM BESTEN IN EUROPA?"}]
[null,"(KJE):"]
["miau276","Pitlik Marcell","Égések mesterséges intelligencia-alapú elemzése","(+)",null,{"$f":"A39","v":"miau276"},{"$f":"B39","v":"Pitlik Marcell"},":",{"$f":"M39","v":"Égések mesterséges intelligencia-alapú elemzése"},"  xx  ","https://miau.my-x.hu/miau/276/ARM_HF_PM.pptx",null,{"$f":"C39","v":"Égések mesterséges intelligencia-alapú elemzése"}]
[null,"(MY-X team):","(AI-based analyses of the combustion)"]
["miau276","Pitlik László, Pitlik Dóra","A leggyakrabban használt Google felhőszolgáltatások bemutatása és azok gyakorlati alkalmazhatóságának megismertetése","(+)",null,{"$f":"A41","v":"miau276"},{"$f":"B41","v":"Pitlik László, Pitlik Dóra"},":",{"$f":"M41","v":"A leggyakrabban használt Google felhőszolgáltatások bemutatása és azok gyakorlati alkalmazhatóságának megismertetése"},"  xx  ","https://miau.my-x.hu/miau/276/google_services.docx",null,{"$f":"C41","v":"A leggyakrabban használt Google felhőszolgáltatások bemutatása és azok gyakorlati alkalmazhatóságának megismertetése"}]
[null,"(MY-X team):","(Most frequently used Google Services and their utilities in information brokering)"]
["miau276","Pitlik László, Pitlik Mátyás","Részletek egy kísérleti HPC-projekt kommunikációjából","(+)",null,{"$f":"A43","v":"miau276"},{"$f":"B43","v":"Pitlik László, Pitlik Mátyás"},":",{"$f":"M43","v":"Részletek egy kísérleti HPC-projekt kommunikációjából"},"  xx  ","https://miau.my-x.hu/miau/276/hpc_spec.docx",null,{"$f":"C43","v":"Részletek egy kísérleti HPC-projekt kommunikációjából"}]
[null,"(MY-X team):","(Details from communication activities in frame of an experimental HPC-project)"]
["miau276","Pitlik László (jun)","Tudásszintmérő tesztek: a feladattípusok és a tanulói válaszadási stratégiák vizsgálata (szakdolgozat)","(+)",null,{"$f":"A45","v":"miau276"},{"$f":"B45","v":"Pitlik László (jun)"},":",{"$f":"M45","v":"Tudásszintmérő tesztek: a feladattípusok és a tanulói válaszadási stratégiák vizsgálata (szakdolgozat)"},"  xx  ","https://miau.my-x.hu/matkut/eredmenyek/szakdolgozat-pL-sign.pdf",null,{"$f":"C45","v":"Tudásszintmérő tesztek: a feladattípusok és a tanulói válaszadási stratégiák vizsgálata (szakdolgozat)"}]
[null,"(ELTE):","(Thesis: Analyses of types of tasks and answer-strategies of Students in frame of tests constructed for exploration of knowledge levels)"]
["miau276","Pitlik László (jun)","Egyedi kérdőívezési keretrendszer éles verziója PHP-alapon","(+)",null,{"$f":"A47","v":"miau276"},{"$f":"B47","v":"Pitlik László (jun)"},":",{"$f":"M47","v":"Egyedi kérdőívezési keretrendszer éles verziója PHP-alapon"},"  xx  ","https://miau.my-x.hu/matkut/",null,{"$f":"C47","v":"Egyedi kérdőívezési keretrendszer éles verziója PHP-alapon"}]
[null,"(ELTE):","(Unique system for questionnaires based on PHP with real questions and controls)"]
["miau277","Pitlik László, Rikk János","Publikációk anonim, párhuzamos bírálatainak anomáliái","(+)",null,{"$f":"A49","v":"miau277"},{"$f":"B49","v":"Pitlik László, Rikk János"},":",{"$f":"M49","v":"Publikációk anonim, párhuzamos bírálatainak anomáliái"},"  xx  ","https://miau.my-x.hu/miau/275/review_anomalies.docx",null,{"$f":"C49","v":"Publikációk anonim, párhuzamos bírálatainak anomáliái"}]
[null,"(MY-X team):","(Anomalies of anonymous, parallel evaluations of publications)"]
["miau277","Pitlik László","Solver-alapú problémamegoldás, avagy ami a matematikai oktatásból kimaradt","(+)",null,{"$f":"A51","v":"miau277"},{"$f":"B51","v":"Pitlik László"},":",{"$f":"M51","v":"Solver-alapú problémamegoldás, avagy ami a matematikai oktatásból kimaradt"},"  xx  ","https://miau.my-x.hu/miau/277/KE2021_KJE.pptx",null,{"$f":"C51","v":"Solver-alapú problémamegoldás, avagy ami a matematikai oktatásból kimaradt"}]
[null,"(MY-X team):","(Solver-based problem solving or what might be missing in the education of the mathematics)"]
["miau277","Pitlik László","Solver-es kompetenciamérésre alkalmas alapfeladat","(+)",null,{"$f":"A53","v":"miau277"},{"$f":"B53","v":"Pitlik László"},":",{"$f":"M53","v":"Solver-es kompetenciamérésre alkalmas alapfeladat"},"  xx  ","https://miau.my-x.hu/miau/277/solver_kompetenciameres_8_10_2020.xlsx",null,{"$f":"C53","v":"Solver-es kompetenciamérésre alkalmas alapfeladat"}]
[null,"(MY-X team):","(Basic task for competence evaluation concerning Solver-oriented problem solving)"]
["miau277","Pitlik László, Pitlik Marcell","Mirror-ball-based seeing in multi-layered evaluation I.","(+)",null,{"$f":"A55","v":"miau277"},{"$f":"B55","v":"Pitlik László, Pitlik Marcell"},":",{"$f":"M55","v":"Mirror-ball-based seeing in multi-layered evaluation I."},"  xx  ","https://miau.my-x.hu/miau/277/mirror_ball_based_multi_layered_evaluation.docx",null,{"$f":"C55","v":"Mirror-ball-based seeing in multi-layered evaluation I."}]
[null,"(MY-X team):"]
["miau277","Pitlik László, Pitlik László (jun)","Multi-layered, objective, optimized evaluation of strategies over static code analysis tools","(+)",null,{"$f":"A57","v":"miau277"},{"$f":"B57","v":"Pitlik László, Pitlik László (jun)"},":",{"$f":"M57","v":"Multi-layered, objective, optimized evaluation of strategies over static code analysis tools"},"  xx  ","https://miau.my-x.hu/miau/277/multi_layered_evaluation_of_static_code_analysis_tools.docx",null,{"$f":"C57","v":"Multi-layered, objective, optimized evaluation of strategies over static code analysis tools"}]
[null,"(MY-X team):"]
["miau277","Pitlik László","Kihívás/felhívás: hogyan lehetséges az anti-diszkriminatív modellezés neurális hálókra alapozva?","(+)",null,{"$f":"A59","v":"miau277"},{"$f":"B59","v":"Pitlik László"},":",{"$f":"M59","v":"Kihívás/felhívás: hogyan lehetséges az anti-diszkriminatív modellezés neurális hálókra alapozva?"},"  xx  ","https://miau.my-x.hu/miau/277/ann_anti-discriminative-potential_v1.xlsx",null,{"$f":"C59","v":"Kihívás/felhívás: hogyan lehetséges az anti-diszkriminatív modellezés neurális hálókra alapozva?"}]
[null,"(MY-X team):","(How to model the anti-discriminative approach with artificial neural networks?)"]
["miau277","Anonim Hallgatók, Pitlik László","Blokklánc-tananyag (autodidakta) fejlesztése (avagy kulcsszavak és ezek fa-jellegű, ill. hipertextes kapcsolatai)","(+)",null,{"$f":"A61","v":"miau277"},{"$f":"B61","v":"Anonim Hallgatók, Pitlik László"},":",{"$f":"M61","v":"Blokklánc-tananyag (autodidakta) fejlesztése (avagy kulcsszavak és ezek fa-jellegű, ill. hipertextes kapcsolatai)"},"  xx  ","https://miau.my-x.hu/miau/277/blokklanc_tananyagfejlesztes_v1.docx",null,{"$f":"C61","v":"Blokklánc-tananyag (autodidakta) fejlesztése (avagy kulcsszavak és ezek fa-jellegű, ill. hipertextes kapcsolatai)"}]
[null,"(ÓE):","(Blockchain learning materials – based on tasks solved by Students)"]
["miau277","Mácz Andrea, Nyomárkay Kristóf, Svastits Áron, Szabó Gábor Péter, Németh Tamás, Pitlik Marcell","Történeti áttekintés a kőolajról","(+)",null,{"$f":"A63","v":"miau277"},{"$f":"B63","v":"Mácz Andrea, Nyomárkay Kristóf, Svastits Áron, Szabó Gábor Péter, Németh Tamás, Pitlik Marcell"},":",{"$f":"M63","v":"Történeti áttekintés a kőolajról"},"  xx  ","https://miau.my-x.hu/miau/277/NXEG_MA_NT_SA_SZG_NYK_PM.pdf",null,{"$f":"C63","v":"Történeti áttekintés a kőolajról"}]
[null,"(BME):","(Historical overview of crude oil)"]
["miau277","Pitlik Marcell","Térfogati égés optikai vizsgálata és mesterséges intelligencia alapú elemzése","(+)",null,{"$f":"A65","v":"miau277"},{"$f":"B65","v":"Pitlik Marcell"},":",{"$f":"M65","v":"Térfogati égés optikai vizsgálata és mesterséges intelligencia alapú elemzése"},"  xx  ","https://miau.my-x.hu/miau/277/szakdoga_PM_final.pdf",null,{"$f":"C65","v":"Térfogati égés optikai vizsgálata és mesterséges intelligencia alapú elemzése"}]
[null,"(BME):","(Optical diagnostics and analysis of steady combustion based on artificial intelligence)"]
["miau277","Krenner Bálint","Melyik az a 4jegyű szám, ...? ","(+)",null,{"$f":"A67","v":"miau277"},{"$f":"B67","v":"Krenner Bálint"},":",{"$f":"M67","v":"Melyik az a 4jegyű szám, ...? "},"  xx  ","https://miau.my-x.hu/miau/277/solver_helyett",null,{"$f":"C67","v":"Melyik az a 4jegyű szám, ...? "}]
[null,"(ÓE):","(What is the right number, if... ?)"]
["miau277","Pitlik László","Az IT-fejlődés és a fenntarthatóság kapcsolata","(+)",null,{"$f":"A69","v":"miau277"},{"$f":"B69","v":"Pitlik László"},":",{"$f":"M69","v":"Az IT-fejlődés és a fenntarthatóság kapcsolata"},"  xx  ","https://miau.my-x.hu/miau/277/IT_sustainability.pptx",null,{"$f":"C69","v":"Az IT-fejlődés és a fenntarthatóság kapcsolata"}]
[null,"(KJE):","(IT-based development and the term of sustainability)"]
["miau277","Pitlik László","Szövegelemzés (avagy az önkényes semmit mondás tételes leleplezése)","(+)",null,{"$f":"A71","v":"miau277"},{"$f":"B71","v":"Pitlik László"},":",{"$f":"M71","v":"Szövegelemzés (avagy az önkényes semmit mondás tételes leleplezése)"},"  xx  ","https://miau.my-x.hu/miau/277/kje_fenntarthatosag_IT_szemmel.docx",null,{"$f":"C71","v":"Szövegelemzés (avagy az önkényes semmit mondás tételes leleplezése)"}]
[null,"(KJE):","(Data-driven text-analysis or the examples for the arbitrary magic of words)"]
["miau278","Pitlik László","A new approach instead of the Proof of Work (PoW) in case of blockchains","(+)",null,{"$f":"A73","v":"miau278"},{"$f":"B73","v":"Pitlik László"},":",{"$f":"M73","v":"A new approach instead of the Proof of Work (PoW) in case of blockchains"},"  xx  ","https://miau.my-x.hu/miau/278/instead_of_PoW.xlsx",null,{"$f":"C73","v":"A new approach instead of the Proof of Work (PoW) in case of blockchains"}]
[null,"(MY-X):"]
["miau278","Pitlik László, Pitlik László (jun)","Corresemblance – core-resemblance, or deriving of the non-existence of information added-values","(+)",null,{"$f":"A75","v":"miau278"},{"$f":"B75","v":"Pitlik László, Pitlik László (jun)"},":",{"$f":"M75","v":"Corresemblance – core-resemblance, or deriving of the non-existence of information added-values"},"  xx  ","https://miau.my-x.hu/miau/278/Corresemblance.docx",null,{"$f":"C75","v":"Corresemblance – core-resemblance, or deriving of the non-existence of information added-values"}]
[null,"(MY-X):"]
["miau278","Nagy Richárd, Pitlik László","IT-biztonsági ismeretek számonkérésének variánsai, stratégiái és szintjei","(+)",null,{"$f":"A77","v":"miau278"},{"$f":"B77","v":"Nagy Richárd, Pitlik László"},":",{"$f":"M77","v":"IT-biztonsági ismeretek számonkérésének variánsai, stratégiái és szintjei"},"  xx  ","https://miau.my-x.hu/mediawiki/index.php/ITB",null,{"$f":"C77","v":"IT-biztonsági ismeretek számonkérésének variánsai, stratégiái és szintjei"}]
[null,"(KJE):","(Test versions for IT-security - Strategies, types and levels)"]
["miau278","Pitlik László, Pitlik Marcell","Solver-alapú fuzzy modellek vs. hasonlóságelemzés-variánsok versenye","(+)",null,{"$f":"A79","v":"miau278"},{"$f":"B79","v":"Pitlik László, Pitlik Marcell"},":",{"$f":"M79","v":"Solver-alapú fuzzy modellek vs. hasonlóságelemzés-variánsok versenye"},"  xx  ","https://miau.my-x.hu/miau/275/fuzzy_2x_6trapez_4pont_bc_no_azonossag_ifthen_eset10_new.xlsx",null,{"$f":"C79","v":"Solver-alapú fuzzy modellek vs. hasonlóságelemzés-variánsok versenye"}]
[null,"(MY-X team):","(Fuzzy logic (solver-based) vs. similarity analyses - The competition)"]
["miau278","Pitlik László","SUM() derived through PRODUCT()","(+)",null,{"$f":"A81","v":"miau278"},{"$f":"B81","v":"Pitlik László"},":",{"$f":"M81","v":"SUM() derived through PRODUCT()"},"  xx  ","https://miau.my-x.hu/miau/278/szorzas_alapjan_modellezett_osszeadas.xlsx",null,{"$f":"C81","v":"SUM() derived through PRODUCT()"}]
[null,"(MY-X team):"]
["miau278","Pitlik László","Dinamikus versenyelemzés Google Trends-adatok alapján","(+)",null,{"$f":"A83","v":"miau278"},{"$f":"B83","v":"Pitlik László"},":",{"$f":"M83","v":"Dinamikus versenyelemzés Google Trends-adatok alapján"},"  xx  ","https://miau.my-x.hu/miau/278/docler_v1.xlsx",null,{"$f":"C83","v":"Dinamikus versenyelemzés Google Trends-adatok alapján"}]
[null,"(MY-X team):","(Dynamic analysis of competitive situations based on Google Trends)"]
["miau278","Pitlik László","Alul- és túlteljesítés matematikai letapogatása többkörös szavazás első körös eredményei alapján a második kört illetően","(+)",null,{"$f":"A85","v":"miau278"},{"$f":"B85","v":"Pitlik László"},":",{"$f":"M85","v":"Alul- és túlteljesítés matematikai letapogatása többkörös szavazás első körös eredményei alapján a második kört illetően"},"  xx  ","https://miau.my-x.hu/miau/278/valasztasok2.xlsx",null,{"$f":"C85","v":"Alul- és túlteljesítés matematikai letapogatása többkörös szavazás első körös eredményei alapján a második kört illetően"}]
[null,"(MY-X team):","(Evaluation of second-layer-results based on first-layer-result in case of multilayered elections)"]
["miau278","Barta Gergő","An artificial intelligence based approach to detect internal control deficiencies","(+)",null,{"$f":"A87","v":"miau278"},{"$f":"B87","v":"Barta Gergő"},":",{"$f":"M87","v":"An artificial intelligence based approach to detect internal control deficiencies"},"  xx  ","https://miau.my-x.hu/miau/278/bartagergo.mp4",null,{"$f":"C87","v":"An artificial intelligence based approach to detect internal control deficiencies"}]
[null,"(Deloitte):"]
["miau279","Nagy Balázs","A virágméz árának változása az elmúlt két évben (avagy lehet-e két boltlánc ár-képzése egyformán kedvező?)","(+)",null,{"$f":"A89","v":"miau279"},{"$f":"B89","v":"Nagy Balázs"},":",{"$f":"M89","v":"A virágméz árának változása az elmúlt két évben (avagy lehet-e két boltlánc ár-képzése egyformán kedvező?)"},"  xx  ","https://miau.my-x.hu/miau/279/mez.docx",null,{"$f":"C89","v":"A virágméz árának változása az elmúlt két évben (avagy lehet-e két boltlánc ár-képzése egyformán kedvező?)"}]
[null,"(KJE):","(Analysis of honey prices on the last two years - or can two different supermarket chains be the best in pricing at the same time?)"]
["miau279","Nyeste Kristóf","COVID adatvagyon minőségbiztosításának anomáliái","(+)",null,{"$f":"A91","v":"miau279"},{"$f":"B91","v":"Nyeste Kristóf"},":",{"$f":"M91","v":"COVID adatvagyon minőségbiztosításának anomáliái"},"  xx  ","https://miau.my-x.hu/miau/279/covid_data_asset_anomalies.docx",null,{"$f":"C91","v":"COVID adatvagyon minőségbiztosításának anomáliái"}]
[null,"(OE):","(Anomalies in the data asset management about COVID-statistics)"]
["miau279","Farkas Ádám","Vajon meghatározható-e, melyik a legjobb programozási nyelv?","(+)",null,{"$f":"A93","v":"miau279"},{"$f":"B93","v":"Farkas Ádám"},":",{"$f":"M93","v":"Vajon meghatározható-e, melyik a legjobb programozási nyelv?"},"  xx  ","https://miau.my-x.hu/miau/279/programnyelvek.docx",null,{"$f":"C93","v":"Vajon meghatározható-e, melyik a legjobb programozási nyelv?"}]
[null,"(KJE):","(Whether can be determined the best programming language?)"]
["miau279","Gulyás Oldal Laura, Pitlik László","Személyek korkülönbségének becslése kézgeometriai jellemzők alapján","(+)",null,{"$f":"A95","v":"miau279"},{"$f":"B95","v":"Gulyás Oldal Laura, Pitlik László"},":",{"$f":"M95","v":"Személyek korkülönbségének becslése kézgeometriai jellemzők alapján"},"  xx  ","https://miau.my-x.hu/miau/279/keztenyerkor.docx",null,{"$f":"C95","v":"Személyek korkülönbségének becslése kézgeometriai jellemzők alapján"}]
[null,"(OE):","(Age estimation based on palm/hand-geometry)"]
["miau279","Kamenár Dávid","A COVID-19 vírus elleni védekezés sikeressége az Európai Unió tagállamaiban a 4. hullám idején","(+)",null,{"$f":"A97","v":"miau279"},{"$f":"B97","v":"Kamenár Dávid"},":",{"$f":"M97","v":"A COVID-19 vírus elleni védekezés sikeressége az Európai Unió tagállamaiban a 4. hullám idején"},"  xx  ","https://miau.my-x.hu/miau/279/covid.docx",null,{"$f":"C97","v":"A COVID-19 vírus elleni védekezés sikeressége az Európai Unió tagállamaiban a 4. hullám idején"}]
[null,"(OE):","(Success of protection against the COVID-19 virus in the member states of the European Union during the 4th wave"]
["miau279","Szepesi Judit Zsuzsa","Hatékonyságnövelés a bérszámfejtés kapcsán - Munkaidő adatokból importálható állományok előállítása makro segítségével","(+)",null,{"$f":"A99","v":"miau279"},{"$f":"B99","v":"Szepesi Judit Zsuzsa"},":",{"$f":"M99","v":"Hatékonyságnövelés a bérszámfejtés kapcsán - Munkaidő adatokból importálható állományok előállítása makro segítségével"},"  xx  ","https://miau.my-x.hu/miau/279/macro.docx",null,{"$f":"C99","v":"Hatékonyságnövelés a bérszámfejtés kapcsán - Munkaidő adatokból importálható állományok előállítása makro segítségével"}]
[null,"(KJE):","(Improving the efficiency of recording payroll time data - Generating importable files from working time data using macro)"]
["miau279","Szabó Kerecsen","Magyarország egészségügyi állapotának leírása - Egyenszilárdság-mérés területi alapon","(+)",null,{"$f":"A101","v":"miau279"},{"$f":"B101","v":"Szabó Kerecsen"},":",{"$f":"M101","v":"Magyarország egészségügyi állapotának leírása - Egyenszilárdság-mérés területi alapon"},"  xx  ","https://miau.my-x.hu/miau/279/teir.docx",null,{"$f":"C101","v":"Magyarország egészségügyi állapotának leírása - Egyenszilárdság-mérés területi alapon"}]
[null,"(OE):","(Analyses of the Hungarian health statistics based on time series - Does each county provide the same regional chances for the citizens of Hungary?)"]
["miau279","Tóth Zoltán","Ki is a jobb F1-pilóta valójában – avagy naiv és optimalizált kockázatelemzések","(+)",null,{"$f":"A103","v":"miau279"},{"$f":"B103","v":"Tóth Zoltán"},":",{"$f":"M103","v":"Ki is a jobb F1-pilóta valójában – avagy naiv és optimalizált kockázatelemzések"},"  xx  ","https://miau.my-x.hu/miau/279/formula1.docx",null,{"$f":"C103","v":"Ki is a jobb F1-pilóta valójában – avagy naiv és optimalizált kockázatelemzések"}]
[null,"(OE):","(Who is the better F1-pilot really – or risk analyses based on naïve and optimized approaches?)"]
["miau279","Burián Sándor","Egészségügyi adatok OLAP-szintű keresője kockázatelemzési célra","(+)",null,{"$f":"A105","v":"miau279"},{"$f":"B105","v":"Burián Sándor"},":",{"$f":"M105","v":"Egészségügyi adatok OLAP-szintű keresője kockázatelemzési célra"},"  xx  ","https://miau.my-x.hu/miau/279/olap_alapu_oktatas.mp4",null,{"$f":"C105","v":"Egészségügyi adatok OLAP-szintű keresője kockázatelemzési célra"}]
[null,"(OE):","(OLAP-based health statistics in learning content systems for risk management)"]
["miau279","Száraz Bence","Gyanú felderítés online szerepjátékban solver segítségével","(+)",null,{"$f":"A107","v":"miau279"},{"$f":"B107","v":"Száraz Bence"},":",{"$f":"M107","v":"Gyanú felderítés online szerepjátékban solver segítségével"},"  xx  ","https://miau.my-x.hu/miau/279/esport.docx",null,{"$f":"C107","v":"Gyanú felderítés online szerepjátékban solver segítségével"}]
[null,"(OE):","(Suspicion generation for online roleplay games based on Solver)"]
["miau279","Hegedűs Imre Bence","Az iPhone okostelefonok fejlődésének világa – a generációk közötti hasonlóságok elemzése robotszemmel","(+)",null,{"$f":"A109","v":"miau279"},{"$f":"B109","v":"Hegedűs Imre Bence"},":",{"$f":"M109","v":"Az iPhone okostelefonok fejlődésének világa – a generációk közötti hasonlóságok elemzése robotszemmel"},"  xx  ","https://miau.my-x.hu/miau/279/iphone.docx",null,{"$f":"C109","v":"Az iPhone okostelefonok fejlődésének világa – a generációk közötti hasonlóságok elemzése robotszemmel"}]
[null,"(KJE):","(Searching for the best iPhone based on anti-discriminative analyses)"]
["miau279","Csuba Krisztián Ádám, Nguyen Van Nam Tamás","Mennyire egyenszilárd az EU-ban az egészségügy országonkénti összevetésben 2019-ben?","(+)",null,{"$f":"A111","v":"miau279"},{"$f":"B111","v":"Csuba Krisztián Ádám, Nguyen Van Nam Tamás"},":",{"$f":"M111","v":"Mennyire egyenszilárd az EU-ban az egészségügy országonkénti összevetésben 2019-ben?"},"  xx  ","https://miau.my-x.hu/miau/279/eu_egyenszilardsag.docx",null,{"$f":"C111","v":"Mennyire egyenszilárd az EU-ban az egészségügy országonkénti összevetésben 2019-ben?"}]
[null,"(OE):","(Country ranking on European level for 2019 concerning health statistics based on Solver – or How well-balanced are the countries comparing to each other?)"]
["miau279","Almásy Márton György, Hörömpő András","Jutalomfüggvények hasonlóságainak értékelése – avagy egy-egy jobb függvény megtalálásának stratégiája","(+)",null,{"$f":"A113","v":"miau279"},{"$f":"B113","v":"Almásy Márton György, Hörömpő András"},":",{"$f":"M113","v":"Jutalomfüggvények hasonlóságainak értékelése – avagy egy-egy jobb függvény megtalálásának stratégiája"},"  xx  ","https://miau.my-x.hu/miau/279/jutalomfuggvenyek.docx",null,{"$f":"C113","v":"Jutalomfüggvények hasonlóságainak értékelése – avagy egy-egy jobb függvény megtalálásának stratégiája"}]
[null,"(OE):","(Similarity-based evaluation of reward functions – or identification strategy of a best function)"]
["miau279","Ács Kinga","Lehet-e robotizálni egy cég stratégiai tervezését?","(+)",null,{"$f":"A115","v":"miau279"},{"$f":"B115","v":"Ács Kinga"},":",{"$f":"M115","v":"Lehet-e robotizálni egy cég stratégiai tervezését?"},"  xx  ","https://miau.my-x.hu/miau/279/elorejelzes.docx",null,{"$f":"C115","v":"Lehet-e robotizálni egy cég stratégiai tervezését?"}]
[null,"(KJE):","(Can we robotize the strategic planning of a company?)"]
["miau279","Vincze Miklós, Somogyi Kristóf","Orvos-beteg dialógusok - avagy eszkalációs kockázatok elemzése","(+)",null,{"$f":"A117","v":"miau279"},{"$f":"B117","v":"Vincze Miklós, Somogyi Kristóf"},":",{"$f":"M117","v":"Orvos-beteg dialógusok - avagy eszkalációs kockázatok elemzése"},"  xx  ","https://miau.my-x.hu/miau/279/orvos_beteg.docx",null,{"$f":"C117","v":"Orvos-beteg dialógusok - avagy eszkalációs kockázatok elemzése"}]
[null,"(OE):","(Dialogues between patients and doctors – escalation risk analyses)"]
["miau279","Karácsonyi Krisztián","Egymillió főre jutó balesetek kockázatelemzése megyénkénti felosztásban","(+)",null,{"$f":"A119","v":"miau279"},{"$f":"B119","v":"Karácsonyi Krisztián"},":",{"$f":"M119","v":"Egymillió főre jutó balesetek kockázatelemzése megyénkénti felosztásban"},"  xx  ","https://miau.my-x.hu/miau/279/balesetek.docx",null,{"$f":"C119","v":"Egymillió főre jutó balesetek kockázatelemzése megyénkénti felosztásban"}]
[null,"(OE):","(Accidents in county level - risk analyses based on similarities)"]
["miau279","Molnár Vince Nándor","Oktatás, kultúra és bűncselekmények, álláskeresés konzisztens kapcsolatainak vizsgálata - Robot-pszichológus, robot-szociológus","(+)",null,{"$f":"A121","v":"miau279"},{"$f":"B121","v":"Molnár Vince Nándor"},":",{"$f":"M121","v":"Oktatás, kultúra és bűncselekmények, álláskeresés konzisztens kapcsolatainak vizsgálata - Robot-pszichológus, robot-szociológus"},"  xx  ","https://miau.my-x.hu/miau/279/jo_rossz_kolcsonhatasok.docx",null,{"$f":"C121","v":"Oktatás, kultúra és bűncselekmények, álláskeresés konzisztens kapcsolatainak vizsgálata - Robot-pszichológus, robot-szociológus"}]
[null,"(OE):","(Education, culture, crime, employment - Robot-psychologist, robot-sociologist - risk analysis)"]
["miau279","Szakács Péter Barnabás","API műveletek tiltása tűzfal modul esetén - kockázatelemzés","(+)",null,{"$f":"A123","v":"miau279"},{"$f":"B123","v":"Szakács Péter Barnabás"},":",{"$f":"M123","v":"API műveletek tiltása tűzfal modul esetén - kockázatelemzés"},"  xx  ","https://miau.my-x.hu/miau/279/tiltas.docx",null,{"$f":"C123","v":"API műveletek tiltása tűzfal modul esetén - kockázatelemzés"}]
[null,"(OE):","(Prohibited API-operation in case of firewalls - risk analysis)"]
["miau279","Kovács Péter Pál","Kémiai konzisztencia teszt rekonstruálása / Módosított Herington teszt rekonstrukciója adathalmazt jellemző értékekből - kockázatelemzés","(+)",null,{"$f":"A125","v":"miau279"},{"$f":"B125","v":"Kovács Péter Pál"},":",{"$f":"M125","v":"Kémiai konzisztencia teszt rekonstruálása / Módosított Herington teszt rekonstrukciója adathalmazt jellemző értékekből - kockázatelemzés"},"  xx  ","https://miau.my-x.hu/miau/279/kemia.docx",null,{"$f":"C125","v":"Kémiai konzisztencia teszt rekonstruálása / Módosított Herington teszt rekonstrukciója adathalmazt jellemző értékekből - kockázatelemzés"}]
[null,"(OE):","(Reconstruction of chemical consistency test / Reconstruction of modified Herington test from characteristic valu"]
["miau279","Varga-Dudás József","A processzorok zavaros világa letisztult robotszemmel – avagy a melyiket válasszam kérdés egyértelmű válasza","(+)",null,{"$f":"A127","v":"miau279"},{"$f":"B127","v":"Varga-Dudás József"},":",{"$f":"M127","v":"A processzorok zavaros világa letisztult robotszemmel – avagy a melyiket válasszam kérdés egyértelmű válasza"},"  xx  ","https://miau.my-x.hu/miau/279/proc.docx",null,{"$f":"C127","v":"A processzorok zavaros világa letisztult robotszemmel – avagy a melyiket válasszam kérdés egyértelmű válasza"}]
[null,"(KJE):","(CPU benchmarking based on similarity analyses)"]
["miau279","Csaba Dávid","A legkockázatosabb munkavállalók és az általuk elkövetett hibák feltárása / Cél: A leghatékonyabb egyedi termelés","(+)",null,{"$f":"A129","v":"miau279"},{"$f":"B129","v":"Csaba Dávid"},":",{"$f":"M129","v":"A legkockázatosabb munkavállalók és az általuk elkövetett hibák feltárása / Cél: A leghatékonyabb egyedi termelés"},"  xx  ","https://miau.my-x.hu/miau/279/gyartas.docx",null,{"$f":"C129","v":"A legkockázatosabb munkavállalók és az általuk elkövetett hibák feltárása / Cél: A leghatékonyabb egyedi termelés"}]
[null,"(KJE):","(Identifying the most risky workers and the mistakes they make / Objective: The most efficient individual production)"]
["miau279","Hajdú Vivien Julianna, Varró Liliána Éva","A magyar társadalom rétegeinek becsült átlagos társadalmi-gazdasági értékessége","(+)",null,{"$f":"A131","v":"miau279"},{"$f":"B131","v":"Hajdú Vivien Julianna, Varró Liliána Éva"},":",{"$f":"M131","v":"A magyar társadalom rétegeinek becsült átlagos társadalmi-gazdasági értékessége"},"  xx  ","https://miau.my-x.hu/miau/279/nok_vs_ferfiak.docx",null,{"$f":"C131","v":"A magyar társadalom rétegeinek becsült átlagos társadalmi-gazdasági értékessége"}]
[null,"(KJE):","(Social values of age groups and gender positions in Hungary)"]
["miau279","Nagy Richárd","MP4: Halálos kimenetelű közlekedési balesetek vizsgálata az Európai Unióban OAM alapján / Önsorsrontó-e a Magyar?","(+)",null,{"$f":"A133","v":"miau279"},{"$f":"B133","v":"Nagy Richárd"},":",{"$f":"M133","v":"MP4: Halálos kimenetelű közlekedési balesetek vizsgálata az Európai Unióban OAM alapján / Önsorsrontó-e a Magyar?"},"  xx  ","https://miau.my-x.hu/miau/279/onsorsrontas.mp4",null,{"$f":"C133","v":"MP4: Halálos kimenetelű közlekedési balesetek vizsgálata az Európai Unióban OAM alapján / Önsorsrontó-e a Magyar?"}]
[null,"(KJE):","(Investigation of fatal road accidents in the European Union based on OAM / Are we, Hungarians, the architects of our own destruction?)"]
["miau279","Nagy Richárd","Halálos kimenetelű közlekedési balesetek vizsgálata az Európai Unióban OAM alapján / Önsorsrontó-e a Magyar?","(+)",null,{"$f":"A135","v":"miau279"},{"$f":"B135","v":"Nagy Richárd"},":",{"$f":"M135","v":"Halálos kimenetelű közlekedési balesetek vizsgálata az Európai Unióban OAM alapján / Önsorsrontó-e a Magyar?"},"  xx  ","https://miau.my-x.hu/miau/279/onsorsrontas.docx",null,{"$f":"C135","v":"Halálos kimenetelű közlekedési balesetek vizsgálata az Európai Unióban OAM alapján / Önsorsrontó-e a Magyar?"}]
[null,"(KJE):","(Investigation of fatal road accidents in the European Union based on OAM / Are we, Hungarians, the architects of our own destruction?)"]
["miau279","Pitlik Marcell","PPT: Égések zaj alapú elemzése mesterséges intelligenciával","(+)",null,{"$f":"A137","v":"miau279"},{"$f":"B137","v":"Pitlik Marcell"},":",{"$f":"M137","v":"PPT: Égések zaj alapú elemzése mesterséges intelligenciával"},"  xx  ","https://miau.my-x.hu/miau/279/tdk_zaj/TDK_2021_EM_PM.pptx",null,{"$f":"C137","v":"PPT: Égések zaj alapú elemzése mesterséges intelligenciával"}]
[null,"(BME):","(Noise diagnostics and analysis of steady combustion based on artificial intelligence)"]
["miau279","Pitlik Marcell","Égések zaj alapú elemzése mesterséges intelligenciával","(+)",null,{"$f":"A139","v":"miau279"},{"$f":"B139","v":"Pitlik Marcell"},":",{"$f":"M139","v":"Égések zaj alapú elemzése mesterséges intelligenciával"},"  xx  ","https://miau.my-x.hu/miau/279/tdk_zaj/TDK_PM_zaj_final.pdf",null,{"$f":"C139","v":"Égések zaj alapú elemzése mesterséges intelligenciával"}]
[null,"(BME):","(Noise diagnostics and analysis of steady combustion based on artificial intelligence)"]
["miau280","Pitlik László","JOKER - minimal version - step1-2-3","(+)",null,{"$f":"A141","v":"miau280"},{"$f":"B141","v":"Pitlik László"},":",{"$f":"M141","v":"JOKER - minimal version - step1-2-3"},"  xx  ","https://miau.my-x.hu/miau/280/joker_min_2.xlsx",null,{"$f":"C141","v":"JOKER - minimal version - step1-2-3"}]
[null,"(MY-X team):"]
["miau280","Pitlik László, Pitlik Marcell, Pitlik László (jun)","Csapágy-kopás becslése konzisztencia-alapú modellezéssel","(+)",null,{"$f":"A143","v":"miau280"},{"$f":"B143","v":"Pitlik László, Pitlik Marcell, Pitlik László (jun)"},":",{"$f":"M143","v":"Csapágy-kopás becslése konzisztencia-alapú modellezéssel"},"  xx  ","https://miau.my-x.hu/miau/280/bearing_wear_v1.docx",null,{"$f":"C143","v":"Csapágy-kopás becslése konzisztencia-alapú modellezéssel"}]
[null,"(MY-X team):","(Estimation of bearing wear based on consistence-oriented modelling)"]
["miau280","Pitlik László","Regresszió-alapú és lépcsős függvény-alapú anti-diszkriminatív modellek","(+)",null,{"$f":"A145","v":"miau280"},{"$f":"B145","v":"Pitlik László"},":",{"$f":"M145","v":"Anti-discriminative models - based on regressions and staircase functions"},"  xx  ","https://miau.my-x.hu/miau/280/y0_regressions.xlsx",null,"Anti-discriminative models - based on regressions and staircase functions"]
[null,"(My-X team):","(Anti-discriminative models - based on regressions and staircase functions)"]
["miau280","Pitlik László, Pitlik László (jun)","Párhuzamos valószínűségek aggregálása hasonlóságelemzéssel","(+)",null,{"$f":"A147","v":"miau280"},{"$f":"B147","v":"Pitlik László, Pitlik László (jun)"},":",{"$f":"M147","v":"Aggregation of parallel probabilities based on similarity analyses"},"  xx  ","https://miau.my-x.hu/miau/280/classification_finetuning.xlsx",null,"Aggregation of parallel probabilities based on similarity analyses"]
[null,"(My-X team):","(Aggregation of parallel probabilities based on similarity analyses)"]
["miau280","Pitlik László","Komplex mintázatok felismerése hasonlóságelemzéssel","(+)",null,{"$f":"A149","v":"miau280"},{"$f":"B149","v":"Pitlik László"},":",{"$f":"M149","v":"Komplex mintázatok felismerése hasonlóságelemzéssel"},"  xx  ","https://miau.my-x.hu/miau/280/tenyosszeg_becslesosszeg_elteresei.xlsx",null,{"$f":"C149","v":"Komplex mintázatok felismerése hasonlóságelemzéssel"}]
[null,"(My-X team):","(Exploring the existence of complex patterns based on similarity analysis)"]
["miau280","Barta Gergő","Mesterséges intelligencia módszerek alkalmazása az informatikai rendszerek biztonsági auditjában","(+)",null,{"$f":"A151","v":"miau280"},{"$f":"B151","v":"Barta Gergő"},":",{"$f":"M151","v":"Mesterséges intelligencia módszerek alkalmazása az informatikai rendszerek biztonsági auditjában"},"  xx  ","https://miau.my-x.hu/miau2009/index.php3?x=e159",null,{"$f":"C151","v":"Mesterséges intelligencia módszerek alkalmazása az informatikai rendszerek biztonsági auditjában"}]
[null,"(MATE GSZDI):","(Application of artificial intelligence methods in the security audit of IT systems)"]

{"sheet":"Munka5","index":10,"n_rows":57,"n_cols":25,"rows_kept":57,"cut":false,"hidden":false,"merged":[[14,2,15,2],[16,2,17,2],[2,6,3,6],[4,6,5,6],[6,6,7,6],[8,6,9,6],[10,6,11,6],[12,6,13,6],[14,6,15,6],[16,6,17,6],[2,2,3,2],[4,2,5,2],[6,2,7,2],[8,2,9,2],[10,2,11,2],[12,2,13,2],[18,6,19,6],[20,6,21,6],[22,5,23,5],[22,6,23,6],[24,6,25,6],[6,10,7,10],[8,9,9,9],[8,10,9,10],[10,9,11,9],[10,10,11,10],[20,9,21,9],[20,10,21,10],[28,6,29,6],[30,6,31,6],[32,6,33,6],[26,6,27,6],[22,10,23,10],[24,10,25,10],[2,13,3,13],[2,14,3,14],[4,13,5,13],[4,14,5,14],[6,14,7,14],[8,14,9,14],[10,13,11,13],[10,14,11,14],[12,10,13,10],[14,10,15,10],[16,10,17,10],[18,10,19,10],[2,10,3,10],[4,10,5,10],[2,18,3,18],[4,18,5,18],[6,18,7,18],[8,18,9,18],[10,18,11,18],[24,18,25,18],[12,14,13,14],[14,14,15,14],[16,13,17,13],[16,14,17,14],[12,18,13,18],[14,18,15,18],[16,18,17,18],[18,18,19,18],[20,18,21,18],[22,18,23,18],[28,18,29,18],[30,18,31,18],[32,18,33,18],[34,18,35,18],[36,18,37,18],[50,18,51,18],[52,18,53,18],[2,22,3,22],[4,22,5,22],[6,22,7,22],[8,22,9,22],[10,22,11,22],[2,21,3,21],[12,22,13,22],[38,18,39,18],[40,18,41,18],[42,18,43,18],[44,18,45,18],[46,18,47,18],[48,18,49,18],[26,18,27,18]]}
["MIAU No. = 275 *** Év/Year = 2021 *** Hónap/Month = július",null,8,null,"MIAU No. = 276 *** Év/Year = 2021 *** Hónap/Month = augusztus",null,16,null,"MIAU No. = 277 *** Év/Year = 2021 *** Hónap/Month = szeptember",null,12,null,"MIAU No. = 278 *** Év/Year = 2021 *** Hónap/Month = október",null,8,null,"MIAU No. = 279 *** Év/Year = 2021 *** Hónap/Month = november",null,26,null,"MIAU No. = 280 *** Év/Year = 2021 *** Hónap/Month = december",null,6,null,{"$f":"SUM(A1:W1)","v":76}]
[]
["Pitlik László","COCO-MCM lépcsőszám optimalizálási kísérletek","(+)",null,"Pitlik László (jun)","Tanári záróvizsga - Szakdolgozatvédés - Tudásszintmérő tesztek","(+)",null,"Pitlik László, Rikk János","Publikációk anonim, párhuzamos bírálatainak anomáliái","(+)",null,"Pitlik László","A new approach instead of the Proof of Work (PoW) in case of blockchains","(+)",null,"Nagy Balázs","A virágméz árának változása az elmúlt két évben (avagy lehet-e két boltlánc ár-képzése egyformán kedvező?)","(+)",null,"Pitlik László","JOKER - minimal version - step1-2-3","(+)"]
["(MY-X team):","(Optimization attempts for COCO-MCM- stair-counts)",null,null,"(ELTE):","(Final exam (thesis): Tests for deriving knowledge levels)",null,null,"(MY-X team):","(Anomalies of anonymous, parallel evaluations of publications)",null,null,"(MY-X):",null,null,null,"(KJE):","(Analysis of honey prices on the last two years - or can two different supermarket chains be the best in pricing at the same time?)",null,null,"(MY-X team):"]
["Pitlik László","Nyelvi rekeszelés, avagy hogyan érzékeltessük írásban a hangsúlyozást avatárok számára","(+)",null,"Varga Dorottya","Ár-kockázat értékelés - VÉRNYOMÁSCSÖKKENTŐK","(+)",null,"Pitlik László","Solver-alapú problémamegoldás, avagy ami a matematikai oktatásból kimaradt","(+)",null,"Pitlik László, Pitlik László (jun)","Corresemblance – core-resemblance, or deriving of the non-existence of information added-values","(+)",null,"Nyeste Kristóf","COVID adatvagyon minőségbiztosításának anomáliái","(+)",null,"Pitlik László, Pitlik Marcell, Pitlik László (jun)","Csapágy-kopás becslése konzisztencia-alapú modellezéssel","(+)"]
["(MY-X team):","(The role of the structuring in the interpretation of languages/sentences or how it is possible to initialize verbal effects in written form)",null,null,"(OE):","(Price-risk assessment - ANTIHYPERTENSIVES)",null,null,"(MY-X team):","(Solver-based problem solving or what might be missing in the education of the mathematics)",null,null,"(MY-X):",null,null,null,"(OE):","(Anomalies in the data asset management about COVID-statistics)",null,null,"(MY-X team):","(Estimation of bearing wear based on consistence-oriented modelling)"]
["Pitlik László","Legalább egyszer előforduló értékek darabszámának megszámlálása Excel-függvényekre alapozva","(+)",null,"Kis András Nándor","Döntési esetjáték – optimalizált kezelése avagy kuratóriumi döntések robotizálási kísérletei","(+)",null,"Pitlik László","Solver-es kompetenciamérésre alkalmas alapfeladat","(+)",null,"Nagy Richárd, Pitlik László","IT-biztonsági ismeretek számonkérésének variánsai, stratégiái és szintjei","(+)",null,"Farkas Ádám","Vajon meghatározható-e, melyik a legjobb programozási nyelv?","(+)",null,"Pitlik László","Regresszió-alapú és lépcsős függvény-alapú anti-diszkriminatív modellek","(+)"]
["(MY-X team):","(Counting of distinct values based on Excel-functions)",null,null,"(OE):","(Decision case study – with optimization or attempts to robotize board decisions)",null,null,"(MY-X team):","(Basic task for competence evaluation concerning Solver-oriented problem solving)",null,null,"(KJE):","(Test versions for IT-security - Strategies, types and levels)",null,null,"(KJE):","(Whether can be determined the best programming language?)",null,null,"(My-X team):","(Anti-discriminative models - based on regressions and staircase functions)"]
["Pitlik Marcell","Félvezetők gyártási hibájának automatizált felismerése tömeges szenzor-adatok alapján","(+)",null,"Dlehány Noémi","Milyen mobilt vegyek 2021-ben?","(+)",null,"Pitlik László, Pitlik Marcell","Mirror-ball-based seeing in multi-layered evaluation I.","(+)",null,"Pitlik László, Pitlik Marcell","Solver-alapú fuzzy modellek vs. hasonlóságelemzés-variánsok versenye","(+)",null,"Gulyás Oldal Laura, Pitlik László","Személyek korkülönbségének becslése kézgeometriai jellemzők alapján","(+)",null,"Pitlik László, Pitlik László (jun)","Párhuzamos valószínűségek aggregálása hasonlóságelemzéssel","(+)"]
["(MY-X team):","(Automated error-detection in the production of semiconductors based on big data from sensor-information)",null,null,"(OE):","((What cell phone should I buy in 2021?)",null,null,"(MY-X team):",null,null,null,"(MY-X team):","(Fuzzy logic (solver-based) vs. similarity analyses - The competition)",null,null,"(OE):","(Age estimation based on palm/hand-geometry)",null,null,"(My-X team):","(Aggregation of parallel probabilities based on similarity analyses)"]
["Pitlik Marcell","Félvezetők gyártási hibájának felismerése lépcsős függvényekkel a SECOM adatbázis alapján","(+)",null,"Mácz Andrea, Pitlik Marcell, Nyomárkay Kristóf, Németh Tamás","PPT: Autós forgalom számlálása","(+)",null,"Pitlik László, Pitlik László (jun)","Multi-layered, objective, optimized evaluation of strategies over static code analysis tools","(+)",null,"Pitlik László","SUM() derived through PRODUCT()","(+)",null,"Kamenár Dávid","A COVID-19 vírus elleni védekezés sikeressége az Európai Unió tagállamaiban a 4. hullám idején","(+)",null,"Pitlik László","Komplex mintázatok felismerése hasonlóságelemzéssel","(+)"]
["(MY-X team):","(Derivation of production errors in case of semiconductors based on the SECOM-database)",null,null,"(BME):","(Counting of cars in real traffic situations)",null,null,"(MY-X team):",null,null,null,"(MY-X team):",null,null,null,"(OE):","(Success of protection against the COVID-19 virus in the member states of the European Union during the 4th wave",null,null,"(My-X team):","(Exploring the existence of complex patterns based on similarity analysis)"]
["Pitlik László, Barta Gergő","Anti-diszkriminatív modellezés közelítése solver-alapú neurális hálókkal","(+)",null,"Mácz Andrea, Pitlik Marcell, Nyomárkay Kristóf, Németh Tamás","Autós forgalom számlálása","(+)",null,"Pitlik László","Kihívás/felhívás: hogyan lehetséges az anti-diszkriminatív modellezés neurális hálókra alapozva?","(+)",null,"Pitlik László","Dinamikus versenyelemzés Google Trends-adatok alapján","(+)",null,"Szepesi Judit Zsuzsa","Hatékonyságnövelés a bérszámfejtés kapcsán - Munkaidő adatokból importálható állományok előállítása makro segítségével","(+)",null,"Barta Gergő","Mesterséges intelligencia módszerek alkalmazása az informatikai rendszerek biztonsági auditjában","(+)"]
["(MY-X team):","(Approximation of anti-discriminative models based on solver-based neural networks)",null,null,"(BME):","(Counting of cars in real traffic situations)",null,null,"(MY-X team):","(How to model the anti-discriminative approach with artificial neural networks?)",null,null,"(MY-X team):","(Dynamic analysis of competitive situations based on Google Trends)",null,null,"(KJE):","(Improving the efficiency of recording payroll time data - Generating importable files from working time data using macro)",null,null,"(MATE GSZDI):","(Application of artificial intelligence methods in the security audit of IT systems)"]
["Pitlik László, Pitlik Marcell","A lépcsős függvények szimmetria-alapú validitása és a nyersadatok kapcsolata","(+)",null,"Ujlaki Richárd","Hol éri meg legjobban egy VIR-fejlesztői központot létrehozni Európában és miért?","(+)",null,"Anonim Hallgatók, Pitlik László","Blokklánc-tananyag (autodidakta) fejlesztése (avagy kulcsszavak és ezek fa-jellegű, ill. hipertextes kapcsolatai)","(+)",null,"Pitlik László","Alul- és túlteljesítés matematikai letapogatása többkörös szavazás első körös eredményei alapján a második kört illetően","(+)",null,"Szabó Kerecsen","Magyarország egészségügyi állapotának leírása - Egyenszilárdság-mérés területi alapon","(+)"]
["(MY-X team):","(Connection between the raw data and the validity based on symmetry in case of staircase functions)",null,null,"(KJE):","(Where can we build up the best price per value VIR development centre in Europe and why there?)",null,null,"(ÓE):","(Blockchain learning materials – based on tasks solved by Students)",null,null,"(MY-X team):","(Evaluation of second-layer-results based on first-layer-result in case of multilayered elections)",null,null,"(OE):","(Analyses of the Hungarian health statistics based on time series - Does each county provide the same regional chances for the citizens of Hungary?)",null,null,"MIAU No. = 279 ... (MIAU No. = 280) ... MIAU No. = 281"]
["Pitlik László","MP3: Automatizáció a kis és kkv-szektorban","(+)",null,"Györgydeák Balázs Péter","Szakdolgozat: A szoftverfejlesztés gazdaságtana","(+)",null,"Mácz Andrea, Nyomárkay Kristóf, Svastits Áron, Szabó Gábor Péter, Németh Tamás, Pitlik Marcell","Történeti áttekintés a kőolajról","(+)",null,"Barta Gergő","An artificial intelligence based approach to detect internal control deficiencies","(+)",null,"Tóth Zoltán","Ki is a jobb F1-pilóta valójában – avagy naiv és optimalizált kockázatelemzések","(+)"]
["(KJE):","(Automation concerning SMEs)",null,null,"(KJE):","(Information added value in the software engineering)",null,null,"(BME):","(Historical overview of crude oil)",null,null,"(Deloitte):",null,null,null,"(OE):","(Who is the better F1-pilot really – or risk analyses based on naïve and optimized approaches?)"]
[null,null,null,null,"Bagdi Dóra, Dúcs Attila, Martonosi Edit","Reprodukálási rejtvény: Hogyan lehet a klasszikus kérdőív értelmezéstől eljutni a modern adatelemzésig","(+)",null,"Pitlik Marcell","Térfogati égés optikai vizsgálata és mesterséges intelligencia alapú elemzése","(+)",null,null,null,null,null,"Burián Sándor","Egészségügyi adatok OLAP-szintű keresője kockázatelemzési célra","(+)"]
["MIAU No. = 274 ... (MIAU No. = 275) ... MIAU No. = 276",null,null,null,"(KJE):","(Challenge of reproduction concerning classic and modern interpretation of questionnaires)",null,null,"(BME):","(Optical diagnostics and analysis of steady combustion based on artificial intelligence)",null,null,"MIAU No. = 277 ... (MIAU No. = 278) ... MIAU No. = 279",null,null,null,"(OE):","(OLAP-based health statistics in learning content systems for risk management)"]
[null,null,null,null,"Pétery Zoltán","Utasbiztosítási szokások feltérképezése kimutatások és elemző modulok segítségével a kiegészítő fedezetek tekintetében","(+)",null,"Krenner Bálint","Melyik az a 4jegyű szám, ...? (What is the right number, if... ?)","(+)",null,"miau.my-",null,null,null,"Száraz Bence","Gyanú felderítés online szerepjátékban solver segítségével","(+)"]
[null,null,null,null,"(KJE):","(Pattern exploration in case of extra modules of the travel insurances based on reports and AI-models)",null,null,"(ÓE):",null,null,null,null,null,null,null,"(OE):","(Suspicion generation for online roleplay games based on Solver)"]
[null,null,null,null,"Csizmadia Szilvia","WHICH EUROPEAN COUNTRY IS THE BEST TO LIVE IN? / WO LEBT SICH AM BESTEN IN EUROPA?","(+)",null,"Pitlik László","Az IT-fejlődés és a fenntarthatóság kapcsolata","(+)",null,null,null,null,null,"Hegedűs Imre Bence","Az iPhone okostelefonok fejlődésének világa – a generációk közötti hasonlóságok elemzése robotszemmel","(+)"]
[null,null,null,null,"(KJE):",null,null,null,"(KJE):","(IT-based development and the term of sustainability)",null,null,null,null,null,null,"(KJE):","(Searching for the best iPhone based on anti-discriminative analyses)"]
[null,null,null,null,"Pitlik Marcell","Égések mesterséges intelligencia-alapú elemzése","(+)",null,"Pitlik László","Szövegelemzés (avagy az önkényes semmit mondás tételes leleplezése)","(+)",null,null,null,null,null,"Csuba Krisztián Ádám, Nguyen Van Nam Tamás","Mennyire egyenszilárd az EU-ban az egészségügy országonkénti összevetésben 2019-ben?","(+)"]
[null,null,null,null,"(MY-X team):","(AI-based analyses of the combustion)",null,null,"(KJE):","(Data-driven text-analysis or the examples for the arbitrary magic of words)",null,null,null,null,null,null,"(OE):","(Country ranking on European level for 2019 concerning health statistics based on Solver – or How well-balanced are the countries comparing to each other?)"]
[null,null,null,null,"Pitlik László, Pitlik Dóra","A leggyakrabban használt Google felhőszolgáltatások bemutatása és azok gyakorlati alkalmazhatóságának megismertetése","(+)",null,null,null,null,null,null,null,null,null,"Almásy Márton György, Hörömpő András","Jutalomfüggvények hasonlóságainak értékelése – avagy egy-egy jobb függvény megtalálásának stratégiája","(+)"]
[null,null,null,null,"(MY-X team):","(Most frequently used Google Services and their utilities in information brokering)",null,null,"MIAU No. = 276 ... (MIAU No. = 277) ... MIAU No. = 278",null,null,null,null,null,null,null,"(OE):","(Similarity-based evaluation of reward functions – or identification strategy of a best function)"]
[null,null,null,null,"Pitlik László, Pitlik Mátyás","Részletek egy kísérleti HPC-projekt kommunikációjából","(+)",null,"miau.my-",null,null,null,null,null,null,null,"Ács Kinga","Lehet-e robotizálni egy cég stratégiai tervezését?","(+)"]
[null,null,null,null,"(MY-X team):","(Details from communication activities in frame of an experimental HPC-project)",null,null,null,null,null,null,null,null,null,null,"(KJE):","(Can we robotize the strategic planning of a company?)"]
[null,null,null,null,"Pitlik László (jun)","Tudásszintmérő tesztek: a feladattípusok és a tanulói válaszadási stratégiák vizsgálata (szakdolgozat)","(+)",null,null,null,null,null,null,null,null,null,"Vincze Miklós, Somogyi Kristóf","Orvos-beteg dialógusok - avagy eszkalációs kockázatok elemzése","(+)"]
[null,null,null,null,"(ELTE):","(Thesis: Analyses of types of tasks and answer-strategies of Students in frame of tests constructed for exploration of knowledge levels)",null,null,null,null,null,null,null,null,null,null,"(OE):","(Dialogues between patients and doctors – escalation risk analyses)"]
[null,null,null,null,"Pitlik László (jun)","Egyedi kérdőívezési keretrendszer éles verziója PHP-alapon","(+)",null,null,null,null,null,null,null,null,null,"Karácsonyi Krisztián","Egymillió főre jutó balesetek kockázatelemzése megyénkénti felosztásban","(+)"]
[null,null,null,null,"(ELTE):","(Unique system for questionnaires based on PHP with real questions and controls)",null,null,null,null,null,null,null,null,null,null,"(OE):","(Accidents in county level - risk analyses based on similarities)"]
[null,null,null,null,null,null,null,null,null,null,null,null,null,null,null,null,"Molnár Vince Nándor","Oktatás, kultúra és bűncselekmények, álláskeresés konzisztens kapcsolatainak vizsgálata - Robot-pszichológus, robot-szociológus","(+)"]
[null,null,null,null,"MIAU No. = 275 ... (MIAU No. = 276) ... MIAU No. = 277",null,null,null,null,null,null,null,null,null,null,null,"(OE):","(Education, culture, crime, employment - Robot-psychologist, robot-sociologist - risk analysis)"]
[null,null,null,null,null,null,null,null,null,null,null,null,null,null,null,null,"Szakács Péter Barnabás","API műveletek tiltása tűzfal modul esetén - kockázatelemzés","(+)"]
[null,null,null,null,null,null,null,null,null,null,null,null,null,null,null,null,"(OE):","(Prohibited API-operation in case of firewalls - risk analysis)"]
[null,null,null,null,null,null,null,null,null,null,null,null,null,null,null,null,"Kovács Péter Pál","Kémiai konzisztencia teszt rekonstruálása / Módosított Herington teszt rekonstrukciója adathalmazt jellemző értékekből - kockázatelemzés","(+)"]
[null,null,null,null,null,null,null,null,null,null,null,null,null,null,null,null,"(OE):","(Reconstruction of chemical consistency test / Reconstruction of modified Herington test from characteristic valu"]
[null,null,null,null,null,null,null,null,null,null,null,null,null,null,null,null,"Varga-Dudás József","A processzorok zavaros világa letisztult robotszemmel – avagy a melyiket válasszam kérdés egyértelmű válasza","(+)"]
[null,null,null,null,null,null,null,null,null,null,null,null,null,null,null,null,"(KJE):","(CPU benchmarking based on similarity analyses)"]
[null,null,null,null,null,null,null,null,null,null,null,null,null,null,null,null,"Csaba Dávid","A legkockázatosabb munkavállalók és az általuk elkövetett hibák feltárása / Cél: A leghatékonyabb egyedi termelés","(+)"]
[null,null,null,null,null,null,null,null,null,null,null,null,null,null,null,null,"(KJE):","(Identifying the most risky workers and the mistakes they make / Objective: The most efficient individual production)"]
[null,null,null,null,null,null,null,null,null,null,null,null,null,null,null,null,"Hajdú Vivien Julianna, Varró Liliána Éva","A magyar társadalom rétegeinek becsült átlagos társadalmi-gazdasági értékessége","(+)"]
[null,null,null,null,null,null,null,null,null,null,null,null,null,null,null,null,"(KJE):","(Social values of age groups and gender positions in Hungary)"]
[null,null,null,null,null,null,null,null,null,null,null,null,null,null,null,null,"Nagy Richárd","MP4: Halálos kimenetelű közlekedési balesetek vizsgálata az Európai Unióban OAM alapján / Önsorsrontó-e a Magyar?","(+)"]
[null,null,null,null,null,null,null,null,null,null,null,null,null,null,null,null,"(KJE):","(Investigation of fatal road accidents in the European Union based on OAM / Are we, Hungarians, the architects of our own destruction?)"]
[null,null,null,null,null,null,null,null,null,null,null,null,null,null,null,null,"Nagy Richárd","Halálos kimenetelű közlekedési balesetek vizsgálata az Európai Unióban OAM alapján / Önsorsrontó-e a Magyar?","(+)"]
[null,null,null,null,null,null,null,null,null,null,null,null,null,null,null,null,"(KJE):","(Investigation of fatal road accidents in the European Union based on OAM / Are we, Hungarians, the architects of our own destruction?)"]
[null,null,null,null,null,null,null,null,null,null,null,null,null,null,null,null,"Pitlik Marcell","PPT: Égések zaj alapú elemzése mesterséges intelligenciával","(+)"]
[null,null,null,null,null,null,null,null,null,null,null,null,null,null,null,null,"(BME):","(Noise diagnostics and analysis of steady combustion based on artificial intelligence)"]
[null,null,null,null,null,null,null,null,null,null,null,null,null,null,null,null,"Pitlik Marcell","Égések zaj alapú elemzése mesterséges intelligenciával","(+)"]
[null,null,null,null,null,null,null,null,null,null,null,null,null,null,null,null,"(BME):","(Noise diagnostics and analysis of steady combustion based on artificial intelligence)"]
[]
[null,null,null,null,null,null,null,null,null,null,null,null,null,null,null,null,"MIAU No. = 278 ... (MIAU No. = 279) ... MIAU No. = 280"]
[null,null,null,null,null,null,null,null,null,null,null,null,null,null,null,null,"miau.my-"]

{"sheet":"Munka4","index":11,"n_rows":39,"n_cols":11,"rows_kept":39,"cut":false,"hidden":false,"merged":[[14,2,15,2],[16,2,17,2],[2,6,3,6],[4,6,5,6],[6,6,7,6],[8,6,9,6],[10,6,11,6],[12,6,13,6],[14,6,15,6],[16,6,17,6],[2,2,3,2],[4,2,5,2],[6,2,7,2],[8,2,9,2],[10,2,11,2],[12,2,13,2],[30,6,31,6],[32,6,33,6],[34,6,35,6],[2,10,3,10],[4,10,5,10],[6,10,7,10],[8,10,9,10],[10,10,11,10],[12,10,13,10],[18,6,19,6],[20,6,21,6],[22,6,23,6],[24,6,25,6],[26,6,27,6],[28,6,29,6]]}
["MIAU No. = 272 *** Év/Year = 2021 *** Hónap/Month = április",null,8,null,"MIAU No. = 273 *** Év/Year = 2021 *** Hónap/Month = május",null,17,null,"MIAU No. = 274 *** Év/Year = 2021 *** Hónap/Month = június",null,6]
[]
["Pitlik László","Automatizáció a banki és biztosítási piacon","(+)",null,"Pitlik László","BELBIN-teszt hasonlóság-alapú értékelése","(+)",null,"Gergics Miléna, Pitlik László","Robotedző és robot-pszichológus feltörekvő labdarúgók piaci értékének növelésére","(+)"]
["(KJE):","(Automation in bank and insurance activities)",null,null,"(MY-X team):","(Belbin-test evaluation based on similarity analyses)",null,null,"(MY-X team):","(Robot-coach and Robot-psychologist for increasing market value of young soccers)"]
["Pitlik László","MP3: A digitalizáció szerepe a megváltozott kutatási környezetben","(+)",null,"Pitlik László (jun)","BELBIN-teszt kánon-alapú értékelése","(+)",null,"Pitlik Marcell","OTDK-MP3: Térfogati égés optikai vizsgálata és mesterséges intelligencia alapú elemzése","(+)"]
["(KJE):","(Digitalization and research)",null,null,"(MY-X team):","(Belbin-test canonized evaluation)",null,null,"(MY-X team):","(Optical diagnostics and analysis of steady combustion based on artificial intelligence)"]
["Pitlik László","A digitalizáció szerepe a megváltozott kutatási környezetben","(+)",null,"Válogatás","A kódlopó/kódkölcsönző programozásról","(+)",null,"Pitlik Marcell","OTDK-PPT: Térfogati égés optikai vizsgálata és mesterséges intelligencia alapú elemzése","(+)"]
["(KJE):","(Digitalization and research)",null,null,"(MY-X team):","(How to create source codes based on prepared elements?)",null,null,"(MY-X team):","(Optical diagnostics and analysis of steady combustion based on artificial intelligence)"]
["Pitlik László, Pitlik Marcell","Alternatív megoldások regressziós modellekben hasonlóságelemzésekhez képest","(+)",null,"Pitlik László","Termelési szerkezet optimalizálása Solver-alapon","(+)",null,"Pitlik László","Blokklánc-blokkok optimalizált feltöltésének alternatív megoldásai","(+)"]
["(MY-X Team):","(Alternative solutions of regression models compared to similarity analyses)",null,null,"(MY-X team):","(Optimizing production structure based on MS Excel-Solver)",null,null,"(MY-X team):","(Alternative solutions for defining transactions for blocks of blockchains)"]
["Pitlik László","Triatlon-csapatok optimalizálása solver-támogatással","(+)",null,"Pitlik László","Termelési szerkezet optimalizálása MCM-alapon","(+)",null,"Pitlik László, Pitlik Marcell","Solver-függő alternatív megoldások a hasonlóságelemzésben","(+)"]
["(MY-X team):","(Optimization of triatlon-teams based on solver)",null,null,"(MY-X team):","(Optimizing production structure based on MCM)",null,null,"(MY-X team):","(Solver-driven alternative solutions in the similarity analysis)"]
["Pitlik László, Pitlik Marcell","Roo-Boo-MOOC, avagy a robotizált MOOC-fejlesztés lehetőségei és korlátai II.","(+)",null,"Pitlik László, Rikk János, Pitlik Marcell","Naiv és optimalizált versenyértékelés az oktatásban","(+)",null,"Pitlik László","Látszólagos teljes invaliditás függvény-szimmetria vizsgálatok nyomán lépcsős függvényekkel","(+)"]
["(MY-X team):","(Potentials and barriers in the robotized MOOC-development- Part II.)",null,null,"(MY-X team):","(Naïve and optimized evaluation in competitive education)",null,null,"(MY-X team):","(Seemingly total invalidity based on symmetry analyses of staircase functions)"]
["Pitlik László, Pitlik Marcell, Pitlik Mátyás, Rikk János","A hamis remény kódjai, avagy mi különbözteti meg a jó és a középszerű programozókat egymástól?","(+)",null,"Pitlik László, Rikk János","Felsőoktatási intézmények teljesítmény-ellenőrzési rendszervariánsai","(+)"]
["(MY-X team):","(Codes of the false hope – or what are the differences between the good and the norm-like programmers?)",null,null,"(MY-X team):","(Variations for performance control systems in the higher education)",null,null,"MIAU No. = 273 ... (MIAU No. = 274) ... MIAU No. = 275"]
["Pitlik László, Pitlik Marcell","Anonimitás, mint a jövő pénze","(+)",null,"Pitlik László, Pitlik Marcell","Alternatív megoldások idősorok legkarakterisztikusabb vágópontjainak feltárására","(+)"]
["(MY-X team):","(Anonymity as a kind of money of the future)",null,null,"(MY-X team):","(Alternative solutions for the most characteristic cutting points in time series)"]
[null,null,null,null,"Pitlik László, Pitlik Marcell","Az olaj, mint nyersanyag iránti érdeklődés lehetséges értelmezései","(+)"]
["MIAU No. = 271 ... (MIAU No. = 272) ... MIAU No. = 273",null,null,null,"(MY-X team):","(Potential interpretations of Google-Trends about oil as such)"]
["miau.my-",null,null,null,"Pitlik László, Pitlik Marcell","Hallgatói dolgozatok értékelése csak a kivonatok alapján, avagy a kivonat tartalmának szabványosítási kísérlete","(+)"]
[null,null,null,null,"(MY-X team):","(Evaluation of studies of Students based only on the abstract – or an attempt for standardization of abstracts)"]
[null,null,null,null,"Pitlik Mátyás, Pitlik Marcell, Pitlik László, Pitlik László (jun)","Érmevásárlás hasonlóságelemzési alapon, avagy alternatív modellek és ezek kölcsönhatásai","(+)"]
[null,null,null,null,"(MY-X team):","(Numismatic decision support based on alternative similarity analyses)"]
[null,null,null,null,"Pitlik László, Pitlik Marcell","A Coursera aranykora, avagy az önkorlátozó mesterséges intelligencia","(+)"]
[null,null,null,null,"(MY-X team):","(Golden Age for Coursera – or self-limitation of artificial intelligence)"]
[null,null,null,null,"Takács Vivien, Pitlik László","A SAMSUNG és a DELL brand-érték alakulásának összehasonlító elemzése","(+)"]
[null,null,null,null,"(Learning Innovation Kft., My-X team):","(Comparative analysis of the time series of brand values concerning Samsung and Dell)"]
[null,null,null,null,"Garabits Edina, Pitlik László","A COURSERA és az UDEMY brand-érték alakulásának összehasonlító elemzése","(+)"]
[null,null,null,null,"(Learning Innovation Kft., My-X team):","(Comparative analysis of the time series of brand values concerning Coursera and Udemy)"]
[null,null,null,null,"Boross Gábor, Pitlik László","A FERRARI brand-értékének idősoros alakulása, avagy a WIKIPEDIA hangulatértékek becslése","(+)"]
[null,null,null,null,"(Learning Innovation Kft., My-X team):","(The time-series of the brand values of Ferrari from point of view of a robot historian – or estimation of emotional directions of Wikipedia about an enterprise)"]
[null,null,null,null,"Kemény Norbert, Pitlik László","A SAMSUNG Electronics aranykora, avagy a naiv és a robotszem párhuzamai és eltérései","(+)"]
[null,null,null,null,"(Learning Innovation Kft., My-X team):","(The golden age of the Samsung Electronics company– or parallelisms and differences between robot eyes and naïve problem handling strategies)"]
[null,null,null,null,"Rácz Zsolt, Pitlik László","Az ADIDAS-történet robotszemmel – avagy a validáció új aspektusai a hasonlóságelemzésben","(+)"]
[null,null,null,null,"(Learning Innovation Kft., My-X team):","(The Adidas-story from point of view of a robot historian – or new aspects of the validation in the similarity analyses)"]
[]
[null,null,null,null,"MIAU No. = 272 ... (MIAU No. = 273) ... MIAU No. = 274"]
[null,null,null,null,"miau.my-"]

{"sheet":"Munka3","index":12,"n_rows":137,"n_cols":3,"rows_kept":137,"cut":false,"hidden":false,"merged":[[65,2,66,2],[57,1,58,1],[57,2,58,2],[59,2,60,2],[61,2,62,2],[63,2,64,2],[47,2,48,2],[49,2,50,2],[51,2,52,2],[53,2,54,2],[55,1,56,1],[55,2,56,2],[32,2,33,2],[34,2,35,2],[36,2,37,2],[38,0,39,0],[38,2,39,2],[30,2,31,2],[2,2,3,2],[4,2,5,2],[6,2,7,2],[8,2,9,2],[10,2,11,2],[12,2,13,2],[20,2,21,2],[22,2,23,2],[24,2,25,2],[26,2,27,2],[28,2,29,2],[74,1,75,1],[74,2,75,2],[76,2,77,2],[78,2,79,2],[80,2,81,2],[82,2,83,2],[84,2,85,2],[86,2,87,2],[94,1,95,1],[94,2,95,2],[96,2,97,2],[98,2,99,2],[100,2,101,2],[102,2,103,2],[104,1,105,1],[104,2,105,2],[106,2,107,2],[108,1,109,1],[108,2,109,2],[116,2,117,2],[118,2,119,2],[120,2,121,2],[122,2,123,2],[124,2,125,2],[126,2,127,2],[128,2,129,2]]}
[" október"]
[]
["Pitlik László (jun)","A közjó mérése","(+)"]
["(MY-X team):","(Modelling of the Common Good)"]
["Pitlik László (jun)","Adatforrások a közjó mérésében: Eurostat és OECD","(+)"]
["(MY-X team):","(Data sources for the modelling of the Common Good)"]
["Pitlik László (jun)","Komplex fejlettségi index","(+)"]
["(MY-X team):","(Complex Development index - CDi)"]
["Pitlik László (jun)","Az európai integrációról","(+)"]
["(MY-X team):","(About the European Integration)"]
["Pitlik László, Pitlik Marcell","A ROBOT-ÍRÓ alapjai","(+)"]
["(MY-X team):","(Basics of a ROBOT-writer)"]
["Pitlik László, Rikk János, Gángó Vince, Tóth Csaba","A távoktatás, mint kritikus oktatási üzem – IT-aspektusai, avagy felkészülés a duális képzésre","(+)"]
["(MY-X team):","(Distance education as a kind of critical education operation and its IT-relevant aspects, or preparation for a dual education)"]
[]
["MIAU No. "]
[]
[]
["november"]
[]
["Bakos Bence","Prezentáció: PLA-felmérés adatainak mesterséges intelligencia alapú elemzése","(+)"]
["(KJE):","(Analyses of PLA-data assets based on artificial intelligence)"]
["Bartók Patrik","Prezentáció: Két eszköz közti adatátviteli lehetőségek áttekintése a biztonság szempontjából induktív szakértői rendszerrel","(+)"]
["(KJE):","(Security ranking of alternative data-transfer-approaches based on an inductive expert system tool)"]
["Pitlik László, Pitlik Marcell, Bartók Patrik, Rikk János","Értékek matematikája","(+)"]
["(MY-X team):","(Mathematics of values)"]
["Pitlik László, Pitlik Marcell, Bakos Bence, Rikk János","Solver-alapú problémamegoldás, avagy az adatvagyontól a kész jelentésig tartó projekt minőségmenedzsmentje","(+)"]
["(MY-X team):","(Solver-based problem solving, or from the data assets to a closed study with quality management aspects)"]
["Pitlik László, Pitlik Mátyás, Pitlik Marcell, Rikk János","EEG-mintázatok előhívása és feltárása MI-alapon","(+)"]
["(MY-X team):","(Deriving and detecting EEG-patterns based on AI)"]
["Bartók Patrik","Két eszköz közti adatátviteli lehetőségek áttekintése a biztonság szempontjából induktív szakértői rendszerrel","(+)"]
["(KJE):","(Security ranking of alternative data-transfer-approaches based on an inductive expert system tool)"]
["Bakos Bence","PLA-felmérés adatainak mesterséges intelligencia alapú elemzése","(+)"]
["(KJE):","(Analyses of PLA-data assets based on artificial intelligence)"]
["Pitlik Marcell","Prezentáció: Térfogati égés optikai vizsgálata és mesterséges intelligencia alapú elemzése","(+)"]
["(BME):","(Optical diagnostics and analysis of steady combustion based on artificial intelligence)"]
["Pitlik Marcell","Térfogati égés optikai vizsgálata és mesterséges intelligencia alapú elemzése","(+)"]
["(BME):","(Optical diagnostics and analysis of steady combustion based on artificial intelligence)"]
["Pitlik László, Pitlik Marcell:","Szubjektív értékelések kiegészítése objektív adatforrásokkal és ezek mesterséges intelligencia-alapú értelmezésével","(+)"]
[null,"(Completion of subjective evaluations through objective data sources and their AI-based analyses)"]
[]
["MIAU"]
[]
[]
[]
["MIAU No. = 268 *** Év/Year = 2020 *** Hónap/Month = december"]
[]
["Pitlik László","Bizonyítás-szimulátor, avagy mit tudhat ténylegesen egy big-data alapon eljáró ROBOT-COVID-szakértő?","(+)"]
["(My-X team):","(Evidence-simulator, or what can be derived based on big-data by a ROBOT-COVID-expert?)"]
["Pitlik László, Biró Bálint, Pitlik Marcell, Pitlik László (jun)","A szakmai problémától a pszeudo-kódig, avagy a context-free szómágia és az Excel kapcsolata","(+)"]
["(My-X team):","(From the context-related problem to a pseudo-code, or magic of words in a context-free way leading to an Excel-demo)"]
["Pitlik László, Pitlik Marcell","Ceteris paribus alakzatok racionális polinomjai – hasonlóságelemzéssel","(+)"]
["(My-X team):","(Rational polynomial functions as ceteris paribus views – based on similarity analyses)"]
["Pitlik László","Előadás: Modern szemléletű projektciklus-értelmezések alapjai","(+)"]
["(KJE):","(Project-cycle-interpretations based on heretic approaches)"]
["Bakos Bence","TDK-előadás: PLA-felmérés adatainak mesterséges intelligencia alapú elemzése (Analyses of PLA-data assets based on artificial intelligence)","(+)"]
["(KJE):"]
["Bartók Patrik","TDK-előadás: Két eszköz közti adatátviteli lehetőségek áttekintése a biztonság szempontjából induktív szakértői rendszerrel (Security ranking of alternative data-transfer-approaches based on an inductive expert system tool)","(+)"]
["(KJE):"]
["Pitlik László","Az erőből történő problémamegoldás demonstrálása egyéb alternatívák bemutatása mellett","(+)"]
["(MY-X team):","(Problem solving based on brute force and/or other approaches)"]
["Pitlik László, Pitlik Marcell, Pitlik László (jun)","A statisztikus tanulás robotizálása, avagy az evolúció alapvetően konzerválja-e a butaságot?!","(+)"]
["(MY-X team):","(Robotized statistical learning or the evolution as guarantee for the existence of the human dumbness?!)"]
["Pitlik László, Pitlik Marcell","Spontán matematika-tudásnövelés programozók esetében (a véletlen kezelésének kockázatai pszeudokódban)","(+)"]
["(MY-X team):","(Knowledge-increasing in mathematics in a spontaneous way in case of programmers or risks in pseudocode-based representations of the coincidence)"]
["Pitlik László, Pitlik Marcell","Context-free hermeneutikai gyakorlatok (hasonlóságelemzésláncok egységes rendszerű értelmezése transzponált OAM-ok alapján)","(+)"]
["(MY-X team):","(Context-free exercises in hermeneutics or holistic interpretations for chained similarity analyses based on transponed OAMs)"]
[]
["MIAU No. = 267 ... (MIAU No. = 268) ... MIAU No. = 269"]
[]
[]
[]
["MIAU No. = 269 *** Év/Year = 2021 *** Hónap/Month = január"]
[]
["Válogatás","Aranykor-értelmezések üzemi adatok alapján (Interpretation of the Golden Age concerning enterprises)","(+)"]
["(KJE):"]
["Orovecz Dávid","Önálló tanulást támogató angol nyelvi teszt értékelésekkel és magyarázatokkal - dokumentációs nézet","(+)"]
["(KJE):","Autodidactic quiz in English with evaluation and interpretation layers - planning view"]
["Orovecz Dávid","Önálló tanulást támogató angol nyelvi teszt értékelésekkel és magyarázatokkal","(+)"]
["(KJE):","Autodidactic quiz in English with evaluation and interpretation layers"]
["Zsanett András","Könyvelési adatok információs többletérték-termelő képességének feltárása egyetlen cég két évtizedes adatvagyona alapján","(+)"]
["(KJE):","(Innovative time series analyses in case of one single enterprise - VADEX)"]
["Anonim Hallgató","Forráskódot bemutató publikáció köztes állapota a dolgozatkészítés tervezésének és kivitelezésének támogatására","(+)"]
["(KJE):","(Interim report about a source code supporting planning and realization of studies)"]
["Birgésné Velkei Éva","CÉG-ADATOK ÉRTELMEZÉSE MÁSKÉNT","(+)"]
["(KJE):","(Interpretation of information about enterprises - in an innovative way)"]
["Gergics Miléna","A ROBOTEDZŐ TERVEZETT ALKALMAZÁSA A NŐI LABDARÚGÁSBAN","(+)"]
["(KJE):","(THE PROPOSED USE OF ROBOT COACH IN THE WOMEN’S FOOTBALL)"]
[]
["MIAU No. = 268 ... (MIAU No. = 269) ... MIAU No. = 270"]
["miau.my-"]
[]
["MIAU No. = 270 *** Év/Year = 2021 *** Hónap/Month = február"]
[]
["Kodó Krisztina, Kovács László, Pitlik László","Experiences concerning digital transformation of the higher education on personal and institutional levels","(+)"]
["(KJU):"]
["Pitlik László, Pitlik Marcell, Pitlik László (jun)","Az anti-diszkriminatív, solver-alapú modellezés alternatív rétegei","(+)"]
["(MY-X team):","(Alternative layers of the anti-discriminative, solver-based modelling)"]
["Pitlik László, Pitlik Marcell, Pitlik Mátyás","Robot-esztéta, avagy a szépség matematikája II.","(+)"]
["(MY-X team):","(Robot-aesthetic-expert or the mathematics of the beauty - Part II.)"]
["Pitlik László, Pitlik Marcell, Pitlik Mátyás","Robot-esztéta, avagy a szépség matematikája I.","(+)"]
["(MY-X team):","(Robot-aesthetic-expert or the mathematics of the beauty - Part I.)"]
["Pitlik László, Pitlik Marcell","A multikollinearitás téves kezelése, avagy információvesztést generáló változókizárás a hasonlóságelemzésben","(+)"]
["(MY-X team):","(Wrong interpretation of the multicollinearity or even the exclusion of the affected variables leads to lack of information)"]
["Németh László, Pitlik László","Robot-lektor fejlesztése (részjelentés) (Robot-lector – progress report)","(+)"]
["(INNOREG, MY-X team):"]
["Pitlik László","A pesszimizmus matematikája, avagy egy robot-pszichológus alapvetései","(+)"]
["(MY-X team):","(Mathematics of the pessimism – or the basics of a robot-psychologist)"]
["Pitlik Mátyás, Pitlik László","FADN/MSZIH-adatok új OLAP-keretrendszere","(+)"]
["(MY-X team):"]
[]
["MIAU No. = 269 ... (MIAU No. = 270) ... MIAU No. = 271"]
[]
[]
["MIAU No. = 271 *** Év/Year = 2021 *** Hónap/Month = március"]
[]
["Pitlik László, Pitlik Marcell","Roo-Boo-MOOC, avagy a robotizált MOOC-fejlesztés lehetőségei és korlátai I.","(+)"]
["(MY-X team):","(Potentials and barriers in the robotized MOOC-development- Part I.)"]
["Pitlik László, Pitlik Marcell","A kongruens modellezés információs többletérték-termelő potenciálja","(+)"]
["(MY-X team):","(Potential of the information added value based on congruent modelling)"]
["Pitlik László, Pitlik László (jun)","Több kombinatorikai réteggel nehezített feladat solver-alapú megoldása","(+)"]
["(MY-X team):","(Multilayered combinatrics in solver-based solutions)"]
["Pitlik Marcell","Digitális/elektronikus/virtuális (jegybank)pénz és a blokkláncok jelentősége a pénzügyekben, avagy az adat-elemzés és az adat-vizualizáció lehetőségei a döntéstámogatásban","(+)"]
["(MY-X team):","(Forecasting of the e-money volumes based on similarity analysis)"]
["Pitlik László","Javascript-alapú MOOC-őssejt","(+)"]
["(MY-X team):","(Javascript-based MOOC stem cell)"]
["Pitlik László","2DM-játék animációkkal","(+)"]
["(MY-X team):","(2DM-game with animations)"]
["VIRTOUR","2DM-alapú tudományos ismeretterjesztés biológia témakörben","(+)"]
["(VIRTOUR):","(2DM-based dissemination of scientific knowledge on the field of the biology)"]
[]
["MIAU No. = 270 ... (MIAU No. = 271) ... MIAU No. = 272"]
["miau.my-x.hu"]
[]
["myxfree.tool"]
[]
["rss.services"]

{"sheet":"nyers_oldd","index":13,"n_rows":90,"n_cols":13,"rows_kept":90,"cut":false,"hidden":false,"merged":[[10,2,11,2],[12,2,13,2],[72,2,73,2],[86,2,87,2],[0,2,1,2],[2,2,3,2],[4,2,5,2],[6,2,7,2],[8,2,9,2],[32,2,33,2],[56,2,57,2],[62,2,63,2],[20,2,21,2],[22,2,23,2],[14,2,15,2],[16,2,17,2],[0,3,1,3],[2,3,3,3],[4,3,5,3],[12,3,13,3],[6,3,7,3],[8,3,9,3],[10,3,11,3],[14,3,15,3],[16,3,17,3],[18,3,19,3],[20,3,21,3],[22,3,23,3],[24,3,25,3],[26,3,27,3],[28,3,29,3],[30,2,31,2],[30,3,31,3],[28,2,29,2],[26,2,27,2],[24,2,25,2],[32,3,33,3],[34,3,35,3],[36,3,37,3],[38,3,39,3],[34,2,35,2],[36,2,37,2],[50,3,51,3],[52,2,53,2],[52,3,53,3],[54,3,55,3],[40,3,41,3],[42,2,43,2],[42,3,43,3],[44,3,45,3],[46,3,47,3],[88,3,89,3],[86,3,87,3],[76,3,77,3],[78,3,79,3],[80,3,81,3],[18,2,19,2],[72,3,73,3],[74,3,75,3],[82,3,83,3],[84,3,85,3],[62,3,63,3],[64,3,65,3],[66,3,67,3],[68,3,69,3],[70,3,71,3],[56,3,57,3],[58,2,59,2],[58,3,59,3],[60,2,61,2],[60,3,61,3],[48,3,49,3]]}
["miau261","Amine Sahraouardi","Beliefs about the Use of Instagram: An Exploratory Study - How to model Instagram characteristics based on country profiles","(+)",null,{"$f":"A1","v":"miau261"},{"$f":"B1","v":"Amine Sahraouardi"},":",{"$f":"M1","v":"Beliefs about the Use of Instagram: An Exploratory Study - How to model Instagram characteristics based on country profiles"},"  xx  ","https://miau.my-x.hu/miau/261/instagram.pdf",null,{"$f":"C1","v":"Beliefs about the Use of Instagram: An Exploratory Study - How to model Instagram characteristics based on country profiles"}]
[null,"(KJU):"]
["miau261","Anna Laura Bódis, Luca Klára Bodolay","The learning success of different didactical actions","(+)",null,{"$f":"A3","v":"miau261"},{"$f":"B3","v":"Anna Laura Bódis, Luca Klára Bodolay"},":",{"$f":"M3","v":"The learning success of different didactical actions"},"  xx  ","https://miau.my-x.hu/miau/261/5percent.pdf",null,{"$f":"C3","v":"The learning success of different didactical actions"}]
[null,"(KJU):"]
["miau261","Pavel Vovchik","Russian Economy between 1992-1998 or preferred terms for political communication/marketing","(+)",null,{"$f":"A5","v":"miau261"},{"$f":"B5","v":"Pavel Vovchik"},":",{"$f":"M5","v":"Russian Economy between 1992-1998 or preferred terms for political communication/marketing"},"  xx  ","https://miau.my-x.hu/miau/261/GDP_political_marketing_ru.pdf",null,{"$f":"C5","v":"Russian Economy between 1992-1998 or preferred terms for political communication/marketing"}]
[null,"(KJU):"]
["miau261","Dániel FÜLÖP","Hungarian Economy between 2010-2020 or preferred terms for political communication/marketing","(+)",null,{"$f":"A7","v":"miau261"},{"$f":"B7","v":"Dániel FÜLÖP"},":",{"$f":"M7","v":"Hungarian Economy between 2010-2020 or preferred terms for political communication/marketing"},"  xx  ","https://miau.my-x.hu/miau/261/GDP_political_marketing.pdf",null,{"$f":"C7","v":"Hungarian Economy between 2010-2020 or preferred terms for political communication/marketing"}]
[null,"(KJU):"]
["miau261","Aqib Masood, Navid Babaei","Management is the best way to increase productivity - or how to prove a hypothesis based on big-data and solver-oriented thinking experiments","(+)",null,{"$f":"A9","v":"miau261"},{"$f":"B9","v":"Aqib Masood, Navid Babaei"},":",{"$f":"M9","v":"Management is the best way to increase productivity - or how to prove a hypothesis based on big-data and solver-oriented thinking experiments"},"  xx  ","https://miau.my-x.hu/miau/261/Management_Project.pdf",null,{"$f":"C9","v":"Management is the best way to increase productivity - or how to prove a hypothesis based on big-data and solver-oriented thinking experiments"}]
[null,"(KJU):"]
["miau261","Raj Md Saidul Islam","How to select the best location for a business activity?","(+)",null,{"$f":"A11","v":"miau261"},{"$f":"B11","v":"Raj Md Saidul Islam"},":",{"$f":"M11","v":"How to select the best location for a business activity?"},"  xx  ","https://miau.my-x.hu/miau/261/How_to_select_the_best_location_for_a_business_activity3.pdf",null,{"$f":"C11","v":"How to select the best location for a business activity?"}]
[null,"(KJU):"]
["miau261","Khalid Hafiz Waqar","Transnational Cooperation for COVID19 Control and Prevention or comparative estimation of the quality of health systems","(+)",null,{"$f":"A13","v":"miau261"},{"$f":"B13","v":"Khalid Hafiz Waqar"},":",{"$f":"M13","v":"Transnational Cooperation for COVID19 Control and Prevention or comparative estimation of the quality of health systems"},"  xx  ","https://miau.my-x.hu/miau/261/health_management_quality_covid.pdf",null,{"$f":"C13","v":"Transnational Cooperation for COVID19 Control and Prevention or comparative estimation of the quality of health systems"}]
[null,"(KJU):"]
["miau261","Kitti Visnyei","GAME DEVELOPMENT APPROACHES - Handling the freedom by players in gamification processes","(+)",null,{"$f":"A15","v":"miau261"},{"$f":"B15","v":"Kitti Visnyei"},":",{"$f":"M15","v":"GAME DEVELOPMENT APPROACHES - Handling the freedom by players in gamification processes"},"  xx  ","https://miau.my-x.hu/miau/261/GameDevelopment.pdf",null,{"$f":"C15","v":"GAME DEVELOPMENT APPROACHES - Handling the freedom by players in gamification processes"}]
[null,"(KJU):"]
["miau261","Sára Várkonyi","Coronavirus publication - the best-country-view","(+)",null,{"$f":"A17","v":"miau261"},{"$f":"B17","v":"Sára Várkonyi"},":",{"$f":"M17","v":"Coronavirus publication - the best-country-view"},"  xx  ","https://miau.my-x.hu/miau/261/coronavirus_publication_final.pdf",null,{"$f":"C17","v":"Coronavirus publication - the best-country-view"}]
[null,"(KJU):"]
["miau261","Aidana Sanbayeva","Eurovision - event tourism (festivals) as an attractor","(+)",null,{"$f":"A19","v":"miau261"},{"$f":"B19","v":"Aidana Sanbayeva"},":",{"$f":"M19","v":"Eurovision - event tourism (festivals) as an attractor"},"  xx  ","https://miau.my-x.hu/miau/261/eurovision.pdf",null,{"$f":"C19","v":"Eurovision - event tourism (festivals) as an attractor"}]
[null,"(KJU):"]
["miau261","Nadeem Azhar","Pizza to go – A Best Pizza Award – based on a robot judge","(+)",null,{"$f":"A21","v":"miau261"},{"$f":"B21","v":"Nadeem Azhar"},":",{"$f":"M21","v":"Pizza to go – A Best Pizza Award – based on a robot judge"},"  xx  ","https://miau.my-x.hu/miau/261/pizza_award_robot_judge.pdf",null,{"$f":"C21","v":"Pizza to go – A Best Pizza Award – based on a robot judge"}]
[null,"(KJU):"]
["miau261","LUBO NGOIE JUNIOR","Food-Kaleidoscope – The Case of Belgium","(+)",null,{"$f":"A23","v":"miau261"},{"$f":"B23","v":"LUBO NGOIE JUNIOR"},":",{"$f":"M23","v":"Food-Kaleidoscope – The Case of Belgium"},"  xx  ","https://miau.my-x.hu/miau/261/food_kaleidoscope_belgium.pdf",null,{"$f":"C23","v":"Food-Kaleidoscope – The Case of Belgium"}]
[null,"(KJU):"]
["miau261","Yama Abdiani","Food-Kaleidoscope – The Case of Zambia","(+)",null,{"$f":"A25","v":"miau261"},{"$f":"B25","v":"Yama Abdiani"},":",{"$f":"M25","v":"Food-Kaleidoscope – The Case of Zambia"},"  xx  ","https://miau.my-x.hu/miau/261/food_kaleidoscope_zambia.pdf",null,{"$f":"C25","v":"Food-Kaleidoscope – The Case of Zambia"}]
[null,"(KJU):"]
["miau261","Shahroze Shahroze","RANKING OF COUNTRIES CONCERNING AI-READINESS/RELATEDNESS OR IMPACTS OF ARTIFICIAL INTELLIGENCE","(+)",null,{"$f":"A27","v":"miau261"},{"$f":"B27","v":"Shahroze Shahroze"},":",{"$f":"M27","v":"RANKING OF COUNTRIES CONCERNING AI-READINESS/RELATEDNESS OR IMPACTS OF ARTIFICIAL INTELLIGENCE"},"  xx  ","https://miau.my-x.hu/miau/261/Ranking_of_countries_concerning_AI.pdf",null,{"$f":"C27","v":"RANKING OF COUNTRIES CONCERNING AI-READINESS/RELATEDNESS OR IMPACTS OF ARTIFICIAL INTELLIGENCE"}]
[null,"(KJU):"]
["miau261","Nazir Nelson","Food-Kaleidoscope – The Case of Pakistan","(+)",null,{"$f":"A29","v":"miau261"},{"$f":"B29","v":"Nazir Nelson"},":",{"$f":"M29","v":"Food-Kaleidoscope – The Case of Pakistan"},"  xx  ","https://miau.my-x.hu/miau/261/Food_Kaleidoscope_Pakistan.pdf",null,{"$f":"C29","v":"Food-Kaleidoscope – The Case of Pakistan"}]
[null,"(KJU):"]
["miau261","Kitoto Ngoie Jennifer","Food-Kaleidoscope – The Case of Congo","(+)",null,{"$f":"A31","v":"miau261"},{"$f":"B31","v":"Kitoto Ngoie Jennifer"},":",{"$f":"M31","v":"Food-Kaleidoscope – The Case of Congo"},"  xx  ","https://miau.my-x.hu/miau/261/food_kaleidoscope_case_congo.pdf",null,{"$f":"C31","v":"Food-Kaleidoscope – The Case of Congo"}]
[null,"(KJU):"]
["miau261","Dominik Riczó","Europe between 1960 and 1990 or what could derive a robot-historian about the second half of the cold war based on big-data?","(+)",null,{"$f":"A33","v":"miau261"},{"$f":"B33","v":"Dominik Riczó"},":",{"$f":"M33","v":"Europe between 1960 and 1990 or what could derive a robot-historian about the second half of the cold war based on big-data?"},"  xx  ","https://miau.my-x.hu/miau/261/coldwar_robot-historian_turing-test.pdf",null,{"$f":"C33","v":"Europe between 1960 and 1990 or what could derive a robot-historian about the second half of the cold war based on big-data?"}]
[null,"(KJU):"]
["miau261","Syed Nabeel, Saad Muhammad Adil","2D MATRIX GAME","(+)",null,{"$f":"A35","v":"miau261"},{"$f":"B35","v":"Syed Nabeel, Saad Muhammad Adil"},":",{"$f":"M35","v":"2D MATRIX GAME"},"  xx  ","https://miau.my-x.hu/miau/261/quilt2_2dm_plus.pdf",null,{"$f":"C35","v":"2D MATRIX GAME"}]
[null,"(KJU):"]
["miau261","Nadja Oelmüllers","H1N1","(+)",null,{"$f":"A37","v":"miau261"},{"$f":"B37","v":"Nadja Oelmüllers"},":",{"$f":"M37","v":"H1N1"},"  xx  ","https://miau.my-x.hu/miau/261/h1n1.pdf",null,{"$f":"C37","v":"H1N1"}]
[null,"(KJU):"]
["miau262","Pitlik László, Pitlik László (jun)","Harmonikus közép számítása Solver-rel",null,null,{"$f":"A39","v":"miau262"},{"$f":"B39","v":"Pitlik László, Pitlik László (jun)"},":",{"$f":"M39","v":"Harmonikus közép számítása Solver-rel"},"  xx  ","https://miau.my-x.hu/miau/262/3tarcsa.xlsx",null,{"$f":"C39","v":"Harmonikus közép számítása Solver-rel"}]
[null,"(MY-X team):","(Calculation of harmonic means with Solver)"]
["miau262","Pitlik László","Hiányzó adatok becslésének láncreakciói",null,null,{"$f":"A41","v":"miau262"},{"$f":"B41","v":"Pitlik László"},":",{"$f":"M41","v":"Hiányzó adatok becslésének láncreakciói"},"  xx  ","https://miau.my-x.hu/miau/262/excel_plus.xls",null,{"$f":"C41","v":"Hiányzó adatok becslésének láncreakciói"}]
[null,"(MY-X team):","(Estimation of missing values in frame of chained processes)"]
["miau262","Pitlik László","Forecasting-oriented evaluation of further matches based on renewed elo-rating-approaches in frame of similarity analyses",null,null,{"$f":"A43","v":"miau262"},{"$f":"B43","v":"Pitlik László"},":",{"$f":"M43","v":"Forecasting-oriented evaluation of further matches based on renewed elo-rating-approaches in frame of similarity analyses"},"  xx  ","https://miau.my-x.hu/miau/262/exatlon_plus.xlsx",null,{"$f":"C43","v":"Forecasting-oriented evaluation of further matches based on renewed elo-rating-approaches in frame of similarity analyses"}]
[null,"(MY-X team):"]
["miau262","Pitlik László","Specifikációt előkészítő egyeztetések – esettanulmány egy szaklap online megjelenésének előkészítésről",null,null,{"$f":"A45","v":"miau262"},{"$f":"B45","v":"Pitlik László"},":",{"$f":"M45","v":"Specifikációt előkészítő egyeztetések – esettanulmány egy szaklap online megjelenésének előkészítésről"},"  xx  ","https://miau.my-x.hu/miau/262/esettanulmany_online_szaklap.docx",null,{"$f":"C45","v":"Specifikációt előkészítő egyeztetések – esettanulmány egy szaklap online megjelenésének előkészítésről"}]
[null,"(MY-X team):","(Preparation steps of a specification – case study about the online presence of a scientific journal)"]
["miau262","Pitlik László","Hipotézis-tervezés PhD-disszertációkhoz",null,null,{"$f":"A47","v":"miau262"},{"$f":"B47","v":"Pitlik László"},":",{"$f":"M47","v":"Hipotézis-tervezés PhD-disszertációkhoz"},"  xx  ","https://miau.my-x.hu/miau/262/hipotezis_tervezes_phd.docx",null,{"$f":"C47","v":"Hipotézis-tervezés PhD-disszertációkhoz"}]
[null,"(MY-X team):","(Planning of hypotheses for PhD-degrees)"]
["miau262","Pitlik László","Egy teszt-kérdéssor párhuzamos világa - esettanulmány",null,null,{"$f":"A49","v":"miau262"},{"$f":"B49","v":"Pitlik László"},":",{"$f":"M49","v":"Egy teszt-kérdéssor párhuzamos világa - esettanulmány"},"  xx  ","https://miau.my-x.hu/miau/262/igaz-hamis-parhuzamos-ertelmezesek.docx",null,{"$f":"C49","v":"Egy teszt-kérdéssor párhuzamos világa - esettanulmány"}]
[null,"(MY-X team):","(Parallel universes of a test – case study)"]
["miau262","Pitlik László","Szoftver-specifikáció folyamatának lépései – esettanulmány",null,null,{"$f":"A51","v":"miau262"},{"$f":"B51","v":"Pitlik László"},":",{"$f":"M51","v":"Szoftver-specifikáció folyamatának lépései – esettanulmány"},"  xx  ","https://miau.my-x.hu/miau/262/terv_v2.docx",null,{"$f":"C51","v":"Szoftver-specifikáció folyamatának lépései – esettanulmány"}]
[null,"(MY-X team):","(Steps of the specification process in the software development)"]
["miau262","Bérczes Balázs","Versicherungen - Vergleich durch objektive Bewertung",null,null,{"$f":"A53","v":"miau262"},{"$f":"B53","v":"Bérczes Balázs"},":",{"$f":"M53","v":"Versicherungen - Vergleich durch objektive Bewertung"},"  xx  ","https://miau.my-x.hu/miau/262/Versicherung_Vergleich_durch_objektive_Bewertung.docx",null,{"$f":"C53","v":"Versicherungen - Vergleich durch objektive Bewertung"}]
[null,"(KJU):"]
["miau262","Pitlik Dóra","A zenei szépség naív és módszeres értelmezése",null,null,{"$f":"A55","v":"miau262"},{"$f":"B55","v":"Pitlik Dóra"},":",{"$f":"M55","v":"A zenei szépség naív és módszeres értelmezése"},"  xx  ","https://miau.my-x.hu/miau/262/zenei_szepseg_best_of.xlsx",null,{"$f":"C55","v":"A zenei szépség naív és módszeres értelmezése"}]
[null,"(MY-X team):","(Beauty of music - based on naive and optimized approaches)"]
["miau262","Pitlik László, Pitlik László (jun)","Storyboard: QuILT 2.0 – Popular-science-level in exam-situations or it would be possible even more? = AI-based modelling the term of decadence",null,null,{"$f":"A57","v":"miau262"},{"$f":"B57","v":"Pitlik László, Pitlik László (jun)"},":",{"$f":"M57","v":"Storyboard: QuILT 2.0 – Popular-science-level in exam-situations or it would be possible even more? = AI-based modelling the term of decadence"},"  xx  ","https://miau.my-x.hu/miau/quilt/2020/quilt2/launching2020V13/quilt_2_0_final_exam_decadence_index.docx",null,{"$f":"C57","v":"Storyboard: QuILT 2.0 – Popular-science-level in exam-situations or it would be possible even more? = AI-based modelling the term of decadence"}]
[null,"(MY-X team):"]
["miau262","Pitlik László, Pitlik László (jun)","Werkfilm: Decadence-index and sustainability-index for the USA",null,null,{"$f":"A59","v":"miau262"},{"$f":"B59","v":"Pitlik László, Pitlik László (jun)"},":",{"$f":"M59","v":"Werkfilm: Decadence-index and sustainability-index for the USA"},"  xx  ","https://miau.my-x.hu/miau/quilt/2020/quilt2/launching2020V13/part7.html",null,{"$f":"C59","v":"Werkfilm: Decadence-index and sustainability-index for the USA"}]
[null,"(MY-X team):"]
["miau262","Pitlik László, Pitlik László (jun)","Storyboard: QuILT 2.0 – Layer-integration – or Food-Kaleidoscope-based knowledge tests in 2DM-frames",null,null,{"$f":"A61","v":"miau262"},{"$f":"B61","v":"Pitlik László, Pitlik László (jun)"},":",{"$f":"M61","v":"Storyboard: QuILT 2.0 – Layer-integration – or Food-Kaleidoscope-based knowledge tests in 2DM-frames"},"  xx  ","https://miau.my-x.hu/miau/quilt/2020/quilt2/launching2020V06/quilt_2_0_2dm_and_food_kaleidoscope.docx",null,{"$f":"C61","v":"Storyboard: QuILT 2.0 – Layer-integration – or Food-Kaleidoscope-based knowledge tests in 2DM-frames"}]
[null,"(MY-X team):"]
["miau262","Pitlik László, Pitlik László (jun)","Werkfilm: Food-Kaleidoscope-based knowledge-tests in 2DM-frames",null,null,{"$f":"A63","v":"miau262"},{"$f":"B63","v":"Pitlik László, Pitlik László (jun)"},":",{"$f":"M63","v":"Werkfilm: Food-Kaleidoscope-based knowledge-tests in 2DM-frames"},"  xx  ","https://miau.my-x.hu/miau/quilt/2020/quilt2/launching2020V06/part6.html",null,{"$f":"C63","v":"Werkfilm: Food-Kaleidoscope-based knowledge-tests in 2DM-frames"}]
[null,"(MY-X team):"]
["miau263","Pitlik László","Erőből történő megoldási kísérletek megalapozása egy geometriai kihívás kapcsán",null,null,{"$f":"A65","v":"miau263"},{"$f":"B65","v":"Pitlik László"},":",{"$f":"M65","v":"Erőből történő megoldási kísérletek megalapozása egy geometriai kihívás kapcsán"},"  xx  ","https://miau.my-x.hu/bprof/router_geometria_erobol.xlsx",null,{"$f":"C65","v":"Erőből történő megoldási kísérletek megalapozása egy geometriai kihívás kapcsán"}]
[null,"(MY-X team):","(Introduction-experiments of potential solution-alternatives in brute force level for geometrical challenges)"]
["miau263","Pitlik László","Egy közismert IQ-tesztfeladat erőből történő megoldási kísérleteinek megalapozása",null,null,{"$f":"A67","v":"miau263"},{"$f":"B67","v":"Pitlik László"},":",{"$f":"M67","v":"Egy közismert IQ-tesztfeladat erőből történő megoldási kísérleteinek megalapozása"},"  xx  ","https://miau.my-x.hu/bprof/japan_iq_erobol.xlsx",null,{"$f":"C67","v":"Egy közismert IQ-tesztfeladat erőből történő megoldási kísérleteinek megalapozása"}]
[null,"(MY-X team):","(Introduction-experiments of potential solution-alternatives in brute force level)"]
["miau263","Pitlik László, Pitlik László (jun)","A kongruenciáról - oktatási szintek szerint",null,null,{"$f":"A69","v":"miau263"},{"$f":"B69","v":"Pitlik László, Pitlik László (jun)"},":",{"$f":"M69","v":"A kongruenciáról - oktatási szintek szerint"},"  xx  ","https://miau.my-x.hu/bprof/kongruencia_demo.xlsx",null,{"$f":"C69","v":"A kongruenciáról - oktatási szintek szerint"}]
[null,"(MY-X team):","(About the phenomenon of the congruence - in different levels of the education canon)"]
["miau263","Pitlik László, Rikk János","Tantárgy-fúziós komplex feladat-variánsok – 2020/2021 őszi (1.) félév – BPROF nappali/levelező",null,null,{"$f":"A71","v":"miau263"},{"$f":"B71","v":"Pitlik László, Rikk János"},":",{"$f":"M71","v":"Tantárgy-fúziós komplex feladat-variánsok – 2020/2021 őszi (1.) félév – BPROF nappali/levelező"},"  xx  ","https://miau.my-x.hu/bprof/bprof20202021osz_v3.docx",null,{"$f":"C71","v":"Tantárgy-fúziós komplex feladat-variánsok – 2020/2021 őszi (1.) félév – BPROF nappali/levelező"}]
[null,"(MY-X team):","(BPROF education strategy and operative parameters with examples)"]
["miau263","Pitlik László","Universal classification method involving explorative model-bubbles",null,null,{"$f":"A73","v":"miau263"},{"$f":"B73","v":"Pitlik László"},":",{"$f":"M73","v":"Universal classification method involving explorative model-bubbles"},"  xx  ","https://miau.my-x.hu/miau/263/classification_tool.xlsx",null,{"$f":"C73","v":"Universal classification method involving explorative model-bubbles"}]
[null,"(MY-X team):"]
["miau263","Pitlik László, Márta Attila","Robot-turisztikai-tanácsadó, avagy az emberi preferencia-hiány automatizált kezelése",null,null,{"$f":"A75","v":"miau263"},{"$f":"B75","v":"Pitlik László, Márta Attila"},":",{"$f":"M75","v":"Robot-turisztikai-tanácsadó, avagy az emberi preferencia-hiány automatizált kezelése"},"  xx  ","https://miau.my-x.hu/miau/263/bank-var-13.xlsx",null,{"$f":"C75","v":"Robot-turisztikai-tanácsadó, avagy az emberi preferencia-hiány automatizált kezelése"}]
[null,"(MY-X team):","(Robot expert for touristic planning or how to decide without human preferences)"]
["miau263","Barta Gergő, Pitlik László","Hipotézis-tervezés PhD-disszertációkhoz - Konzisztens gépi tanuló modellezés beltéri felhasználói lokalizáció meghatározásának pontosítására",null,null,{"$f":"A77","v":"miau263"},{"$f":"B77","v":"Barta Gergő, Pitlik László"},":",{"$f":"M77","v":"Hipotézis-tervezés PhD-disszertációkhoz - Konzisztens gépi tanuló modellezés beltéri felhasználói lokalizáció meghatározásának pontosítására"},"  xx  ","https://miau.my-x.hu/miau/263/Barta_Pitlik_final_no_remarks.docx",null,{"$f":"C77","v":"Hipotézis-tervezés PhD-disszertációkhoz - Konzisztens gépi tanuló modellezés beltéri felhasználói lokalizáció meghatározásának pontosítására"}]
[null,"(My-X team):","(Planning of hypotheses for PhD-degrees II.)"]
["miau264","Pitlik László","Az autodidakta/kritikus tanulás mintázatai – III. rész",null,null,{"$f":"A79","v":"miau264"},{"$f":"B79","v":"Pitlik László"},":",{"$f":"M79","v":"Az autodidakta/kritikus tanulás mintázatai – III. rész"},"  xx  ","https://miau.my-x.hu/bprof/autodidakta_kritikus_tanulas_mintazatai_p3.docx",null,{"$f":"C79","v":"Az autodidakta/kritikus tanulás mintázatai – III. rész"}]
[null,"(MY-X team):","(Patterns of the autodidactic/critic-oriented learning – Part III)"]
["miau264","Pitlik László","Az autodidakta/kritikus tanulás mintázatai – II. rész",null,null,{"$f":"A81","v":"miau264"},{"$f":"B81","v":"Pitlik László"},":",{"$f":"M81","v":"Az autodidakta/kritikus tanulás mintázatai – II. rész"},"  xx  ","https://miau.my-x.hu/bprof/autodidakta_kritikus_tanulas_mintazatai_p2.docx",null,{"$f":"C81","v":"Az autodidakta/kritikus tanulás mintázatai – II. rész"}]
[null,"(MY-X team):","(Patterns of the autodidactic/critic-oriented learning – Part II)"]
["miau264","Pitlik László","Az autodidakta/kritikus tanulás mintázatai – I. rész",null,null,{"$f":"A83","v":"miau264"},{"$f":"B83","v":"Pitlik László"},":",{"$f":"M83","v":"Az autodidakta/kritikus tanulás mintázatai – I. rész"},"  xx  ","https://miau.my-x.hu/bprof/autodidakta_kritikus_tanulas_mintazatai.docx",null,{"$f":"C83","v":"Az autodidakta/kritikus tanulás mintázatai – I. rész"}]
[null,"(MY-X team):","(Patterns of the autodidactic/critic-oriented learning – Part I)"]
["miau264","Pitlik Marcell","Bevezetés a képfeldolgozásba - autós forgalomszámlálás",null,null,{"$f":"A85","v":"miau264"},{"$f":"B85","v":"Pitlik Marcell"},":",{"$f":"M85","v":"Bevezetés a képfeldolgozásba - autós forgalomszámlálás"},"  xx  ","https://miau.my-x.hu/miau/264/kepfeldolgozas/hf_ZUBYPT.pdf",null,{"$f":"C85","v":"Bevezetés a képfeldolgozásba - autós forgalomszámlálás"}]
[null,"(BME):","(Introduction into the image processing - counting traffic of vehicles)"]
["miau264","Pitlik László, Pitlik Marcell, Pitlik Mátyás, Pitlik László (jun), Dávid Roland, Lovass László, Tamás Krisztina, Mórucz Norbert","EEG-azdálkodás avagy Fenntarthatóság és Pillangó-hatások",null,null,{"$f":"A87","v":"miau264"},{"$f":"B87","v":"Pitlik László, Pitlik Marcell, Pitlik Mátyás, Pitlik László (jun), Dávid Roland, Lovass László, Tamás Krisztina, Mórucz Norbert"},":",{"$f":"M87","v":"EEG-azdálkodás avagy Fenntarthatóság és Pillangó-hatások"},"  xx  ","https://miau.my-x.hu/miau/264/PL_DR_sustain butterfly hun.pdf",null,{"$f":"C87","v":"EEG-azdálkodás avagy Fenntarthatóság és Pillangó-hatások"}]
[null,"(MY-X Team, INNORIA Kutatási és Fejlesztési Kft., 4025 Debrecen, Hungary, Team Flow Team, INNORIA Kutatási és Fejlesztési Kft., 4025 Debrecen, Hungary, Szolgáltatási és Tudásgazdasági Kutató és Fejlesztő Központ Kodolányi János Egyetem ):"]
["miau264","Kóródi Gyula, Pitlik László, Rikk János","A circaseptan ritmus a COVID-19 megbetegedések és halálesetek kapcsán az adatvagyon-gazdálkodás minőségbiztosítása keretében",null,null,{"$f":"A89","v":"miau264"},{"$f":"B89","v":"Kóródi Gyula, Pitlik László, Rikk János"},":",{"$f":"M89","v":"(Detecting the circaseptan pattern in COVID-19 infections and deaths for quality management of health-related data assets)"},"  xx  ","https://miau.my-x.hu/miau/264/kb7.pdf",null,{"$f":"C90","v":"(Detecting the circaseptan pattern in COVID-19 infections and deaths for quality management of health-related data assets)"}]
[null,"(NKE/KJE/KJE):","(Detecting the circaseptan pattern in COVID-19 infections and deaths for quality management of health-related data assets)"]

{"sheet":"Munka1","index":14,"n_rows":116,"n_cols":7,"rows_kept":116,"cut":false,"hidden":false,"merged":[[59,5,60,5],[59,6,60,6],[61,5,62,5],[61,6,62,6],[63,5,64,5],[63,6,64,6],[53,5,54,5],[53,6,54,6],[55,5,56,5],[55,6,56,6],[57,5,58,5],[57,6,58,6],[45,6,46,6],[47,6,48,6],[49,5,50,5],[49,6,50,6],[51,5,52,5],[51,6,52,6],[35,6,36,6],[37,6,38,6],[39,6,40,6],[41,6,42,6],[43,6,44,6],[41,1,42,1],[41,2,42,2],[43,2,44,2],[45,2,46,2],[47,1,48,1],[47,2,48,2],[35,1,36,1],[35,2,36,2],[37,1,38,1],[37,2,38,2],[39,1,40,1],[39,2,40,2],[24,2,25,2],[26,2,27,2],[28,2,29,2],[12,2,13,2],[14,2,15,2],[16,2,17,2],[18,2,19,2],[20,2,21,2],[22,2,23,2],[10,2,11,2],[0,2,1,2],[2,2,3,2],[4,2,5,2],[6,2,7,2],[8,2,9,2],[87,2,88,2],[89,2,90,2],[91,2,92,2],[93,2,94,2],[95,2,96,2],[97,2,98,2],[99,2,100,2],[87,5,88,5],[87,6,88,6],[89,5,90,5],[89,6,90,6],[91,5,92,5],[91,6,92,6],[93,5,94,5],[93,6,94,6],[95,5,96,5],[95,6,96,6],[97,5,98,5],[97,6,98,6],[99,5,100,5],[99,6,100,6],[107,5,108,5],[107,6,108,6],[109,5,110,5],[109,6,110,6],[101,5,102,5],[101,6,102,6],[103,5,104,5],[103,6,104,6],[105,5,106,5],[105,6,106,6]]}
["Pitlik Mátyás, Pitlik László, Pitlik Marcell","Érme-választás többrétegű optimalizálás keretében","(+)"]
["(MY-X team):","(Numismatics and similarity analysis)"]
["Pitlik Mátyás","A 2DM-játék tervezési (vak) nézete","(+)"]
["(MY-X team):","(Blind layer in the 2DM gamification frame)"]
["Pitlik László","MIAÚ aktivitások nyomai hazai PhD-folyamatokban","(+)"]
["(MY-X team):","(PhD-activities in Hungary with MIAU-references)"]
["Pitlik László, Pitlik Marcell, Pitlik László (jun), Pitlik Mátyás","Közlekedés- és környezetszimulátor működési helyességének tesztelése","(+)"]
["(MY-X team):","(Testing of robustness of a traffic/environment-simulator)"]
["Pitlik Mátyás, Pitlik László, Pitlik Marcell, Pitlik László (jun)","Valós kémia-feladat 2DM keretrendszerbe adaptálva","(+)"]
["(MY-X team):","(2DM-game about useful knowledge in chemistry)"]
["Pitlik László, Pitlik Marcell, Pitlik Mátyás","Kimutatásvarázslás-láncok és klasszikus programkódok összevetése","(+)"]
["(MY-X team):","(Comparing chained pivot-reports and classic sources codes)"]
["Pitlik László","Hasonlóságelemzés optimum hatásainak kiváltása COCO-STD-modellekkel","(+)"]
["(MY-X team):","(Optimum effects generated in COCO-STD-modells based on similarity analyses)"]
["Pitlik László, Pitlik Marcell, Pitlik Mátyás, Pitlik László (jun)","Titkosírás haladóknak III.","(+)"]
["(MY-X team):","(Cipher - exercises for advanced users - Part III)"]
["Pitlik László, Pitlik Marcell, Pitlik Mátyás, Pitlik László (jun)","Titkosírás haladóknak II.","(+)"]
["(MY-X team):","(Cipher - exercises for advanced users - Part II)"]
["Pitlik László, Pitlik Marcell, Pitlik Mátyás, Pitlik László (jun)","Titkosírás haladóknak I.","(+)"]
["(MY-X team):","(Cipher - exercises for advanced users - Part I)"]
["Pitlik László, Pitlik Marcell","SUDOKU-algoritmusok összevetése, avagy SOLVER vs. egyedi kód","(+)"]
["(MY-X team):","(Comparing of SUDOKU-algorithms or SOLVER vs. customized source code)"]
["Pitlik Mátyás, Pitlik Marcell, Pitlik László","Hasonlóságelemzés java-script-alapon","(+)"]
["(MY-X team):","(Similarity analyses based on java-script)"]
["Pitlik László, Pitlik Marcell","Hasonlóságelemzés macro-alapon","(+)"]
["(MY-X team):","(Similarity analyses based on Excel-macros)"]
["Pitlik László, Pitlik Marcell","Az Excel-macro tanítás/tanulás tapasztalatai","(+)"]
["(MY-X team):","(Experiences of teaching/learning of Excel-macros)"]
["Pitlik László, Pitlik Marcell","Típusproblémák Excel-alapú vállalati adatvagyonok kezelésekor","(+)"]
["(MY-X team):","(Typical problems in Excel-based data asset management)"]
[]
[]
[]
["MIAU No. = 258 *** Év/Year = 2020 *** Hónap/Month = február",null,null,null,"MIAU No. = 257 *** Év/Year = 2020 *** Hónap/Month = január"]
[]
["Pitlik László, Pitlik Marcell","Solver-based problem-handling","(+)",null,"Hidvégi Attila","Macro-alapú komplex árkalkulátor","(+)"]
["(MY-X team):",null,null,null,"(KJE):","(Macro-based prize-calculations)"]
["Pitlik László, Pitlik Marcell","Objective evaluation of Student’s publications based on Excel-Solver and their comparable log-data","(+)",null,"Benyó Balázs, Sikur Lajos","Budaörs területére igényelhető behajtási engedély","(+)"]
["(MY-X team):",null,null,null,"(KJE):","(Entry permits for Budaörs)"]
["Pitlik László, Pitlik Marcell, Pitlik Mátyás","How to design a graphical expert system with teaching/learning effects?","(+)",null,"Selmeczi Bernadett, Fixl Anikó, Bédi Szilvia","Ellenőrző kalkulátor egy biztosító társaság kötelező gépjármű felelősségbiztosítási termékére","(+)"]
["(MY-X team):",null,null,null,"(KJE):","(Expert system for prizing car insurance scenarios)"]
["Pitlik László, Pitlik Marcell","Treasure hunting effects in the gamification of higher education courses","(+)",null,"Anonim Hallgató","Bankfiókok teljesítményének összehasonlítása naiv és Solver-alapú megoldással","(+)"]
["(MY-X team):",null,null,null,"(KJE):","(Comparing performances of financial institutions based on naive and solver-driven solutions)"]
["Pitlik László, Pitlik Marcell","Tudomány(területek)ről tudományosan, avagy a robotizált érdekvédelem mesterséges intelligencia alapjai","(+)",null,"Forgács Barbara, Molnár Julianna","Külföldről behozott használt járművek forgalomba helyezésének adatbázisa (belső felhasználásra)","(+)"]
["(MY-X team):","(Thinking about the science in a scientific way, or robotized representation of interests based on artificial intelligence)",null,null,"(KJE):","(Register of used vehicles imported from abroad -specification for internal use in an authority)"]
["Pitlik László, Pitlik Marcell","A hasonlóság fogalmának szerepe a kommunikáció- és médiatudományokban","(+)",null,"OSZTHEIMER NORBERT, BÖRÖCZ ZSOLT, KOCSIS PÉTER","BANKFÜGGETLEN HITELKALKULÁTOR ESZKÖZ MIKRO-ÉS KISVÁLLALKOZÁSOK SZÁMÁRA, FORGÓESZKÖZ HITEL ÉS BERUHÁZÁSI HITEL KALKULÁLÁSÁRA","(+)"]
["(MY-X team):","(The role of the term of similarity in the communication and media sciences)",null,null,"(KJE):","(INDEPENDENT BORROWING CALCULATOR FOR MICRO- AND SMALL ENTERPRISES IN CASE OF CURRENT ASSET LOANS AND INVESTMENT LOANS)"]
["Pitlik László, Pitlik Marcell, Pitlik Mátyás","Pillangó-effektusok fellépése idősorok hasonlóságelemzésre alapozó értelmezésekor (Butterfly-effects in similarity analyses of time series)","(+)",null,"Kumorné Pál Angéla","Értékpapír ajánlási lista készítése MIFID kérdőív mellett","(+)"]
["(MY-X team):",null,null,null,"(KJE):","(Recommendation of shares/securities based on a MIFID questionnaire)"]
[null,null,null,null,"Pitlik László, Pitlik Marcell, Pitlik Mátyás, Pitlik László (jun), Pitlik Dóra","EXCEL-alapismeretek - egy tananyag-fejlesztési kísérlet eredményei","(+)"]
["MIAU No. = 257 ... (MIAU No. = 258) ... MIAU No. = 259",null,null,null,"(MY-X team):"]
["miau.my-",null,null,null,"Pitlik László, Pitlik Marcell, Pitlik Mátyás, Pitlik László (jun), Pitlik Dóra","WORD-alapismeretek - egy tananyag-fejlesztési kísérlet eredményei","(+)"]
[null,null,null,null,"(MY-X team):"]
[null,null,null,null,"Pitlik László, Pitlik Marcell, Pitlik Mátyás, Pitlik László (jun), Pitlik Dóra","PPT-alapismeretek - egy tananyag-fejlesztési kísérlet eredményei","(+)"]
[null,null,null,null,"(MY-X team):"]
[null,null,null,null,"Pitlik László, Pitlik Marcell, Pitlik Mátyás, Pitlik László (jun), Pitlik Dóra","Internet-alapismeretek - egy tananyag-fejlesztési kísérlet eredményei","(+)"]
[null,null,null,null,"(MY-X team):"]
[null,null,null,null,"Pitlik Mátyás","The best location for a new monitoring station with animated effects","(+)"]
[null,null,null,null,"(MY-X team):"]
[null,null,null,null,"Pitlik László, Pitlik Marcell","Solving repetitive tasks without macro in Excel","(+)"]
[null,null,null,null,"(MY-X team):"]
[null,null,null,null,"Pitlik László, Pitlik Marcell","Riddle-detection with similarity analyses and/or Solver-based modelling","(+)"]
[null,null,null,null,"(MY-X team):"]
[null,null,null,null,"Bálint Biró, László Pitlik","The evaluation of exogenous ligands cross-reactivity to a 7TM receptor based on online artificial intelligence engines","(+)"]
[null,null,null,null,"(ABC / KJE (MY-X team)):"]
[]
[null,null,null,null,"MIAU No. = 256 ... (MIAU No. = 257) ... MIAU No. = 258"]
[null,null,null,null,"miau.my-"]
[]
[]
[]
[]
[]
[]
[]
[]
[]
[]
[]
[]
[]
[]
[]
[]
[]
["MIAU No. = 259 *** Év/Year = 2020 *** Hónap/Month = március",null,null,null,"MIAU No. = 260 *** Év/Year = 2020 *** Hónap/Month = áprilils"]
[]
["Pitlik László, Pitlik Marcell","Intézményi személetváltási folyamat proaktív előkészítése az IT-szakértők által","(+)",null,"Pitlik László, Pitlik László (jun)","Werkfilm: From \"how to produce an OAM behind an article\" to \"the article/case-study/publication about H1N1\"","(+)"]
["(MY-X team):","(Pro-active preparation of shifting paradigms in the higher education based on a status report of IT-experts)",null,null,"(MY-X team):"]
["Pitlik László, Pitlik Marcell","Adatbázis-orientált adatvagyon-gazdálkodás vs. spontán projektmenedzsment","(+)",null,"Pitlik László, Pitlik László (jun)","Werkfilm: The Robot-Historian & The Cold-War","(+)"]
["(MY-X team):","(Data-base oriented data asset management vs. spontaneous project management)",null,null,"(MY-X team):"]
["Pitlik Dóra","Az online oktatással kapcsolatos kérdések diákok és tanárok között","(+)",null,"Pitlik László, Pitlik László (jun)","Werkfilm: Teach others - based on big-data and solver-oriented AI - Food-Kaleidoscope - The Case Congo","(+)"]
["(MY-X team):","(Online communication between Students and Teachers in frame of the distance education)",null,null,"(MY-X team):"]
["Pitlik László","RIS-alapú adatintegrációk: MIAÚ-MATARKA-MTMT (hangosfilm)","(+)",null,"Pitlik László, Pitlik László (jun)","Werkfilm: Exam-situations based on big-data and solver-oriented AI","(+)"]
["(KJE):","(RIS-based integration of data assets - the Case of MIAU – MATARKA – MTMT - a tutorial-like presentation)",null,null,"(MY-X team):"]
["Pitlik László","Rendszertervezési, specifikáció-készítési, projekt-generálási példák","(+)",null,"Pitlik László, Pitlik László (jun)","Storyboard: QuILT 2.0, or the new area of the asynchronous distance education/learning - the case of H1N1","(+)"]
["(KJE):","(Case study for system-planning, software-specification, project- generation)",null,null,"(MY-X team):"]
["Anonim Szerzők","Az informatika története","(+)",null,"Pitlik László, Pitlik László (jun)","Storyboard: QuILT 2.0 – roundtable of avatars in the asynchronous distance education/learning – the case \"Cold-War\" from a Robot-Historian with a positive Turing-test","(+)"]
["(Premontrei Iskolaközpont):","(History of the informatics)",null,null,"(MY-X team):"]
["Pitlik László, Pitlik Marcell","Információs rendszerek tervezésére való felkészülés IT-laikusok számára","(+)",null,"Pitlik László, Pitlik László (jun)","Storyboard: QuILT 2.0 – Teach-others with avatars in frame of an asynchronous distance education/learning – the case \"Food-Kaleidoscope\"","(+)"]
["(MY-X team):","(Self-preparation of lay persons concerning IT competences in case of planning information systems)",null,null,"(MY-X team):"]
[null,null,null,null,"Pitlik László, Pitlik László (jun)","Storyboard: QuILT 2.0 – Exam versions in frame of an asynchronous distance education/learning – the 21st century is here","(+)"]
["MIAU No. = 258 ... (MIAU No. = 259) ... MIAU No. = 260",null,null,null,"(MY-X team):"]
[null,null,null,null,"Pitlik László","Food-Kaleidoscope - The Case of Hungary","(+)"]
[null,null,null,null,"(MY-X team):"]
[null,null,null,null,"Pitlik László","Turing-test for a Robot-Historian (or about the force fields of the Cold-War based on big-data and AI)","(+)"]
[null,null,null,null,"(MY-X team):"]
[null,null,null,null,"Pitlik László","H1N1 – SCANDAL? (proving former suspicions - based on an artificial-intelligence- and a big-data-driven approach)","(+)"]
[null,null,null,null,"(MY-X team):"]
[null,null,null,null,"Pitlik László, Pitlik Marcell","Sovereignty-oriented/PLA-based future of the (higher) education or case study how to measure the future-readiness?!","(+)"]
[null,null,null,null,"(MY-X team):"]
[]
[null,null,null,null,"MIAU No. = 259 ... (MIAU No. = 260) ... MIAU No. = 261"]
[null,null,null,null,"miau.my-x.hu"]
[]
[null,null,null,null,"myxfree.tool"]

{"sheet":"2020-05060708","index":15,"n_rows":43,"n_cols":15,"rows_kept":43,"cut":false,"hidden":false,"merged":[[12,10,13,10],[14,10,15,10],[2,14,3,14],[4,14,5,14],[6,14,7,14],[8,14,9,14],[10,13,11,13],[10,14,11,14],[12,14,13,14],[24,5,25,5],[24,6,25,6],[26,5,27,5],[26,6,27,6],[2,10,3,10],[4,10,5,10],[6,10,7,10],[8,10,9,10],[10,9,11,9],[10,10,11,10],[16,5,17,5],[16,6,17,6],[18,6,19,6],[20,5,21,5],[20,6,21,6],[22,5,23,5],[22,6,23,6],[38,1,39,1],[38,2,39,2],[2,6,3,6],[4,6,5,6],[6,5,7,5],[6,6,7,6],[8,6,9,6],[10,6,11,6],[12,6,13,6],[14,6,15,6],[32,1,33,1],[32,2,33,2],[34,1,35,1],[34,2,35,2],[36,1,37,1],[36,2,37,2],[26,1,27,1],[26,2,27,2],[28,1,29,1],[28,2,29,2],[30,1,31,1],[30,2,31,2],[20,1,21,1],[20,2,21,2],[22,1,23,1],[22,2,23,2],[24,1,25,1],[24,2,25,2],[14,1,15,1],[14,2,15,2],[16,1,17,1],[16,2,17,2],[18,1,19,1],[18,2,19,2],[8,1,9,1],[8,2,9,2],[10,1,11,1],[10,2,11,2],[12,1,13,1],[12,2,13,2],[2,1,3,1],[2,2,3,2],[4,1,5,1],[4,2,5,2],[6,1,7,1],[6,2,7,2]]}
["MIAU No. = 261 *** Év/Year = 2020 *** Hónap/Month = május",null,null,null,"MIAU No. = 262 *** Év/Year = 2020 *** Hónap/Month = június",null,null,null,"MIAU No. = 263 *** Év/Year = 2020 *** Hónap/Month = július",null,null,null,"MIAU No. = 264 *** Év/Year = 2020 *** Hónap/Month = augusztus"]
[]
["Amine Sahraouardi","Beliefs about the Use of Instagram: An Exploratory Study - How to model Instagram characteristics based on country profiles","(+)",null,"Pitlik László, Pitlik László (jun)","Harmonikus közép számítása Solver-rel","(+)",null,"Pitlik László","Erőből történő megoldási kísérletek megalapozása egy geometriai kihívás kapcsán","(+)",null,"Pitlik László","Az autodidakta/kritikus tanulás mintázatai – III. rész","(+)"]
["(KJU):",null,null,null,"(MY-X team):","(Calculation of harmonic means with Solver)",null,null,"(MY-X team):","(Introduction-experiments of potential solution-alternatives in brute force level for geometrical challenges)",null,null,"(MY-X team):","(Patterns of the autodidactic/critic-oriented learning – Part III)"]
["Anna Laura Bódis, Luca Klára Bodolay","The learning success of different didactical actions","(+)",null,"Pitlik László","Hiányzó adatok becslésének láncreakciói","(+)",null,"Pitlik László","Egy közismert IQ-tesztfeladat erőből történő megoldási kísérleteinek megalapozása","(+)",null,"Pitlik László","Az autodidakta/kritikus tanulás mintázatai – II. rész","(+)"]
["(KJU):",null,null,null,"(MY-X team):","(Estimation of missing values in frame of chained processes)",null,null,"(MY-X team):","(Introduction-experiments of potential solution-alternatives in brute force level)",null,null,"(MY-X team):","(Patterns of the autodidactic/critic-oriented learning – Part II)"]
["Pavel Vovchik","Russian Economy between 1992-1998 or preferred terms for political communication/marketing","(+)",null,"Pitlik László","Forecasting-oriented evaluation of further matches based on renewed elo-rating-approaches in frame of similarity analyses","(+)",null,"Pitlik László, Pitlik László (jun)","A kongruenciáról - oktatási szintek szerint","(+)",null,"Pitlik László","Az autodidakta/kritikus tanulás mintázatai – I. rész","(+)"]
["(KJU):",null,null,null,"(MY-X team):",null,null,null,"(MY-X team):","(About the phenomenon of the congruence - in different levels of the education canon)",null,null,"(MY-X team):","(Patterns of the autodidactic/critic-oriented learning – Part I)"]
["Dániel FÜLÖP","Hungarian Economy between 2010-2020 or preferred terms for political communication/marketing","(+)",null,"Pitlik László","Specifikációt előkészítő egyeztetések – esettanulmány egy szaklap online megjelenésének előkészítésről","(+)",null,"Pitlik László, Rikk János","Tantárgy-fúziós komplex feladat-variánsok – 2020/2021 őszi (1.) félév – BPROF nappali/levelező","(+)",null,"Pitlik Marcell","Bevezetés a képfeldolgozásba - autós forgalomszámlálás","(+)"]
["(KJU):",null,null,null,"(MY-X team):","(Preparation steps of a specification – case study about the online presence of a scientific journal)",null,null,"(MY-X team):","(BPROF education strategy and operative parameters with examples)",null,null,"(BME):","(Introduction into the image processing - counting traffic of vehicles)"]
["Aqib Masood, Navid Babaei","Management is the best way to increase productivity - or how to prove a hypothesis based on big-data and solver-oriented thinking experiments","(+)",null,"Pitlik László","Hipotézis-tervezés PhD-disszertációkhoz","(+)",null,"Pitlik László","Universal classification method involving explorative model-bubbles","(+)",null,"Pitlik László, Pitlik Marcell, Pitlik Mátyás, Pitlik László (jun), Dávid Roland, Lovass László, Tamás Krisztina, Mórucz Norbert","EEG-azdálkodás avagy Fenntarthatóság és Pillangó-hatások","(+)"]
["(KJU):",null,null,null,"(MY-X team):","(Planning of hypotheses for PhD-degrees)",null,null,"(MY-X team):",null,null,null,"(MY-X Team, INNORIA Kutatási és Fejlesztési Kft., 4025 Debrecen, Hungary, Team Flow Team, INNORIA Kutatási és Fejlesztési Kft., 4025 Debrecen, Hungary, Szolgáltatási és Tudásgazdasági Kutató és Fejlesztő Központ Kodolányi János Egyetem ):"]
["Raj Md Saidul Islam","How to select the best location for a business activity?","(+)",null,"Pitlik László","Egy teszt-kérdéssor párhuzamos világa - esettanulmány","(+)",null,"Pitlik László, Márta Attila","Robot-turisztikai-tanácsadó, avagy az emberi preferencia-hiány automatizált kezelése","(+)",null,"Kóródi Gyula, Pitlik László, Rikk János","A circaseptan ritmus a COVID-19 megbetegedések és halálesetek kapcsán az adatvagyon-gazdálkodás minőségbiztosítása keretében","(+)"]
["(KJU):",null,null,null,"(MY-X team):","(Parallel universes of a test – case study)",null,null,"(MY-X team):","(Robot expert for touristic planning or how to decide without human preferences)",null,null,"(NKE/KJE/KJE):","(Detecting the circaseptan pattern in COVID-19 infections and deaths for quality management of health-related data assets)"]
["Khalid Hafiz Waqar","Transnational Cooperation for COVID19 Control and Prevention or comparative estimation of the quality of health systems","(+)",null,"Pitlik László","Szoftver-specifikáció folyamatának lépései – esettanulmány","(+)",null,"Barta Gergő, Pitlik László","Hipotézis-tervezés PhD-disszertációkhoz - Konzisztens gépi tanuló modellezés beltéri felhasználói lokalizáció meghatározásának pontosítására","(+)"]
["(KJU):",null,null,null,"(MY-X team):","(Steps of the specification process in the software development)",null,null,"(My-X team):","(Planning of hypotheses for PhD-degrees II.)",null,null,"MIAU No. = 263 ... (MIAU No. = 264) ... MIAU No. = 265"]
["Kitti Visnyei","GAME DEVELOPMENT APPROACHES - Handling the freedom by players in gamification processes","(+)",null,"Bérczes Balázs","Versicherungen - Vergleich durch objektive Bewertung","(+)",null,null,null,null,null,"miau.my-"]
["(KJU):",null,null,null,"(KJU):",null,null,null,"MIAU No. = 262 ... (MIAU No. = 263) ... MIAU No. = 264"]
["Sára Várkonyi","Coronavirus publication - the best-country-view","(+)",null,"Pitlik Dóra","A zenei szépség naív és módszeres értelmezése","(+)"]
["(KJU):",null,null,null,"(MY-X team):","(Beauty of music - based on naive and optimized approaches)"]
["Aidana Sanbayeva","Eurovision - event tourism (festivals) as an attractor","(+)",null,"Pitlik László, Pitlik László (jun)","Storyboard: QuILT 2.0 – Popular-science-level in exam-situations or it would be possible even more? = AI-based modelling the term of decadence","(+)"]
["(KJU):",null,null,null,"(MY-X team):"]
["Nadeem Azhar","Pizza to go – A Best Pizza Award – based on a robot judge","(+)",null,"Pitlik László, Pitlik László (jun)","Werkfilm: Decadence-index and sustainability-index for the USA","(+)"]
["(KJU):",null,null,null,"(MY-X team):"]
["LUBO NGOIE JUNIOR","Food-Kaleidoscope – The Case of Belgium","(+)",null,"Pitlik László, Pitlik László (jun)","Storyboard: QuILT 2.0 – Layer-integration – or Food-Kaleidoscope-based knowledge tests in 2DM-frames","(+)"]
["(KJU):",null,null,null,"(MY-X team):"]
["Yama Abdiani","Food-Kaleidoscope – The Case of Zambia","(+)",null,"Pitlik László, Pitlik László (jun)","Werkfilm: Food-Kaleidoscope-based knowledge-tests in 2DM-frames","(+)"]
["(KJU):",null,null,null,"(MY-X team):"]
["Shahroze Shahroze","RANKING OF COUNTRIES CONCERNING AI-READINESS/RELATEDNESS OR IMPACTS OF ARTIFICIAL INTELLIGENCE","(+)"]
["(KJU):",null,null,null,"MIAU No. = 261 ... (MIAU No. = 262) ... MIAU No. = 263"]
["Nazir Nelson","Food-Kaleidoscope – The Case of Pakistan","(+)"]
["(KJU):"]
["Kitoto Ngoie Jennifer","Food-Kaleidoscope – The Case of Congo","(+)"]
["(KJU):"]
["Dominik Riczó","Europe between 1960 and 1990 or what could derive a robot-historian about the second half of the cold war based on big-data?","(+)"]
["(KJU):"]
["Syed Nabeel, Saad Muhammad Adil","2D MATRIX GAME","(+)"]
["(KJU):"]
["Nadja Oelmüllers","H1N1","(+)"]
["(KJU):"]
[]
["MIAU No. = 260 ... (MIAU No. = 261) ... MIAU No. = 262"]
["miau.m"]

{"sheet":"utolso","index":16,"n_rows":23,"n_cols":2,"rows_kept":23,"cut":false,"hidden":false,"merged":[]}
[null,"***"]
["Magyar Internetes Agrárinformatikai Újság (MIAÚ),2020,23,259"]
["miau259","Pitlik László-Pitlik Marcell:Intézményi személetváltási folyamat proaktív előkészítése az IT-szakértők által  xx  https://miau.my-x.hu/miau/quilt/2020/proaktiv_it.docx"]
["miau259","Pitlik László-Pitlik Marcell:Adatbázis-orientált adatvagyon-gazdálkodás vs. spontán projektmenedzsment  xx  https://miau.my-x.hu/miau/259/afterkickoff.docx"]
["miau259","Pitlik Dóra:Az online oktatással kapcsolatos kérdések diákok és tanárok között  xx  https://miau.my-x.hu/miau/259/tavoktatas_esethalmaz1.docx"]
["miau259","Pitlik László:RIS-alapú adatintegrációk: MIAÚ-MATARKA-MTMT (hangosfilm)  xx  https://miau.my-x.hu/miau/259/RIS.docx"]
["miau259","Pitlik László:Rendszertervezési, specifikáció-készítési, projekt-generálási példák  xx  https://miau.my-x.hu/miau/259/Rendszertervezes_specifikacio_projekt-generalas_demo.docx"]
["miau259","Anonim Szerzők:Az informatika története  xx  https://miau.my-x.hu/miau/259/tortenet_ppt/Az_informatika_tortenete.pdf"]
["miau259","Pitlik László-Pitlik Marcell:Információs rendszerek tervezésére való felkészülés IT-laikusok számára  xx  https://miau.my-x.hu/miau/259/erp_special.docx"]
["Magyar Internetes Agrárinformatikai Újság (MIAÚ),2020,23,260"]
["miau260","Pitlik László-Pitlik László, ifj.:Werkfilm: From \"how to produce an OAM behind an article\" to \"the article/case-study/publication about H1N1\"  xx  https://miau.my-x.hu/miau/quilt/2020/quilt2/launching2020III25/part0.html"]
["miau260","Pitlik László-Pitlik László, ifj.:Werkfilm: The Robot-Historian & The Cold-War  xx  https://miau.my-x.hu/miau/quilt/2020/quilt2/launching2020IV15/part3.html"]
["miau260","Pitlik László-Pitlik László, ifj.:Werkfilm: Teach others - based on big-data and solver-oriented AI - Food-Kaleidoscope - The Case Congo  xx  https://miau.my-x.hu/miau/quilt/2020/quilt2/launching2020IV22/part4.html"]
["miau260","Pitlik László-Pitlik László, ifj.:Werkfilm: Exam-situations based on big-data and solver-oriented AI  xx  https://miau.my-x.hu/miau/quilt/2020/quilt2/launching2020IV29/part5.html"]
["miau260","Pitlik László-Pitlik László, ifj.:Storyboard: QuILT 2.0, or the new area of the asynchronous distance education/learning - the case of H1N1  xx  https://miau.my-x.hu/miau/quilt/2020/quilt2/launching2020IV08/quilt_2_0.docx"]
["miau260","Pitlik László-Pitlik László, ifj.:Storyboard: QuILT 2.0 – roundtable of avatars in the asynchronous distance education/learning – the case \"Cold-War\" from a Robot-Historian with a positive Turing-test  xx  https://miau.my-x.hu/miau/quilt/2020/quilt2/launching2020IV15/quilt_2_0_round_table_1_0.docx"]
["miau260","Pitlik László-Pitlik László, ifj.:Storyboard: QuILT 2.0 – Teach-others with avatars in frame of an asynchronous distance education/learning – the case \"Food-Kaleidoscope\"  xx  https://miau.my-x.hu/miau/quilt/2020/quilt2/launching2020IV22/quilt_2_0_teach_others_1_0.docx"]
["miau260","Pitlik László-Pitlik László, ifj.:Storyboard: QuILT 2.0 – Exam versions in frame of an asynchronous distance education/learning – the 21st century is here  xx  https://miau.my-x.hu/miau/quilt/2020/quilt2/launching2020IV29/quilt_2_0_exam_version_xxi_century.docx"]
["miau260","Pitlik László:Food-Kaleidoscope - The Case of Hungary  xx  https://miau.my-x.hu/miau/quilt/2020/quilt2/launching2020IV22/food_kaleidoscope.docx"]
["miau260","Pitlik László:Turing-test for a Robot-Historian (or about the force fields of the Cold-War based on big-data and AI)  xx  https://miau.my-x.hu/miau/quilt/2020/quilt2/launching2020IV15/turing_test_for_robot_historian_cold_war.docx"]
["miau260","Pitlik László:H1N1 – SCANDAL? (proving former suspicions - based on an artificial-intelligence- and a big-data-driven approach)  xx  https://miau.my-x.hu/miau/quilt/2020/quilt2/launching2020IV08/H1N1_v1.docx"]
["miau260","Pitlik László-Pitlik Marcell:Sovereignty-oriented/PLA-based future of the (higher) education or case study how to measure the future-readiness?!  xx  https://miau.my-x.hu/miau/quilt/2020/sovereignty-pla.docx"]
[null,"***"]